Workbook

Sheet Instructions
A1: Project Name: | C1: Reclaim Model - Overview of Program
B2: Baffinland Iron Mine (Bas | C2: All users are urged to read the Reclaim Model User Manual - Scroll down for overview description of program.
C3: Important! Reclaim 7.0 works better with no other excel files open.
C4: If other excel files are open ignore run time error and proceed
A5: Reclaim Menu | C5: The default Excel menu bar has an additional tab labelled "Add-Ins" that provides options specific to the Reclaim Model.
B6: Clear | C6: This option deletes all input data, deletes any duplicated elements and blanks out the project name. It also allows for segregation into land costs vs water costs if required.
B7: Duplicate | C7: This option Duplicates components of the project. E.g. if there is more than one Open Pit, use duplicate to add a second Open Pit. Quantities for the new Open Pit are erased, but the Activities and Cost Codes are carried over from the original Open Pit. The new Open Pit subtotal is added to the Summary page.
B8: Unit Costs | C8: This option opens a window of unit costs to provide easy reference. NOTE: the unit cost table has a filter in the 'UNITS' column. You can select to only see a particular unit (eg km) or multiple units (km and m3) or all units.
B9: Print All | C9: This option prints the Summary Worksheet, Unit Cost Worksheet, and the individual component worksheets having non-zero balances. Individual worksheets can be printed directly using standard printing methods, such as Ctl - P.
B10: Quit | C10: Select Quit to exit the program
B11: Help | C11: Redirects user to Instructions worksheet.
A13: WorkSheets
B14: Summary | C14: This worksheet contains a cumulative summary of costs for each component of the project. Associated costs such as engineering and project management are added as a percentage of the component costs.
B15: Components | C15: Costs are derived for individual closure and reclamation activities by multiplying a "quantity" of activity by a "unit cost". An activity can be edited, added, or deleted from worksheet. However, care should be taken not to modify cells that are defined and used elsewhere in the program.
C16: Do not change the content or column width of the first column of each component worksheet.
B17: Unit Costs | C17: This worksheet contains a look up table with costs for typical work associated with each closure and reclamation activity
A19: Limitations | C19: The Reclaim Program will NOT work if the worksheets are changed such that the following requirements are not met. Please review the following prior to modifiying worksheets.
B20: WorkSheet Names | C20: The names of the worksheets must not be changed.
B21: Defined Names | C21: Certain cells have defined names, which must not be changed. Where the cell is named, the name will appear in the "Name Box" to the left of the formula bar.
B22: First line of data | C22: The first line of data for any component worksheet starts on line 4. Do not change the first line of a component worksheet, ie the component name.
B23: Cell A1 | C23: Cell A1 on the component sheet MUST always contain the count of that component for the duplicate function to operate. DO NOT CHANGE.
B24: Adding Lines | C24: You can add lines to components and the unit cost table, as long as they are not the last lines. The last line might fall outside the named ranges. You can check the size of the named range by selecting the name from the drop down box at the top left of the sheet. Usually this box has a cell reference, or a name.
B25: Printing | C25: A component will only be printed if its sub-total is greater than zero. In addition, a component and the summary sheet cannot be printed if there is an error. Printing has been set to print 1 page per component.
A27: Conditions of Use | C27: The Reclamation Cost Estimating Model was prepared to serve as a guide for Government Agencies, mining companies, and others to estimate the cost of mine reclamation. This model is not intended to replace reclamation planning or to be used to determine the activities required to reclaim a site or to dictate how much should be spent on reclamation.
C29: Reclaim was prepared by Brodie Consulting Ltd. on behalf of AANDC. AANDC and Brodie Consulting Ltd. are not responsible for the completeness or accuracy of any reclamation estimate made using this model. The user agrees to check and take responsibility for all aspects of any cost estimate made using this model.
A31: The following table provides guidance as to whether water management and treatment is considered short term or long term. Short term closure activities
A32: may be costed within a component (eg 'Open Pit' or 'Rock Pile') or 'Water Management'. Long term or post-closure water treatment is costed in 'Water Treatment'.
D33: Short Term/ Capital Ex. | E33: Long term/ NPV
A34: Open Pit | C34: flood pit - install/operate pumping system | D34: x
C35: construct diversion ditches | D35: x
C36: treat 1st filling | D36: x
C37: install pump/decant system | D37: x
C38: passive/biological treatment | D38: x
C39: overflow treatment | E39: x
A40: Rock Pile/Heap Leach Facility | C40: construct diversion ditches | D40: x
C41: install groundwater collection system | D41: x
C42: install toe seepage collection system | D42: x
C43: collect and treat groundwater | E43: x
C44: collect and treat seepage (ARD/ML) | E44: x
C45: install passive treatment system | D45: x
C46: operate and maintain passive treatment system | E46: x
C47: operate pump and detoxify heap leach pile (cyanide destruction) | D47: x
A48: Tailings Facility | C48: construct diversion ditches | D48: x
C49: pump supernatant (to pit, U/G) | D49: x
C50: treat supernatant | D50: x
C51: install toe seepage collection system | D51: x
C52: collect and treat seepage (ARD/ML) | E52: x
C53: install passive treatment system | D53: x
C54: operate and maintain passive treatment system | E54: x
A55: U/G Mine | C55: accelerate flooding | D55: x
C56: install seepage collection system | D56: x
C57: install dewatering/pumping system | D57: x
C58: operate seepage/dewatering system (ARD/ML) | E58: x
A59: Water Management | C59: refill lakes
C60: redirect creeks/streams | D60: x
C61: stabilize water management ponds | D61: x
C62: stabilize/close sediment ponds | D62: x
C63: fresh water supply - breach embankment | D63: x
C64: fresh water supply - remove piping system | D64: x
C65: construct water treatment plant | D65: x
C66: construct sludge pond | D66: x
C67: water control in reclamation quarry | D67: x
C68: operate/maintain water treatment plant | E68: x

Sheet Summary
B1: SUMMARY OF COSTS
A3: CAPITAL COSTS | B3: COMPONENT NAME | D3: COST | F3: LAND LIABILITY | H3: WATER LIABILITY | I3: IOL LIABILITY | K3: CROWN LIABILITY
A4: OPEN PIT | B4: =IF(ISBLANK('Open Pit'!$C$1),"",'Open Pit'!$C$1) -> Mary River Mine Pit | D4: =Pit1Total -> 4808915.692 | F4: =Pit1LandTotal -> 4808915.692 | H4: =Pit1WaterTotal -> 0 | I4: =D4-K4 -> 4692697.721 | K4: ='Open Pit'!J53+'Open Pit'!J59 -> 116217.9713
A5: UNDERGROUND MINE | B5: =IF(ISBLANK('UG Mine'!$C$1),"",'UG Mine'!$C$1) ->  | D5: =UG1Total -> 0.0001 | F5: =UG1LandTotal -> 0 | H5: =UG1WaterTotal -> 0 | I5: =D5-K5 -> 0.0001 | K5: 0
A6: TAILINGS FACILITY | B6: =IF(ISBLANK(Tailings!$C$1),"",Tailings!$C$1) ->  | D6: =Tailings1Total -> 0.0001 | F6: =Tailings1LandTotal -> 0 | H6: =Tailings1WaterTotal -> 0 | I6: 0.0001 | K6: 0
A7: ROCK PILE | B7: =IF(ISBLANK('Rock Pile'!$C$1),"",'Rock Pile'!$C$1) -> Mine Site Waste Rock Pile | D7: =RP1Total -> 283749.8658 | F7: =RP1LandTotal -> 283749.8657 | H7: =RP1WaterTotal -> 0 | I7: 283749.8658 | K7: 0
A8: BUILDINGS AND EQUIPMENT | B8: =IF(ISBLANK('Bldgs & Equip'!$C$1),"",'Bldgs & Equip'!$C$1) -> Mine Site | D8: =Bldg1Total -> 11894285.43 | F8: =Bldg1LandTotal -> 11635930.99 | H8: =Bldg1WaterTotal -> 258354.44 | I8: 11894285.43 | K8: 0
B9: ='Bldgs & Equip (2)'!C1 -> Milne Port | D9: ='Bldgs & Equip (2)'!Bldg1Total -> 7273581.403 | F9: ='Bldgs & Equip (2)'!Bldg1LandTotal -> 7202455.342 | H9: ='Bldgs & Equip (2)'!Bldg1WaterTotal -> 71126.0606 | I9: 7273581.403 | K9: 0
B10: ='Bldgs & Equip (3)'!C1 -> Tote Road | D10: ='Bldgs & Equip (3)'!Bldg1Total -> 2127099.877 | F10: ='Bldgs & Equip (3)'!Bldg1LandTotal -> 1017892.317 | H10: ='Bldgs & Equip (3)'!Bldg1WaterTotal -> 1109207.56 | I10: 1774084.793 | K10: ='Bldgs & Equip (3)'!J46+'Bldgs & Equip (3)'!J59+'Bldgs & Equip (3)'!K80+'Bldgs & Equip (3)'!K82+'Bldgs & Equip (3)'!J50+0.07*('Bldgs & Equip (3)'!J57+'Bldgs & Equip (3)'!J55+'Bldgs & Equip (3)'!J54+'Bldgs & Equip (3)'!J21+'Bldgs & Equip (3)'!J51) -> 353015.0843
B11: ='Bldgs & Equip (4)'!C1 -> Project Wide/Other | D11: ='Bldgs & Equip (4)'!Bldg1Total -> 724684.2901 | F11: ='Bldgs & Equip (4)'!Bldg1LandTotal -> 724684.29 | H11: ='Bldgs & Equip (4)'!Bldg1WaterTotal -> 0 | I11: 724684.2901 | K11: 0
A12: CHEMICALS AND CONTAMINATED SOIL MANAGEMENT | B12: =IF(ISBLANK(Chemicals!$C$1),"",Chemicals!$C$1) ->  | D12: =Chem1Total -> 2900945.87 | F12: =Chem1LandTotal -> 2900945.87 | H12: =Chem1WaterTotal -> 0 | I12: 2850739.179 | K12: =D12*$K$16 -> 50206.69083
A13: SURFACE AND GROUNDWATER MANAGEMENT | B13: =IF(ISBLANK('Water Treatment'!$C$1),"",'Water Treatment'!$C$1) ->  | D13: =Water1Total -> 1358346.438 | F13: - | H13: =Water1Total -> 1358346.438 | I13: 1334837.527 | K13: =D13*$K$16 -> 23508.91147
A14: INTERIM CARE AND MAINTENANCE | B14: =IF(ISBLANK(ICM!$C$1),"",ICM!$C$1) ->  | D14: =ICMTotal -> 2792144.6 | F14: - | H14: =ICMTotal -> 2792144.6 | I14: 2743820.934 | K14: 48323.66647
B15: SUBTOTAL: Capital Costs | D15: =SUM(D4:D14) -> 34163753.46 | F15: =SUM(F4:F14) -> 28574574.36 | H15: =SUM(H4:H14) -> 5589179.099 | I15: =SUM(I4:I14) -> 33572481.14 | K15: =SUM(K4:K14) -> 591272.3244
B16: PERCENT OF SUBTOTAL | F16: =IF(F15<0.01,0,F15/D15) -> 0.836400321 | H16: =IF(H15<0.01,0,H15/D15) -> 0.163599679 | I16: =SUM(I4:I11)/SUM(D4:D11) -> 0.9826929929 | K16: =SUM(K4:K11)/SUM(D4:D11) -> 0.01730700712
A18: INDIRECT COSTS | D18: COST | F18: LAND LIABILITY | H18: WATER LIABILITY | I18: IOL LIABILITY | K18: CROWN LIABILITY
A19: MOBILIZATION/DEMOBILIZATION | B19: =IF(ISBLANK(Mobilization!$C$1),"",Mobilization!$C$1) ->  | D19: =MobTotal -> 23273544.44 | F19: =D19*$F$16 -> 19466000.04 | H19: =D19*$H$16 -> 3807544.399 | I19: =D19-K19 -> 22870749.04 | K19: =D19*$K$16 -> 402795.3993
A20: POST-CLOSURE MONITORING AND MAINTENANCE | B20: =IF(ISBLANK(PostClosure!$C$1),"",PostClosure!$C$1) ->  | D20: =PC1Total -> 1560000 | F20: =D20*$F$16 -> 1304784.501 | H20: =D20*$H$16 -> 255215.4992 | I20: 1533001.069 | K20: 26998.93111
A21: ENGINEERING | B21: 0.039 | D21: =B21*$D$15 -> 1332386.385 | F21: =+$F$16*D21 -> 1114408.4 | H21: =+$H$16*D21 -> 217977.9849 | I21: 1309326.764 | K21: 23059.62065
A22: PROJECT MANAGEMENT | B22: 0.094 | D22: 3211392.825 | F22: 2686009.99 | H22: 525382.8353 | I22: 3155813.227 | K22: 55579.59849
A23: HEALTH AND SAFETY PLANS/MONITORING & QA/QC | B23: 0 | D23: 0 | F23: 0 | H23: 0 | I23: 0 | K23: 0
A24: BONDING/INSURANCE | B24: 0.02 | D24: 683275.0692 | F24: 571491.4873 | H24: 111783.582 | I24: 671449.6228 | K24: 11825.44649
A25: CONTINGENCY | B25: 0.15 | D25: 5124563.019 | F25: 4286186.154 | H25: 838376.8648 | I25: 5035872.171 | K25: 88690.84866
A26: MARKET PRICE FACTOR ADJUSTMENT | B26: 0 | D26: 0 | F26: 0 | H26: 0 | I26: =C26*$J$16 -> 0 | K26: =C26*$L$16 -> 0
B27: SUBTOTAL: Indirect Costs | D27: =SUM(D19:D26) -> 35185161.74 | F27: =SUM(F19:F26) -> 29428880.57 | H27: =SUM(H19:H26) -> 5756281.165 | I27: =SUM(I19:I26) -> 34576211.89 | K27: =SUM(K19:K26) -> 608949.8447
A29: TOTAL COSTS | D29: =D15+D27 -> 69348915.2 | F29: =F15+F27 -> 58003454.94 | H29: =H15+H27 -> 11345460.26 | I29: =I15+I27 -> 68148693.03 | K29: =K15+K27 -> 1200222.169

Sheet Open Pit
A1: 1 | B1: Open Pit Name: | C1: Mary River Mine Pit | G1: Pit # | H1: 1
B3: ACTIVITY/MATERIAL | C3: Notes | D3: Units | E3: Quantity | F3: Cost Code | G3: Unit Cost | H3: Cost | I3: % Land | J3: Land Cost | K3: Water Cost
B4: CONTROL ACCESS
B5: Fence | D5: m | F5: =NA() ->  | G5: =IF(ISNA(F5),0,INDEX(IF(UPPER(RIGHT(F5,1))=Low,UnitCostLow, IF(UPPER(RIGHT(F5,1))=High,UnitCostHigh,UnitCostSpecified)),MATCH(UPPER(LEFT(F5,LEN(F5)-1)),CostCode,0))) -> 0 | H5: =G5*E5 -> 0 | J5: =H5*I5 -> 0 | K5: =H5*(1-I5) -> 0
B6: Signs | D6: each | F6: SH | G6: 37.08 | H6: =G6*E6 -> 0 | J6: =H6*I6 -> 0 | K6: =H6*(1-I6) -> 0
B7: Berm at crest | D7: m3 | F7: =NA() ->  | G7: =IF(ISNA(F7),0,INDEX(IF(UPPER(RIGHT(F7,1))=Low,UnitCostLow, IF(UPPER(RIGHT(F7,1))=High,UnitCostHigh,UnitCostSpecified)),MATCH(UPPER(LEFT(F7,LEN(F7)-1)),CostCode,0))) -> 0 | H7: =G7*E7 -> 0 | J7: =H7*I7 -> 0 | K7: =H7*(1-I7) -> 0
B8: Block roads | D8: m3 | F8: RB1H | G8: =IF(ISNA(F8),0,INDEX(IF(UPPER(RIGHT(F8,1))=Low,UnitCostLow, IF(UPPER(RIGHT(F8,1))=High,UnitCostHigh,UnitCostSpecified)),MATCH(UPPER(LEFT(F8,LEN(F8)-1)),CostCode,0))) -> 17.05 | H8: =G8*E8 -> 0 | J8: =H8*I8 -> 0 | K8: =H8*(1-I8) -> 0
B9: Other | F9: =NA() ->  | G9: =IF(ISNA(F9),0,INDEX(IF(UPPER(RIGHT(F9,1))=Low,UnitCostLow, IF(UPPER(RIGHT(F9,1))=High,UnitCostHigh,UnitCostSpecified)),MATCH(UPPER(LEFT(F9,LEN(F9)-1)),CostCode,0))) -> 0 | H9: =G9*E9 -> 0 | J9: =H9*I9 -> 0 | K9: =H9*(1-I9) -> 0
B10: STABILITY STUDY
B11: Conduct stability and setback study | D11: allow | F11: EA | G11: 0 | H11: =G11*E11 -> 0 | J11: =H11*I11 -> 0 | K11: =H11*(1-I11) -> 0
B12: STABILIZE SLOPES
B13: Off-load crest, soil A | D13: m3 | F13: =NA() ->  | G13: =IF(ISNA(F13),0,INDEX(IF(UPPER(RIGHT(F13,1))=Low,UnitCostLow, IF(UPPER(RIGHT(F13,1))=High,UnitCostHigh,UnitCostSpecified)),MATCH(UPPER(LEFT(F13,LEN(F13)-1)),CostCode,0))) -> 0 | H13: =G13*E13 -> 0 | J13: =H13*I13 -> 0 | K13: =H13*(1-I13) -> 0
B14: Off-load crest, soil B | D14: m3 | F14: =NA() ->  | G14: 0 | H14: 0 | J14: 0 | K14: 0
B15: Doze/trim overburden at crest | D15: m3 | F15: =NA() ->  | G15: 0 | H15: 0 | J15: 0 | K15: 0
B16: Drill & blast pit crest | D16: m3 | F16: =NA() ->  | G16: 0 | H16: 0 | J16: 0 | K16: 0
B17: Buttress slope | D17: m3 | F17: =NA() ->  | G17: 0 | H17: 0 | J17: 0 | K17: 0
B18: Other | F18: =NA() ->  | G18: 0 | H18: 0 | J18: 0 | K18: 0
B19: COVER/CONTOUR SLOPES
B20: Place fill, soil A | D20: m3 | F20: =NA() ->  | G20: =IF(ISNA(F20),0,INDEX(IF(UPPER(RIGHT(F20,1))=Low,UnitCostLow, IF(UPPER(RIGHT(F20,1))=High,UnitCostHigh,UnitCostSpecified)),MATCH(UPPER(LEFT(F20,LEN(F20)-1)),CostCode,0))) -> 0 | H20: =G20*E20 -> 0 | J20: =H20*I20 -> 0 | K20: =H20*(1-I20) -> 0
B21: Place fill, soil B | D21: m3 | F21: =NA() ->  | G21: 0 | H21: 0 | J21: 0 | K21: 0
B22: Rip rap | D22: m3 | F22: =NA() ->  | G22: 0 | H22: 0 | J22: 0 | K22: 0
B23: Vegetate slopes | D23: ha | F23: =NA() ->  | G23: 0 | H23: 0 | J23: 0 | K23: 0
B24: Vegetate pit floor | D24: ha | F24: =NA() ->  | G24: 0 | H24: 0 | J24: 0 | K24: 0
B25: Other | F25: =NA() ->  | G25: 0 | H25: 0 | J25: 0 | K25: 0
B26: CONSTRUCT DIVERSION DITCHES
B27: Excavate ditches -soil | D27: m3 | F27: =NA() ->  | G27: =IF(ISNA(F27),0,INDEX(IF(UPPER(RIGHT(F27,1))=Low,UnitCostLow, IF(UPPER(RIGHT(F27,1))=High,UnitCostHigh,UnitCostSpecified)),MATCH(UPPER(LEFT(F27,LEN(F27)-1)),CostCode,0))) -> 0 | H27: =G27*E27 -> 0 | J27: =H27*I27 -> 0 | K27: =H27*(1-I27) -> 0
B28: Excavate ditches -rock | D28: m3 | F28: =NA() ->  | G28: =IF(ISNA(F28),0,INDEX(IF(UPPER(RIGHT(F28,1))=Low,UnitCostLow, IF(UPPER(RIGHT(F28,1))=High,UnitCostHigh,UnitCostSpecified)),MATCH(UPPER(LEFT(F28,LEN(F28)-1)),CostCode,0))) -> 0 | H28: =G28*E28 -> 0 | J28: =H28*I28 -> 0 | K28: =H28*(1-I28) -> 0
B29: Rip rap in channel base | D29: m3 | F29: =NA() ->  | G29: =IF(ISNA(F29),0,INDEX(IF(UPPER(RIGHT(F29,1))=Low,UnitCostLow, IF(UPPER(RIGHT(F29,1))=High,UnitCostHigh,UnitCostSpecified)),MATCH(UPPER(LEFT(F29,LEN(F29)-1)),CostCode,0))) -> 0 | H29: =G29*E29 -> 0 | J29: =H29*I29 -> 0 | K29: =H29*(1-I29) -> 0
B30: CONSTRUCT SPILLWAY
B31: Excavate channel | D31: m3 | F31: =NA() ->  | G31: =IF(ISNA(F31),0,INDEX(IF(UPPER(RIGHT(F31,1))=Low,UnitCostLow, IF(UPPER(RIGHT(F31,1))=High,UnitCostHigh,UnitCostSpecified)),MATCH(UPPER(LEFT(F31,LEN(F31)-1)),CostCode,0))) -> 0 | H31: =G31*E31 -> 0 | J31: =H31*I31 -> 0 | K31: =H31*(1-I31) -> 0
B32: Concrete | D32: m3 | F32: =NA() ->  | G32: =IF(ISNA(F32),0,INDEX(IF(UPPER(RIGHT(F32,1))=Low,UnitCostLow, IF(UPPER(RIGHT(F32,1))=High,UnitCostHigh,UnitCostSpecified)),MATCH(UPPER(LEFT(F32,LEN(F32)-1)),CostCode,0))) -> 0 | H32: =G32*E32 -> 0 | J32: =H32*I32 -> 0 | K32: =H32*(1-I32) -> 0
B33: Rip rap | D33: m3 | F33: =NA() ->  | G33: =IF(ISNA(F33),0,INDEX(IF(UPPER(RIGHT(F33,1))=Low,UnitCostLow, IF(UPPER(RIGHT(F33,1))=High,UnitCostHigh,UnitCostSpecified)),MATCH(UPPER(LEFT(F33,LEN(F33)-1)),CostCode,0))) -> 0 | H33: =G33*E33 -> 0 | J33: =H33*I33 -> 0 | K33: =H33*(1-I33) -> 0
B34: Other | F34: =NA() ->  | G34: =IF(ISNA(F34),0,INDEX(IF(UPPER(RIGHT(F34,1))=Low,UnitCostLow, IF(UPPER(RIGHT(F34,1))=High,UnitCostHigh,UnitCostSpecified)),MATCH(UPPER(LEFT(F34,LEN(F34)-1)),CostCode,0))) -> 0 | H34: =G34*E34 -> 0 | J34: =H34*I34 -> 0 | K34: =H34*(1-I34) -> 0
B35: RECLAIM QUARRIES (the unit cost is inclusive of backfill, compaction and scarification with a dozer)
B36: P10 Borrow Source | C36: 2016/2017 ASR Reconciliation | D36: m2 | F36: 15GCS | G36: 1.81 | H36: =G36*E36 -> 0 | J36: =H36*I36 -> 0 | K36: =H36*(1-I36) -> 0
B37: P13 Borrow Source | C37: 2016/2017 ASR Reconciliation | D37: m2 | F37: 15GCS | G37: 1.81 | H37: =G37*E37 -> 0 | J37: =H37*I37 -> 0 | K37: =H37*(1-I37) -> 0
B38: P14 Borrow Source | C38: 2016/2017 ASR Reconciliation | D38: m2 | F38: 15GCS | G38: 1.81 | H38: 0 | J38: 0 | K38: 0
B39: P15 Borrow Source | C39: 2016/2017 ASR Reconciliation | D39: m2 | F39: 15GCS | G39: 1.81 | H39: 0 | J39: 0 | K39: 0
B40: P5 Borrow Source | C40: 2016/2017 ASR Reconciliation | D40: m2 | F40: 15GCS | G40: 1.81 | H40: 0 | J40: 0 | K40: 0
B41: P6 Borrow Source | C41: 2016/2017 ASR Reconciliation | D41: m2 | F41: 15GCS | G41: 1.81 | H41: 0 | J41: 0 | K41: 0
B42: P7 Borrow Source | C42: 2016/2017 ASR Reconciliation | D42: m2 | F42: 15GCS | G42: 1.81 | H42: 0 | J42: 0 | K42: 0
B43: P8 Borrow Source | C43: 2016/2017 ASR Reconciliation | D43: m2 | F43: 15GCS | G43: 1.81 | H43: 0 | J43: 0 | K43: 0
B44: Q13 Quarry | C44: 2017 Work Plan addendum | D44: m2 | E44: 31350 | F44: 18GCS | G44: 1.493420346 | H44: 46818.72784 | I44: 1 | J44: 46818.72784 | K44: 0
B45: Q14 Quarry | C45: 2016/2017 ASR Reconciliation | D45: m2 | F45: 15GCS | G45: 1.81 | H45: 0 | J45: 0 | K45: 0
B46: Q15 Quarry | C46: 2016/2017 ASR Reconciliation | D46: m2 | F46: 15GCS | G46: 1.81 | H46: 0 | J46: 0 | K46: 0
B47: Q16A Quarry | C47: In 2016 Work Plan but deferred to 2017 | D47: m2 | E47: 11240 | F47: 18GCS | G47: 1.493420346 | H47: 16786.04469 | I47: 1 | J47: 16786.04469 | K47: 0
B48: Q9 Quarry | C48: 2016/2017 ASR Reconciliation | D48: m2 | F48: 15GCS | G48: 1.81 | H48: 0 | J48: 0 | K48: 0
B49: D1Q2 Quarry | C49: 2016 Work Plan | D49: m2 | E49: 109807 | F49: 18GCS | G49: 1.493420346 | H49: 163988.0079 | I49: 1 | J49: 163988.0079 | K49: 0
B50: Q1 Quarry | C50: 2017 work plan addendum marginal increase Add 50000 m2. 2017 Actual add 824,500 m2 | D50: m2 | E50: 944700 | F50: 18GCS | G50: 1.493420346 | H50: 1410834.201 | I50: 1 | J50: 1410834.201 | K50: 0
B51: Q5 Quarry | C51: 2018 work plan see table 3-3 off marginal estimate | D51: m2 | E51: 15000 | F51: 18GCS | G51: 1.493420346 | H51: =G51*E51 -> 22401.30519 | I51: 1 | J51: =H51*I51 -> 22401.30519 | K51: =H51*(1-I51) -> 0
B52: Q11 Quarry | C52: 2017 work plan marginal increase Add 2000 m2 | D52: m2 | E52: 52433 | F52: 18GCS | G52: 1.493420346 | H52: 78304.50899 | I52: 1 | J52: 78304.50899 | K52: 0
B53: Q18 Quarry (on Crown Land) | C53: 2017 Work Plan new quarry Add 2000 m2 (100% Crown Land) | D53: m2 | E53: 2000 | F53: 18GCS | G53: 1.493420346 | H53: 2986.840692 | I53: 1 | J53: 2986.840692 | K53: 0
B54: Q19 Quarry | D54: m2 | E54: 18760 | F54: 18GCS | G54: 1.493420346 | H54: 28016.56569 | I54: 1 | J54: 28016.56569 | K54: 0
B55: Q7 Quarry | C55: 2017 work plan marginal increase Add 2000 m2 | D55: m2 | E55: 55050 | F55: 18GCS | G55: 1.493420346 | H55: 82212.79003 | I55: 1 | J55: 82212.79003 | K55: 0
B56: QMR2 Quarry | C56: 2017 work plan addendum marginal increase Add 50000 m2 | D56: m2 | E56: 314580 | F56: 18GCS | G56: 1.493420346 | H56: =G56*E56 -> 469800.1724 | I56: 1 | J56: =H56*I56 -> 469800.1724 | K56: =H56*(1-I56) -> 0
B57: Pit 1 | D57: m2 | E57: 55000 | F57: 18GCS | G57: 1.493420346 | H57: =G57*E57 -> 82138.11902 | I57: 1 | J57: =H57*I57 -> 82138.11902 | K57: =H57*(1-I57) -> 0
B58: Pit 1 marginal increase | D58: m2 | E58: 214450 | F58: 18GCS | G58: 1.493420346 | H58: 320263.9932 | I58: 1 | J58: 320263.9932 | K58: 0
B59: P1 Borrow Source (on Crown Land) | C59: 100% on Crown Land | D59: m2 | E59: 75820 | F59: 18GCS | G59: 1.493420346 | H59: 113231.1306 | I59: 1 | J59: 113231.1306 | K59: 0
B60: Km 2 Borrow Source | C60: 2017 work plan marginal increase Add 1000 m2 | D60: m2 | E60: 42795 | F60: 18GCS | G60: 1.493420346 | H60: 63910.9237 | I60: 1 | J60: 63910.9237 | K60: 0
B61: Borrow Development Areas | D61: m2 | E61: 42080 | F61: 18GCS | G61: 1.493420346 | H61: 62843.12815 | I61: 1 | J61: 62843.12815 | K61: 0
B62: Unidentified Borrow Sources | D62: m2 | E62: 697910 | F62: 15GCS | G62: 1.493420346 | H62: 1042272.994 | I62: 1 | J62: 1042272.994 | K62: 0
B63: GRADING AND CONTOURING SIGNIFICANTLY DISTURBED AREAS (the unit cost is inclusive of backfill, compaction and scarification with a dozer)
B64: Km 97 Borrow Source | C64: 2017 work plan marginal increase Add 1000 m2. No 2018 unit rate availabe | D64: m2 | E64: 158012 | F64: 15GCDS | G64: 2.72 | H64: =G64*E64 -> 429792.64 | I64: 1 | J64: =H64*I64 -> 429792.64 | K64: =H64*(1-I64) -> 0 | M64: No 2018 unit rate availabe
B65: Type A Quarry | C65: No 2018 unit rate availabe | D65: m2 | E65: 136880 | F65: 15GCDS | G65: 2.72 | H65: =G65*E65 -> 372313.6 | I65: 1 | J65: =H65*I65 -> 372313.6 | K65: =H65*(1-I65) -> 0 | M65: No 2018 unit rate availabe
B66: FLOOD PIT-Captital
B67: Remove stationary equipment (sump pumps) | D67: Allow | F67: AE | G67: 10000 | H67: =G67*E67 -> 0 | J67: =H67*I67 -> 0 | K67: =H67*(1-I67) -> 0
B68: Remove dewatering pipeline | D68: m | F68: =NA() ->  | G68: =IF(ISNA(F68),0,INDEX(IF(UPPER(RIGHT(F68,1))=Low,UnitCostLow, IF(UPPER(RIGHT(F68,1))=High,UnitCostHigh,UnitCostSpecified)),MATCH(UPPER(LEFT(F68,LEN(F68)-1)),CostCode,0))) -> 0 | H68: 0 | J68: 0 | K68: =H68*(1-I68) -> 0
B69: Remove power lines | D69: each | F69: =NA() ->  | G69: 0 | H69: 0 | J69: 0 | K69: =H69*(1-I69) -> 0
B70: Construct diversion ditches | D70: m3 | F70: =NA() ->  | G70: 0 | H70: 0 | J70: 0 | K70: =H70*(1-I70) -> 0
B71: -Ditch, mat'l A | D71: m3 | F71: =NA() ->  | G71: 0 | H71: 0 | J71: 0 | K71: =+H71*(1-I71) -> 0
B72: -Ditch, mat'l B | D72: m3 | F72: =NA() ->  | G72: 0 | H72: 0 | J72: 0 | K72: =+H72*(1-I72) -> 0
B73: Construct embankment/dam | D73: m3 | F73: =NA() ->  | G73: 0 | H73: 0 | J73: 0 | K73: =H73*(1-I73) -> 0
B74: Supply/install pump station | D74: Allow | F74: AE | G74: 500000 | H74: 0 | J74: 0 | K74: =H74*(1-I74) -> 0
B75: Supply/install piping system | D75: m | F75: =NA() ->  | G75: =IF(ISNA(F75),0,INDEX(IF(UPPER(RIGHT(F75,1))=Low,UnitCostLow, IF(UPPER(RIGHT(F75,1))=High,UnitCostHigh,UnitCostSpecified)),MATCH(UPPER(LEFT(F75,LEN(F75)-1)),CostCode,0))) -> 0 | H75: 0 | J75: 0 | K75: =H75*(1-I75) -> 0
B76: Remove pump post-closure | D76: each | F76: =NA() ->  | G76: =IF(ISNA(F76),0,INDEX(IF(UPPER(RIGHT(F76,1))=Low,UnitCostLow, IF(UPPER(RIGHT(F76,1))=High,UnitCostHigh,UnitCostSpecified)),MATCH(UPPER(LEFT(F76,LEN(F76)-1)),CostCode,0))) -> 0 | H76: 0 | J76: 0 | K76: =H76*(1-I76) -> 0
B77: Remove pipeline post-closure | D77: m | F77: =NA() ->  | G77: =IF(ISNA(F77),0,INDEX(IF(UPPER(RIGHT(F77,1))=Low,UnitCostLow, IF(UPPER(RIGHT(F77,1))=High,UnitCostHigh,UnitCostSpecified)),MATCH(UPPER(LEFT(F77,LEN(F77)-1)),CostCode,0))) -> 0 | H77: 0 | J77: 0 | K77: =H77*(1-I77) -> 0
B78: FLOOD PIT-Annual Cost
B79: Operate pumps (power) | D79: each | F79: AE | G79: 439359.8 | H79: =G79*E79 -> 0 | J79: =H79*I79 -> 0 | K79: =H79*(1-I79) -> 0
B80: Maintain pump/pipeline | D80: allow | F80: =NA() ->  | G80: =IF(ISNA(F80),0,INDEX(IF(UPPER(RIGHT(F80,1))=Low,UnitCostLow, IF(UPPER(RIGHT(F80,1))=High,UnitCostHigh,UnitCostSpecified)),MATCH(UPPER(LEFT(F80,LEN(F80)-1)),CostCode,0))) -> 0 | H80: 0 | J80: 0 | K80: 0
B81: Labour:fuel management, comissioning/decom | D81: $/h | F81: =NA() ->  | G81: 0 | H81: 0 | J81: 0 | K81: 0
B82: Chemical addition, _____ kg/m3 of water | D82: tonne | F82: =NA() ->  | G82: 0 | H82: 0 | J82: 0 | K82: 0
B83: Chemicals, purchase and shipping | D83: tonne | F83: =NA() ->  | G83: 0 | H83: 0 | J83: 0 | K83: 0
B84: Passive/biological additives | D84: $/ha | F84: =NA() ->  | G84: 0 | H84: 0 | J84: 0 | K84: 0
B85: Passive additives purchase and shipping | D85: tonne | F85: =NA() ->  | G85: 0 | H85: 0 | J85: 0 | K85: 0
B86: Other | F86: =NA() ->  | G86: 0 | H86: 0 | J86: 0 | K86: 0
G87: Annual pumping costs | H87: =SUM(H79:H86)+0.0001 -> 0.0001
B88: Number of years of pump flooding | D88: years
G89: Total pumping costs | H89: =H87*E88 -> 0 | J89: =H89*I89 -> 0 | K89: =H89*(1-I89) -> 0
G90: Total | H90: =SUM(H5:H77)+H89+0.0001 -> 4808915.692 | J90: =SUM(J5:J77)+J89 -> 4808915.692 | K90: =SUM(K5:K77)+K89 -> 0
G91: % of Total | J91: =J90/H90 -> 1 | K91: =K90/H90 -> 0

Sheet Rock Pile
A1: 1 | B1: Rock Pile Name: | C1: Mine Site Waste Rock Pile
B3: ACTIVITY/MATERIAL | C3: Notes | D3: Units | E3: Quantity | F3: Cost Code | G3: Unit Cost | H3: Cost | I3: % Land | J3: Land Cost | K3: Water Cost
B4: STABILIZE SLOPES
B5: Flatten slopes with dozer | D5: m3 | F5: =NA() ->  | G5: =IF(ISNA(F5),0,INDEX(IF(UPPER(RIGHT(F5,1))=Low,UnitCostLow, IF(UPPER(RIGHT(F5,1))=High,UnitCostHigh,UnitCostSpecified)),MATCH(UPPER(LEFT(F5,LEN(F5)-1)),CostCode,0))) -> 0 | H5: =G5*E5 -> 0 | J5: =H5*I5 -> 0 | K5: =+H5*(1-I5) -> 0
B6: Flatten "bubble dump" areas | D6: m3 | F6: =NA() ->  | G6: 0 | H6: 0 | J6: 0 | K6: 0
B7: Divert runon, ditch mat'l A | D7: m3 | F7: =NA() ->  | G7: 0 | H7: 0 | J7: 0 | K7: 0
B8: Divert runon, ditch mat'l B | D8: m3 | F8: =NA() ->  | G8: 0 | H8: 0 | J8: 0 | K8: 0
B9: Toe buttress, drain mat'l | D9: m3 | F9: =NA() ->  | G9: 0 | H9: 0 | J9: 0 | K9: 0
B10: Toe buttress, fill mat'l A | D10: m3 | F10: =NA() ->  | G10: 0 | H10: 0 | J10: 0 | K10: 0
B11: Toe buttress, fill mat'l B | D11: m3 | F11: =NA() ->  | G11: 0 | H11: 0 | J11: 0 | K11: 0
B12: Other | F12: =NA() ->  | G12: 0 | H12: 0 | J12: 0 | K12: 0
B13: COVER ROCK PILE
B14: Subgrade preparation - doze surface | D14: m3 | F14: =NA() ->  | G14: =IF(ISNA(F14),0,INDEX(IF(UPPER(RIGHT(F14,1))=Low,UnitCostLow, IF(UPPER(RIGHT(F14,1))=High,UnitCostHigh,UnitCostSpecified)),MATCH(UPPER(LEFT(F14,LEN(F14)-1)),CostCode,0))) -> 0 | H14: =G14*E14 -> 0 | J14: =H14*I14 -> 0 | K14: =+H14*(1-I14) -> 0
B15: Soil cover - excavate,haul,spread&compact | D15: m3 | F15: =NA() ->  | G15: =IF(ISNA(F15),0,INDEX(IF(UPPER(RIGHT(F15,1))=Low,UnitCostLow, IF(UPPER(RIGHT(F15,1))=High,UnitCostHigh,UnitCostSpecified)),MATCH(UPPER(LEFT(F15,LEN(F15)-1)),CostCode,0))) -> 0 | H15: =G15*E15 -> 0 | J15: =H15*I15 -> 0 | K15: =+H15*(1-I15) -> 0
B16: Rock cover - excavate,haul & spread | D16: m3 | F16: =NA() ->  | G16: 0 | H16: 0 | J16: 0 | K16: 0
B17: Excavate downslope drainage channel & chute | D17: m3 | F17: =NA() ->  | G17: 0 | H17: 0 | J17: 0 | K17: 0
B18: Rip rap drainage channel and chute | D18: m3 | F18: =NA() ->  | G18: 0 | H18: 0 | J18: 0 | K18: 0
B19: Vegetate | D19: ha | F19: =NA() ->  | G19: 0 | H19: 0 | J19: 0 | K19: 0
B20: Other | F20: =NA() ->  | G20: 0 | H20: 0 | J20: 0 | K20: 0
B21: VERY LOW PERMEABILITY COVER (in addition to above)
B22: Liner subgrade preparation - compact | D22: m2 | F22: =NA() ->  | G22: =IF(ISNA(F22),0,INDEX(IF(UPPER(RIGHT(F22,1))=Low,UnitCostLow, IF(UPPER(RIGHT(F22,1))=High,UnitCostHigh,UnitCostSpecified)),MATCH(UPPER(LEFT(F22,LEN(F22)-1)),CostCode,0))) -> 0 | H22: =G22*E22 -> 0 | J22: =H22*I22 -> 0 | K22: =+H22*(1-I22) -> 0
B23: Supply geomembrame | D23: m2 | F23: =NA() ->  | G23: =IF(ISNA(F23),0,INDEX(IF(UPPER(RIGHT(F23,1))=Low,UnitCostLow, IF(UPPER(RIGHT(F23,1))=High,UnitCostHigh,UnitCostSpecified)),MATCH(UPPER(LEFT(F23,LEN(F23)-1)),CostCode,0))) -> 0 | H23: =G23*E23 -> 0 | J23: 0 | K23: 0
B24: Install geomembrane | D24: m2 | F24: =NA() ->  | G24: =IF(ISNA(F24),0,INDEX(IF(UPPER(RIGHT(F24,1))=Low,UnitCostLow, IF(UPPER(RIGHT(F24,1))=High,UnitCostHigh,UnitCostSpecified)),MATCH(UPPER(LEFT(F24,LEN(F24)-1)),CostCode,0))) -> 0 | H24: =G24*E24 -> 0 | J24: 0 | K24: 0
B25: Protective cover - excavate,haul,spread&compact | D25: m3 | F25: =NA() ->  | G25: 0 | H25: 0 | J25: 0 | K25: 0
B26: Vegetate | D26: ha | F26: =NA() ->  | G26: 0 | H26: 0 | J26: 0 | K26: 0
B27: Install infiltration/seepage instrumentation | D27: allow | F27: =NA() ->  | G27: 0 | H27: 0 | J27: 0 | K27: 0
B28: CONSTRUCT DIVERSION DITCHES
B29: Excavate ditches -soil | D29: m3 | F29: =NA() ->  | G29: =IF(ISNA(F29),0,INDEX(IF(UPPER(RIGHT(F29,1))=Low,UnitCostLow, IF(UPPER(RIGHT(F29,1))=High,UnitCostHigh,UnitCostSpecified)),MATCH(UPPER(LEFT(F29,LEN(F29)-1)),CostCode,0))) -> 0 | H29: =G29*E29 -> 0 | J29: =H29*I29 -> 0 | K29: =+H29*(1-I29) -> 0
B30: Excavate ditches -rock | D30: m3 | F30: =NA() ->  | G30: =IF(ISNA(F30),0,INDEX(IF(UPPER(RIGHT(F30,1))=Low,UnitCostLow, IF(UPPER(RIGHT(F30,1))=High,UnitCostHigh,UnitCostSpecified)),MATCH(UPPER(LEFT(F30,LEN(F30)-1)),CostCode,0))) -> 0 | H30: =G30*E30 -> 0 | J30: =H30*I30 -> 0 | K30: =+H30*(1-I30) -> 0
B31: Rip rap in channel base | D31: m3 | F31: =NA() ->  | G31: =IF(ISNA(F31),0,INDEX(IF(UPPER(RIGHT(F31,1))=Low,UnitCostLow, IF(UPPER(RIGHT(F31,1))=High,UnitCostHigh,UnitCostSpecified)),MATCH(UPPER(LEFT(F31,LEN(F31)-1)),CostCode,0))) -> 0 | H31: =G31*E31 -> 0 | J31: =H31*I31 -> 0 | K31: =+H31*(1-I31) -> 0
B32: CONSTRUCT SEEPAGE COLLECTION POND
B33: Excavate seepage collection pond | D33: m3 | F33: =NA() ->  | G33: 0 | H33: 0 | J33: =H33*I33 -> 0 | K33: =+H33*(1-I33) -> 0
B34: Doze & spread excavated material | D34: m3 | F34: =NA() ->  | G34: 0 | H34: 0 | J34: 0 | K34: 0
B35: Vegetate spread material | D35: ha | F35: =NA() ->  | G35: 0 | H35: 0 | J35: 0 | K35: 0
B36: Bedding layer | D36: m3 | F36: =NA() ->  | G36: 0 | H36: 0 | J36: 0 | K36: 0
B37: Supply geomembrane | D37: m2 | F37: =NA() ->  | G37: 0 | H37: 0 | J37: 0 | K37: 0
B38: Install geomembrane | D38: m2 | F38: =NA() ->  | G38: 0 | H38: 0 | J38: 0 | K38: 0
B39: Erosion protection layer | D39: m3 | F39: =NA() ->  | G39: 0 | H39: 0 | J39: 0 | K39: 0
B40: INSTALL GROUNDWATER COLLECTION SYSTEM
B41: Excavate/install sumps | D41: m3 | F41: =NA() ->  | G41: =IF(ISNA(F41),0,INDEX(IF(UPPER(RIGHT(F41,1))=Low,UnitCostLow, IF(UPPER(RIGHT(F41,1))=High,UnitCostHigh,UnitCostSpecified)),MATCH(UPPER(LEFT(F41,LEN(F41)-1)),CostCode,0))) -> 0 | H41: =G41*E41 -> 0 | J41: =H41*I41 -> 0 | K41: =+H41*(1-I41) -> 0
B42: Install pumping wells | D42: m3 | F42: =NA() ->  | G42: =IF(ISNA(F42),0,INDEX(IF(UPPER(RIGHT(F42,1))=Low,UnitCostLow, IF(UPPER(RIGHT(F42,1))=High,UnitCostHigh,UnitCostSpecified)),MATCH(UPPER(LEFT(F42,LEN(F42)-1)),CostCode,0))) -> 0 | H42: =G42*E42 -> 0 | J42: =H42*I42 -> 0 | K42: =+H42*(1-I42) -> 0
B43: Install pumps/pipelines/power supply | D43: allow | F43: =NA() ->  | G43: =IF(ISNA(F43),0,INDEX(IF(UPPER(RIGHT(F43,1))=Low,UnitCostLow, IF(UPPER(RIGHT(F43,1))=High,UnitCostHigh,UnitCostSpecified)),MATCH(UPPER(LEFT(F43,LEN(F43)-1)),CostCode,0))) -> 0 | H43: =G43*E43 -> 0 | J43: =H43*I43 -> 0 | K43: =+H43*(1-I43) -> 0
B44: RELOCATE DUMPS
B45: Load, haul, dump or doze | D45: m3 | F45: SC3L | G45: =IF(ISNA(F45),0,INDEX(IF(UPPER(RIGHT(F45,1))=Low,UnitCostLow, IF(UPPER(RIGHT(F45,1))=High,UnitCostHigh,UnitCostSpecified)),MATCH(UPPER(LEFT(F45,LEN(F45)-1)),CostCode,0))) -> 8.9 | H45: =G45*E45 -> 0 | J45: =H45*I45 -> 0 | K45: =+H45*(1-I45) -> 0
B46: Add lime | D46: tonne | F46: =NA() ->  | G46: =IF(ISNA(F46),0,INDEX(IF(UPPER(RIGHT(F46,1))=Low,UnitCostLow, IF(UPPER(RIGHT(F46,1))=High,UnitCostHigh,UnitCostSpecified)),MATCH(UPPER(LEFT(F46,LEN(F46)-1)),CostCode,0))) -> 0 | H46: =G46*E46 -> 0 | J46: =H46*I46 -> 0 | K46: =+H46*(1-I46) -> 0
B47: Contour reclaimed area | D47: ha | F47: =NA() ->  | G47: =IF(ISNA(F47),0,INDEX(IF(UPPER(RIGHT(F47,1))=Low,UnitCostLow, IF(UPPER(RIGHT(F47,1))=High,UnitCostHigh,UnitCostSpecified)),MATCH(UPPER(LEFT(F47,LEN(F47)-1)),CostCode,0))) -> 0 | H47: =G47*E47 -> 0 | J47: =H47*I47 -> 0 | K47: =+H47*(1-I47) -> 0
B48: Other | D48: allow | F48: =NA() ->  | G48: 0 | H48: =G48*E48 -> 0 | J48: =H48*I48 -> 0 | K48: =+H48*(1-I48) -> 0
B49: SPECIALIZED ITEMS
B50: Install permanent instrumentation | D50: allow | G50: 0 | H50: =G50*E50 -> 0 | J50: =H50*I50 -> 0 | K50: =+H50*(1-I50) -> 0
B51: Install permanent instrumentation, drilling | D51: each | F51: =NA() ->  | G51: =IF(ISNA(F51),0,INDEX(IF(UPPER(RIGHT(F51,1))=Low,UnitCostLow, IF(UPPER(RIGHT(F51,1))=High,UnitCostHigh,UnitCostSpecified)),MATCH(UPPER(LEFT(F51,LEN(F51)-1)),CostCode,0))) -> 0 | H51: =G51*E51 -> 0 | J51: =H51*I51 -> 0 | K51: =+H51*(1-I51) -> 0
B52: Grade and Contour Waste Rock dump | D52: m2 | E52: 190000 | F52: 18GCS | G52: 1.493420346 | H52: =G52*E52 -> 283749.8657 | I52: 1 | J52: =H52*I52 -> 283749.8657 | K52: =+H52*(1-I52) -> 0
B53: TREAT ROCK PILE SEEPAGE - see "Water Management"
B54: HEAP LEACH SEEPAGE TREATMENT - Cyanide Detox
B55: Cyanide destruction water treatment pumping | D55: m3 | F55: =NA() ->  | G55: =IF(ISNA(F55),0,INDEX(IF(UPPER(RIGHT(F55,1))=Low,UnitCostLow, IF(UPPER(RIGHT(F55,1))=High,UnitCostHigh,UnitCostSpecified)),MATCH(UPPER(LEFT(F55,LEN(F55)-1)),CostCode,0))) -> 0 | H55: =G55*E55 -> 0 | J55: =H55*I55 -> 0 | K55: =+H55*(1-I55) -> 0
B56: Reagents | D56: tonnes | F56: =NA() ->  | G56: =IF(ISNA(F56),0,INDEX(IF(UPPER(RIGHT(F56,1))=Low,UnitCostLow, IF(UPPER(RIGHT(F56,1))=High,UnitCostHigh,UnitCostSpecified)),MATCH(UPPER(LEFT(F56,LEN(F56)-1)),CostCode,0))) -> 0 | H56: =G56*E56 -> 0 | J56: =H56*I56 -> 0 | K56: =+H56*(1-I56) -> 0
B57: Electrician/mechanic to maintain treatment plant | D57: allow | F57: =NA() ->  | G57: =IF(ISNA(F57),0,INDEX(IF(UPPER(RIGHT(F57,1))=Low,UnitCostLow, IF(UPPER(RIGHT(F57,1))=High,UnitCostHigh,UnitCostSpecified)),MATCH(UPPER(LEFT(F57,LEN(F57)-1)),CostCode,0))) -> 0 | H57: =G57*E57 -> 0 | J57: =H57*I57 -> 0 | K57: =+H57*(1-I57) -> 0
B58: Equipment maintenance and parts | D58: allow | F58: =NA() ->  | G58: =IF(ISNA(F58),0,INDEX(IF(UPPER(RIGHT(F58,1))=Low,UnitCostLow, IF(UPPER(RIGHT(F58,1))=High,UnitCostHigh,UnitCostSpecified)),MATCH(UPPER(LEFT(F58,LEN(F58)-1)),CostCode,0))) -> 0 | H58: =G58*E58 -> 0 | J58: =H58*I58 -> 0 | K58: =+H58*(1-I58) -> 0
G59: Annual treatment costs | H59: =SUM(H55:H58)+0.0001 -> 0.0001
B60: Number of years of treatment | D60: years
G61: Total treatment costs | H61: =H59*E60 -> 0 | K61: =H61 -> 0
B62: HEAP LEACH SEEPAGE TREATMENT - ARD/ML**
B63: Upgrade/modify pumping system - report to WTP | D63: allow | F63: =NA() ->  | G63: =IF(ISNA(F63),0,INDEX(IF(UPPER(RIGHT(F63,1))=Low,UnitCostLow, IF(UPPER(RIGHT(F63,1))=High,UnitCostHigh,UnitCostSpecified)),MATCH(UPPER(LEFT(F63,LEN(F63)-1)),CostCode,0))) -> 0 | H63: =G63*E63 -> 0 | K63: =H63 -> 0
G64: Total | H64: =SUM(H5:H52)+H61+H63+0.0001 -> 283749.8658 | J64: =SUM(J5:J52)+J61+J63 -> 283749.8657 | K64: =SUM(K5:K51)+K61+K63 -> 0
G65: % of Total | J65: =J64/H64 -> 0.9999999996 | K65: =K64/H64 -> 0
B67: * For construction of passive treatment system refer to "Water Management". ARD/ML seepage treatment becomes post-closure water treatment cost
B68: **Heap leach ARD/ML seepage treatment becomes post-closure water treatment cost

Sheet Chemicals
A1: 1 | B1: Chemicals/Soil Area Name:
B3: Note: The procedures, equipment and packaging for clean up and removal of chemicals or contaminated soils are highly dependent on the nature of the chemicals and their existing state of containment. Government guidelines should be consulted on an individual chemical basis. Any estimate made here should be considered very rough unless specific evaluations have been conducted.
B4: ACTIVITY/MATERIAL | C4: Notes | D4: Units | E4: Quantity | F4: Cost Code | G4: Unit Cost | H4: Cost | I4: % Land | J4: Land Cost | K4: Water Cost
B5: HAZARDOUS MATERIALS AUDIT
B6: Hazardous materials audit | D6: allow | F6: =NA() ->  | G6: 0 | H6: =G6*E6 -> 0 | I6: 0 | J6: =H6*I6 -> 0 | K6: =+H6*(1-I6) -> 0
B7: BUILDING DECONTAMINATION & CONSOLIDATION OF HAZARDOUS MATERIALS
B8: Environmental technician/coordinator | D8: mandays | F8: =NA() ->  | G8: =IF(ISNA(F8),0,INDEX(IF(UPPER(RIGHT(F8,1))=Low,UnitCostLow, IF(UPPER(RIGHT(F8,1))=High,UnitCostHigh,UnitCostSpecified)),MATCH(UPPER(LEFT(F8,LEN(F8)-1)),CostCode,0))) -> 0 | H8: =G8*E8 -> 0 | J8: =H8*I8 -> 0 | K8: =+H8*(1-I8) -> 0
B9: Decontaminate: oil, fuel | D9: manhours | F9: =NA() ->  | G9: 0 | H9: =G9*E9 -> 0 | J9: =H9*I9 -> 0 | K9: =+H9*(1-I9) -> 0
B10: Decontaminate maintenance shop | D10: mandays | F10: =NA() ->  | G10: 0 | H10: 0 | J10: 0 | K10: 0
B11: Decontaminate power plant | D11: mandays | F11: =NA() ->  | G11: 0 | H11: 0 | J11: 0 | K11: 0
B12: Decontaminate bulk fuel storage | D12: mandays | F12: =NA() ->  | G12: 0 | H12: 0 | J12: 0 | K12: 0
B13: Decontaminate ANFO plant | D13: mandays | F13: =NA() ->  | G13: 0 | H13: 0 | J13: 0 | K13: 0
B14: Decontaminate offices/warehouse/accom | D14: m2 | F14: =NA() ->  | G14: 0 | H14: 0 | J14: 0 | K14: 0
B15: Removal of asbestos siding on buildings | D15: m2 | F15: =NA() ->  | G15: 0 | H15: 0 | J15: 0 | K15: 0
B16: Removal of friable asbestos on equipment | D16: m2 | F16: =NA() ->  | G16: 0 | H16: =G16*E16 -> 0 | J16: =H16*I16 -> 0 | K16: =+H16*(1-I16) -> 0
B17: Other | F17: =NA() ->  | G17: 0 | H17: =G17*E17 -> 0 | J17: =H17*I17 -> 0 | K17: =+H17*(1-I17) -> 0
B18: HAZARDOUS MATERIALS REMOVAL
B19: Waste oils | D19: litre | F19: =NA() ->  | G19: =IF(ISNA(F19),0,INDEX(IF(UPPER(RIGHT(F19,1))=Low,UnitCostLow, IF(UPPER(RIGHT(F19,1))=High,UnitCostHigh,UnitCostSpecified)),MATCH(UPPER(LEFT(F19,LEN(F19)-1)),CostCode,0))) -> 0 | H19: =G19*E19 -> 0 | J19: =H19*I19 -> 0 | K19: =+H19*(1-I19) -> 0
B20: Waste fuel | D20: litre | F20: =NA() ->  | G20: 0 | H20: 0 | J20: 0 | K20: 0
B21: Waste batteries | D21: allow | F21: =NA() ->  | G21: 0 | H21: 0 | J21: 0 | K21: 0
B22: Assay & environmental lab reagents | D22: kg | F22: =NA() ->  | G22: 0 | H22: 0 | J22: 0 | K22: 0
B23: Machine shop paints, solvents etc | D23: litre | F23: =NA() ->  | G23: 0 | H23: 0 | J23: 0 | K23: 0
B24: Glycol | D24: litre | F24: =NA() ->  | G24: 0 | H24: 0 | J24: 0 | K24: 0
B25: Process reagents | D25: kg | F25: =NA() ->  | G25: =IF(ISNA(F25),0,INDEX(IF(UPPER(RIGHT(F25,1))=Low,UnitCostLow, IF(UPPER(RIGHT(F25,1))=High,UnitCostHigh,UnitCostSpecified)),MATCH(UPPER(LEFT(F25,LEN(F25)-1)),CostCode,0))) -> 0 | H25: =G25*E25 -> 0 | J25: =H25*I25 -> 0 | K25: =+H25*(1-I25) -> 0
B26: Nuclear sources | D26: allow | F26: =NA() ->  | G26: =IF(ISNA(F26),0,INDEX(IF(UPPER(RIGHT(F26,1))=Low,UnitCostLow, IF(UPPER(RIGHT(F26,1))=High,UnitCostHigh,UnitCostSpecified)),MATCH(UPPER(LEFT(F26,LEN(F26)-1)),CostCode,0))) -> 0 | H26: =G26*E26 -> 0 | J26: =H26*I26 -> 0 | K26: =+H26*(1-I26) -> 0
B27: Other hazardous materials | D27: allow | F27: =NA() ->  | G27: =IF(ISNA(F27),0,INDEX(IF(UPPER(RIGHT(F27,1))=Low,UnitCostLow, IF(UPPER(RIGHT(F27,1))=High,UnitCostHigh,UnitCostSpecified)),MATCH(UPPER(LEFT(F27,LEN(F27)-1)),CostCode,0))) -> 0 | H27: =G27*E27 -> 0 | J27: =H27*I27 -> 0 | K27: =+H27*(1-I27) -> 0
B28: HAZARDOUS MATERIALS
B29: Transportation to disposal facility | D29: allow | F29: ea | G29: 0 | H29: =G29*E29 -> 0 | J29: =H29*I29 -> 0 | K29: =+H29*(1-I29) -> 0
B30: Disposal fees | D30: allow | F30: ea | G30: 0 | H30: =G30*E30 -> 0 | J30: =H30*I30 -> 0 | K30: =+H30*(1-I30) -> 0
B31: Other | D31: allow | F31: ea | G31: 0 | H31: =G31*E31 -> 0 | J31: =H31*I31 -> 0 | K31: =+H31*(1-I31) -> 0
B32: CONTAMINATED SOILS
B33: Contam. soil investigation - Phase 1 | D33: each | F33: =NA() ->  | G33: 0 | H33: =G33*E33 -> 0 | J33: =H33*I33 -> 0 | K33: =+H33*(1-I33) -> 0
B34: Contam. soil investigation - Phase 2 | D34: allow | F34: =NA() ->  | G34: 0 | H34: =G34*E34 -> 0 | J34: =H34*I34 -> 0 | K34: =+H34*(1-I34) -> 0
B35: CONTAMINATED SOIL REMOVAL
B36: Contaminated Soil Treatment | C36: No 2018 unit rate availabe | D36: m3 | E36: 16164 | F36: 15CSTS | G36: 14.78 | H36: =G36*E36 -> 238903.92 | I36: 1 | J36: =H36*I36 -> 238903.92 | K36: =+H36*(1-I36) -> 0 | M36: No 2018 unit rate availabe
B37: Contaminated Soil Treatment (2017 Work Plan) | C37: Marginal increase associated with 2017 Work Plan. Spill 16-283 at Milne Port Bulk Fuel Tank Farm. No 2018 unit rate availabe | D37: m3 | E37: =4232+4232 -> 8464 | F37: 15CSTS | G37: 14.78 | H37: 125097.92 | I37: 1 | J37: 125097.92 | K37: 0 | M37: No 2018 unit rate availabe
B38: Excavate and transport | D38: m3 | F38: =NA() ->  | G38: =IF(ISNA(F38),0,INDEX(IF(UPPER(RIGHT(F38,1))=Low,UnitCostLow, IF(UPPER(RIGHT(F38,1))=High,UnitCostHigh,UnitCostSpecified)),MATCH(UPPER(LEFT(F38,LEN(F38)-1)),CostCode,0))) -> 0 | H38: 0 | J38: 0 | K38: 0
B39: Manage hydrocarbon remediation | D39: m3 | F39: =NA() ->  | G39: =IF(ISNA(F39),0,INDEX(IF(UPPER(RIGHT(F39,1))=Low,UnitCostLow, IF(UPPER(RIGHT(F39,1))=High,UnitCostHigh,UnitCostSpecified)),MATCH(UPPER(LEFT(F39,LEN(F39)-1)),CostCode,0))) -> 0 | H39: 0 | J39: 0 | K39: 0
B40: Reagents/stabilizing agent | D40: m2 | F40: =NA() ->  | G40: =IF(ISNA(F40),0,INDEX(IF(UPPER(RIGHT(F40,1))=Low,UnitCostLow, IF(UPPER(RIGHT(F40,1))=High,UnitCostHigh,UnitCostSpecified)),MATCH(UPPER(LEFT(F40,LEN(F40)-1)),CostCode,0))) -> 0 | H40: 0 | J40: 0 | K40: 0
B41: Excavate and transport to offsite facility | D41: m3 | F41: =NA() ->  | G41: =IF(ISNA(F41),0,INDEX(IF(UPPER(RIGHT(F41,1))=Low,UnitCostLow, IF(UPPER(RIGHT(F41,1))=High,UnitCostHigh,UnitCostSpecified)),MATCH(UPPER(LEFT(F41,LEN(F41)-1)),CostCode,0))) -> 0 | H41: 0 | J41: 0 | K41: 0
B42: Contour decontaminated area | D42: m3 | F42: =NA() ->  | G42: =IF(ISNA(F42),0,INDEX(IF(UPPER(RIGHT(F42,1))=Low,UnitCostLow, IF(UPPER(RIGHT(F42,1))=High,UnitCostHigh,UnitCostSpecified)),MATCH(UPPER(LEFT(F42,LEN(F42)-1)),CostCode,0))) -> 0 | H42: 0 | J42: 0 | K42: 0
B43: CONTAMINATED SOIL VERY LOW PERMEABILITY COVER
B44: Supply geomembrame, HDPE, ES3, GCL | D44: m2 | F44: =NA() ->  | G44: =IF(ISNA(F44),0,INDEX(IF(UPPER(RIGHT(F44,1))=Low,UnitCostLow, IF(UPPER(RIGHT(F44,1))=High,UnitCostHigh,UnitCostSpecified)),MATCH(UPPER(LEFT(F44,LEN(F44)-1)),CostCode,0))) -> 0 | H44: =G44*E44 -> 0 | J44: =H44*I44 -> 0 | K44: =+H44*(1-I44) -> 0
B45: Upper and lower bedding layers | D45: m3 | F45: =NA() ->  | G45: 0 | H45: 0 | J45: 0 | K45: 0
B46: Install geomembrane, HDPE, ES3, GCL | D46: m2 | F46: =NA() ->  | G46: 0 | H46: 0 | J46: 0 | K46: 0
B47: Erosion protection layer | D47: m3 | F47: =NA() ->  | G47: 0 | H47: 0 | J47: 0 | K47: 0
B48: Vegetate | D48: m2 | F48: =NA() ->  | G48: 0 | H48: 0 | J48: 0 | K48: 0
B49: Install infiltration/seepage instrumentation | D49: allow | F49: =NA() ->  | G49: 0 | H49: 0 | J49: 0 | K49: 0
B50: Other | F50: =NA() ->  | G50: 0 | H50: 0 | J50: 0 | K50: 0
B51: OTHER
B52: Ammonium nitrate (explosive material) | D52: m3 | E52: 2343 | F52: 16AN1S | G52: 358 | H52: =G52*E52 -> 838794 | I52: 1 | J52: =H52*I52 -> 838794 | K52: =+H52*(1-I52) -> 0
B53: Pre-package explosives | D53: kg | E53: 716519 | F53: 16AN2S | G53: 2.37 | H53: =G53*E53 -> 1698150.03 | I53: 1 | J53: =H53*I53 -> 1698150.03 | K53: =+H53*(1-I53) -> 0
F54: =NA() ->  | G54: =IF(ISNA(F54),0,INDEX(IF(UPPER(RIGHT(F54,1))=Low,UnitCostLow, IF(UPPER(RIGHT(F54,1))=High,UnitCostHigh,UnitCostSpecified)),MATCH(UPPER(LEFT(F54,LEN(F54)-1)),CostCode,0))) -> 0 | H54: =G54*E54 -> 0 | J54: =H54*I54 -> 0 | K54: =+H54*(1-I54) -> 0
G55: Total | H55: =SUM(H6:H54)+0.0001 -> 2900945.87 | J55: =SUM(J6:J54) -> 2900945.87 | K55: =SUM(K6:K54) -> 0
G56: % of Total | J56: =J55/H55 -> 1 | K56: =K55/H55 -> 0

Sheet Bldgs & Equip
A1: 1 | B1: Building / Equip Name: | C1: Mine Site | G1: Bldg / Equip #: | H1: 1
B3: ACTIVITY/MATERIAL | C3: Notes | D3: Units | E3: Quantity | F3: Cost Code | G3: Unit Cost | H3: Cost | I3: % Land | J3: Land Cost | K3: Water Cost
B4: DISPOSE MOBILE EQUIPMENT - Unit Costs includes disassembly and decontamination required for on-site disposal, load and transport to landfill
B5: Light Mobile Equipment | C5: Equipment quanties updated to reflect BIMC Nov. 24 EBS revisions. Includes forklifts, picks up, vehicles around five (5) tonnes and under, scissor lift, man lifts, and small garbage bins (Ref 1, pg 24-25). 2017 Work Plan add 6 units. Equipment quanties updated to reflect 2017 Work Plan addendum Table 3-5 30 units. 2017 Actual work as outlined in Table 2-4 of 2018 Marginal Estimate 2018 Work Plan see Table 3-2 | D5: each | E5: =164+253 -> 417 | F5: 18MOLS | G5: 876.92 | H5: =G5*E5 -> 365675.64 | I5: 0.95 | J5: =H5*I5 -> 347391.858 | K5: =+H5*(1-I5) -> 18283.782
B6: Medium Mobile Equipment | C6: Equipment quanties updated to reflect BIMC Nov. 24 EBS revisions.Includes vehicles around 10 tonnes, trailers, buses, tow trucks, large garbage bins and water trucks (Ref 1, pg 24-25). 2017 Work Plan add 10 units. Equipment quanties updated to reflect 2017 Work Plan addendum Table 3-5 40 units. 2017 Actual work as outlined in Table 2-4 of 2018 Marginal Estimate 2018 Work Plan see Table 3-2 | D6: each | E6: =147+288 -> 435 | F6: 18MOMS | G6: 1378.63 | H6: =G6*E6 -> 599704.05 | I6: 0.98 | J6: =H6*I6 -> 587709.969 | K6: =+H6*(1-I6) -> 11994.081
B7: Heavy Mobile Equipment | C7: Equipment quanties updated to reflect BIMC Nov. 24 EBS revisions.Includes vehicles over 10 tonnes, boom trucks, large front end loaders, dump trucks, graders and cranes (Ref 1, pg 24-25). 2017 Work Plan add 21 units. Equipment quanties updated to reflect 2017 Work Plan addendum Table 3-5 92 units. 2017 Actual work as outlined in Table 2-4 of 2018 Marginal Estimate 2018 Work Plan see Table 3-2 | D7: each | E7: =212+161 -> 373 | F7: 18MOHS | G7: 2310.87 | H7: =G7*E7 -> 861954.51 | I7: 0.98 | J7: 844715.4198 | K7: =+H7*(1-I7) -> 17239.0902
B8: DISPOSE MECHANICAL EQUIPMENT - Unit Costs includes disassembly and decontamination required for on-site disposal, load and transport to landfill
B9: Light mechanical equipment - Decontaminate and dispose on-site | C9: Equipment quanties updated to reflect BIMC Nov. 24 EBS revisions.Light equipment includes pumps, fuel dispenser, laboratory equipment, and sample bins (Ref 1, pg 23). 2017 Work Plan add 20 units. 2017 Actual work as outlined in Table 2-4 of 2018 Marginal Estimate | D9: each | E9: =77+14 -> 91 | F9: 18LMES | G9: 1707.45 | H9: =G9*E9 -> 155377.95 | I9: 0.98 | J9: =H9*I9 -> 152270.391 | K9: =+H9*(1-I9) -> 3107.559
B10: Medium mechanical equipment - Decontaminate and dispose on-site | C10: Equipment quanties updated to reflect BIMC Nov. 24 EBS revisions. Medium equipment includes aerodrome equipment, generators, shop / maintenance equipment, screens, and chutes (Ref 1, pg 23). 2017 Work Plan add 2 units. Equipment quanties updated to reflect 2017 Work Plan addendum Table 3-5 12 units. 2017 Actual work as outlined in Table 2-4 of 2018 Marginal Estimate | D10: each | E10: =15+105 -> 120 | F10: 18MMES | G10: 3714.64 | H10: 445756.8 | I10: 1 | J10: 445756.8 | K10: 0
B11: Heavy mechanical equipment - Decontaminate and dispose on-site | C11: Equipment quanties updated to reflect BIMC Nov. 24 EBS revisions. Heavy equipment includes crusher, feeder, power plant generators, large screens, conveyors, and stackers (Ref 2, pg 23). 2017 Work Plan add 1 unit (Truck Wash system). Equipment quanties updated to reflect 2017 Work Plan addendum Table 3-5 4 units. 2017 Actual work as outlined in Table 2-4 of 2018 Marginal Estimate 2018 Work Plan see Table 3-2 | D11: each | E11: =23+15 -> 38 | F11: 18MEHS | G11: 35507.45 | H11: 1349283.1 | I11: 1 | J11: 1349283.1 | K11: 0
B12: Light Tanks | C12: Light non- fuel storage tanks. The cleaning, plugging, disassembly and removal of all associated pipeline infrastructure is included (Ref 1, pg 26). | D12: each | E12: 6 | F12: 18TLS | G12: 1872.41 | H12: 11234.46 | I12: 0 | J12: 0 | K12: 11234.46
C13: Light non- fuel storage tanks. The cleaning, plugging, disassembly and removal of all associated pipeline infrastructure is included (see Tables 2-4 & 3-4 of 2018 Marginal Estimate). | D13: each | E13: 7 | F13: 18TLS | G13: 1872.41 | H13: =G13*E13 -> 13106.87 | I13: 1 | J13: =H13*I13 -> 13106.87 | K13: =+H13*(1-I13) -> 0
B14: Medium Tanks | C14: Medium non- fuel storage tanks. The cleaning, plugging, disassembly and removal of all associated pipeline infrastructure is included (Ref 1, pg 26). | D14: each | E14: 12 | F14: 18MTS | G14: 6386.31 | H14: 76635.72 | I14: 1 | J14: 76635.72 | K14: 0
C15: Medium non- fuel storage tanks. The cleaning, plugging, disassembly and removal of all associated pipeline infrastructure is included (see Tables 2-4 & 3-4 of 2018 Marginal Estimate). | D15: each | E15: 2 | F15: 18MTS | G15: 6386.31 | H15: 12772.62 | I15: 1 | J15: 12772.62 | K15: 0
B16: Light Diesel Tanks | C16: Small fuel tanks (10,000-20,000L) (Ref 1, pg 27) | D16: each | E16: 5 | F16: 18LiDTS | G16: 3193.16 | H16: 15965.8 | I16: 1 | J16: 15965.8 | K16: 0
C17: Small fuel tanks (10,000-20,000L) 2017 actual not previously allocated (see Tables 2-4 & 3-4 of 2018 Marginal Estimate) | D17: each | E17: 10 | F17: 18LiDTS | G17: 3193.16 | H17: 31931.6 | I17: 1 | J17: 31931.6 | K17: 0
B18: Medium Diesel Tanks | C18: Medium fuel tanks (500,000-750,000L). The cleaning, plugging, disassembly and removal of all associated pipeline infrastructure is included (Ref 1, pg 27). | D18: each | E18: 4 | F18: 18MDTS | G18: 13928.01 | H18: 55712.04 | I18: 1 | J18: 55712.04 | K18: 0
C19: Medium fuel storage tanks. The cleaning, plugging, disassembly and removal of all associated pipeline infrastructure is included (Tables 2-4 & 3-4 of 2018 Marginal Estimate). | D19: each | E19: 5 | F19: 18MDTS | G19: 13928.01 | H19: 69640.05 | I19: 1 | J19: 69640.05 | K19: 0
B20: Misc. Items | C20: On-site disposal. Miscellaneous (minor) items were defined as any item less than 200 kg not captured in other unit costs (Ref 1, pg 42). | D20: Lot | E20: 0 | F20: 15MEIS | G20: 529.83 | H20: 0 | I20: 1 | J20: 0 | K20: 0
B21: Fuelk tanks - On-site disposal of medium mobile fuel tanks (3,000 to 500,000 L) | C21: On-site disposal of medium-mobile fuel tanks (3,000 to 500,000L). See table 3-4 of 2018 marginal Estimate | D21: each | E21: =2+16 -> 18 | F21: 18MMFTS | G21: 9031.52 | H21: 162567.36 | I21: 1 | J21: 162567.36 | K21: 0
B22: REMOVE BUILDINGS - Unit Costs include disassembling, removing or securing all items and load and transport
B23: Modular | C23: Trailers and Pre-fabricated buildings 2017 Work Plan Addendum includes 800 person temp hardwall camp , construction offices, lunch rooms and washcars at both Mine Site and Milne Port 2018 Work Plan see table 3-1 | D23: m2 | E23: =9027+13216+1218 -> 23461 | F23: 18RBMS | G23: 59.38 | H23: =G23*E23 -> 1393114.18 | I23: 0.89 | J23: 1239871.62 | K23: =+H23*(1-I23) -> 153242.5598
B24: Fold Away Buildings | D24: m2 | E24: 709 | F24: 18RBFS | G24: 41.57 | H24: 29473.13 | I24: 1 | J24: 29473.13 | K24: 0
B25: Soft-Walled | C25: 2017 Work Plan Addendum soft Walled Buildings includes 50 person camp and 35 person Norse man style camp at Mine Site only | D25: m2 | E25: =6017+1900 -> 7917 | F25: 18RBSS | G25: 40.6 | H25: 321430.2 | I25: 1 | J25: 321430.2 | K25: 0
B26: ISO Shipping Containers (Shelters, Comm. Facilities) | D26: m2 | E26: 30 | F26: 18RBIS | G26: 25.38 | H26: 761.4 | I26: 1 | J26: 761.4 | K26: 0
B27: Office/washcars | C27: 2017 Actual work not previously allocated. See Table 2-4 of 2018 Marginal Estimate. No 2018 unit rate availabe | D27: m2 | E27: 576 | F27: 15RBIS | G27: 102.05 | H27: 58780.8 | I27: 0.89 | J27: 52314.912 | K27: 6465.888 | M27: No 2018 unit rate availabe
B28: Water and Wastewater Treatment Facilities | C28: Equipment quanties updated to reflect 2017 Work Plan addendum Table 3-6 2 units one at Milne Port and one at Mine Site. | D28: each | E28: 2 | F28: 18WWTS | G28: 9649.58 | H28: 19299.16 | I28: 0 | J28: 0 | K28: 19299.16
B29: Power Plant | D29: m2 | F29: brs1h | G29: =IF(ISNA(F29),0,INDEX(IF(UPPER(RIGHT(F29,1))=Low,UnitCostLow, IF(UPPER(RIGHT(F29,1))=High,UnitCostHigh,UnitCostSpecified)),MATCH(UPPER(LEFT(F29,LEN(F29)-1)),CostCode,0))) -> 65 | H29: 0 | J29: 0 | K29: 0
B30: Communication Tower | D30: m2 | F30: brs1h | G30: =IF(ISNA(F30),0,INDEX(IF(UPPER(RIGHT(F30,1))=Low,UnitCostLow, IF(UPPER(RIGHT(F30,1))=High,UnitCostHigh,UnitCostSpecified)),MATCH(UPPER(LEFT(F30,LEN(F30)-1)),CostCode,0))) -> 65 | H30: =G30*E30 -> 0 | J30: =H30*I30 -> 0 | K30: 0
B31: U/G Heating Plant | D31: m2 | F31: =NA() ->  | G31: =IF(ISNA(F31),0,INDEX(IF(UPPER(RIGHT(F31,1))=Low,UnitCostLow, IF(UPPER(RIGHT(F31,1))=High,UnitCostHigh,UnitCostSpecified)),MATCH(UPPER(LEFT(F31,LEN(F31)-1)),CostCode,0))) -> 0 | H31: =G31*E31 -> 0 | J31: =H31*I31 -> 0 | K31: 0
B32: Emulsion Plant | D32: m2 | F32: =NA() ->  | G32: =IF(ISNA(F32),0,INDEX(IF(UPPER(RIGHT(F32,1))=Low,UnitCostLow, IF(UPPER(RIGHT(F32,1))=High,UnitCostHigh,UnitCostSpecified)),MATCH(UPPER(LEFT(F32,LEN(F32)-1)),CostCode,0))) -> 0 | H32: 0 | J32: 0 | K32: 0
B33: AN Storage Facility | D33: m2 | F33: brs1s | G33: 128 | H33: 0 | J33: =H33*I33 -> 0 | K33: 0
B34: Warehouse, Shops and Other | D34: m2 | F34: brs1l | G34: =IF(ISNA(F34),0,INDEX(IF(UPPER(RIGHT(F34,1))=Low,UnitCostLow, IF(UPPER(RIGHT(F34,1))=High,UnitCostHigh,UnitCostSpecified)),MATCH(UPPER(LEFT(F34,LEN(F34)-1)),CostCode,0))) -> 45 | H34: 0 | J34: =H34*I34 -> 0 | K34: 0
B35: Storage Facility at Laydown/Airstrip | D35: m2 | F35: =NA() ->  | G35: =IF(ISNA(F35),0,INDEX(IF(UPPER(RIGHT(F35,1))=Low,UnitCostLow, IF(UPPER(RIGHT(F35,1))=High,UnitCostHigh,UnitCostSpecified)),MATCH(UPPER(LEFT(F35,LEN(F35)-1)),CostCode,0))) -> 0 | H35: 0 | J35: =H35*I35 -> 0 | K35: 0
B36: Fuel tanks | D36: m2 | F36: brs1h | G36: =IF(ISNA(F36),0,INDEX(IF(UPPER(RIGHT(F36,1))=Low,UnitCostLow, IF(UPPER(RIGHT(F36,1))=High,UnitCostHigh,UnitCostSpecified)),MATCH(UPPER(LEFT(F36,LEN(F36)-1)),CostCode,0))) -> 65 | H36: 0 | J36: =H36*I36 -> 0 | K36: 0
B37: Fire Protection pumping station | D37: m | F37: brs1h | G37: =IF(ISNA(F37),0,INDEX(IF(UPPER(RIGHT(F37,1))=Low,UnitCostLow, IF(UPPER(RIGHT(F37,1))=High,UnitCostHigh,UnitCostSpecified)),MATCH(UPPER(LEFT(F37,LEN(F37)-1)),CostCode,0))) -> 65 | H37: 0 | J37: =H37*I37 -> 0 | K37: 0
B38: Freshwater intake | D38: m2 | F38: brs1l | G38: 45 | H38: 0 | J38: 0 | K38: 0
B39: Reclaim pumps | D39: m2 | F39: =NA() ->  | G39: 0 | H39: 0 | J39: 0 | K39: 0
B40: Outfall & Diffuser | D40: m2 | F40: =NA() ->  | G40: 0 | H40: 0 | J40: 0 | K40: 0
B41: Airstrip lighting, navigation, electrician | D41: mandays | F41: =NA() ->  | G41: =IF(ISNA(F41),0,INDEX(IF(UPPER(RIGHT(F41,1))=Low,UnitCostLow, IF(UPPER(RIGHT(F41,1))=High,UnitCostHigh,UnitCostSpecified)),MATCH(UPPER(LEFT(F41,LEN(F41)-1)),CostCode,0))) -> 0 | H41: 0 | J41: 0 | K41: 0
B42: Airstrip lighting, navigation, mechanical | D42: mandays | F42: =NA() ->  | G42: =IF(ISNA(F42),0,INDEX(IF(UPPER(RIGHT(F42,1))=Low,UnitCostLow, IF(UPPER(RIGHT(F42,1))=High,UnitCostHigh,UnitCostSpecified)),MATCH(UPPER(LEFT(F42,LEN(F42)-1)),CostCode,0))) -> 0 | H42: 0 | J42: 0 | K42: 0
B43: Break foundation slabs | D43: m2 | F43: brcs | G43: =IF(ISNA(F43),0,INDEX(IF(UPPER(RIGHT(F43,1))=Low,UnitCostLow, IF(UPPER(RIGHT(F43,1))=High,UnitCostHigh,UnitCostSpecified)),MATCH(UPPER(LEFT(F43,LEN(F43)-1)),CostCode,0))) -> 6 | H43: =G43*E43 -> 0 | J43: =H43*I43 -> 0 | K43: 0
B44: Consolidate & dump boneyard debris | D44: allow | F44: brs1l | G44: 45 | H44: 0 | J44: 0 | K44: 0
B45: Worker Dry | D45: m2 | F45: brs1l | G45: 45 | H45: =G45*E45 -> 0 | J45: =H45*I45 -> 0 | K45: 0
B46: WTP & Fresh Water Pumping Station | D46: m2 | F46: brs1l | G46: 45 | H46: =G46*E46 -> 0 | J46: =H46*I46 -> 0 | K46: 0
B47: WRSF Pond and Attenuation Pond Pumphouses | D47: m2 | F47: brs1l | G47: 45 | H47: =G47*E47 -> 0 | J47: =H47*I47 -> 0 | K47: 0
B48: Water Intake | D48: m2 | F48: brcs | G48: 6 | H48: =G48*E48 -> 0 | J48: =H48*I48 -> 0 | K48: 0
B49: Other | D49: m2 | F49: bdcs | G49: 12.63 | H49: 0 | J49: 0 | K49: 0
B50: REMOVE CONTAMINATED BUILDINGS - Unit Costs include disassembling, removing or securing all items, decontamination and load and transport
B51: Modular | C51: Trailers and pre-fabricated buildings. (Ref 1, pg 29). | D51: m2 | E51: =1556+1556 -> 3112 | F51: 18RCBMS | G51: 123.02 | H51: =G51*E51 -> 382838.24 | I51: 1 | J51: =H51*I51 -> 382838.24 | K51: =+H51*(1-I51) -> 0
B52: Fold Away Buildings | C52: 2017 Work Plan add 1500 m2 Truck wash Building 2018 Work Plan see table 3-1 add 4230 m2 | D52: m2 | E52: =10227+4230 -> 14457 | F52: 18RCBFS | G52: 122.25 | H52: 1767368.25 | I52: 1 | J52: 1767368.25 | K52: 0
B53: Soft-Walled | C53: 2017 Work Plan Addendum Maintenance Garage at Mine Site | D53: m2 | E53: =2046 -> 2046 | F53: 18RCBSS | G53: 127.32 | H53: =G53*E53 -> 260496.72 | I53: 1 | J53: =H53*I53 -> 260496.72 | K53: =+H53*(1-I53) -> 0
B54: ISO Shipping Containers (Shelters, Comm. Facilities) | C54: 2017 Work Plan add 500 m2 Tire Shop | D54: m2 | E54: 604 | F54: 18RCBIS | G54: 123.02 | H54: 74304.08 | I54: 1 | J54: 74304.08 | K54: 0 | M54: No 2018 unit rate availabe
B55: Temporary Construction Warehouse and Office Allowance | C55: No 2018 unit rate availabe | D55: m2 | E55: 1 | F55: 18RCBTS | G55: 25000 | H55: 25000 | I55: 1 | J55: 25000 | K55: 0 | M55: No 2018 unit rate availabe
B56: BREAK FOUNDATIONS
B57: Precast Foundations | C57: Includes load and transport of precast concrete foundations (Ref 1, pg 34). Add 2017 Work Plan Truck Wash Building foundation of 1500 m2. Add 2017 Work Plan addendum 800 person temp hard walled camp at mine 4333 m2. | D57: m2 | E57: =9024+4333 -> 13357 | F57: 18FCS | G57: 32.88 | H57: =G57*E57 -> 439178.16 | I57: 1 | J57: =H57*I57 -> 439178.16 | K57: =+H57*(1-I57) -> 0
B58: Slab on Grade | C58: Includes perforating the concrete slabs on grade Includes perforating the concrete slabs on grade 2017 Work Plan Addendum for pre-cast conrete foundation and Maintenance Garages at Mine Site 2046 m2 | D58: m2 | E58: =15704+2046 -> 17750 | F58: 18FSS | G58: 33.11 | H58: 587702.5 | I58: 1 | J58: 587702.5 | K58: 0
B59: Timber Cribbing | C59: Includes disassemby load and transport of the timber cribbing | D59: m2 | E59: 1102 | F59: 18TCS | G59: 17.76 | H59: 19571.52 | I59: 1 | J59: 19571.52 | K59: 0
B60: GRADE AND CONTOUR, GENERAL - Unit costs are inclusive of backfill, compaction and sacrfication with a dozer
B61: Grade and contour laydown areas | C61: In 2017 Work Plan Addendum - Mine Site 60000 m2 Removed in 2018 Work Plan for Mine Site (reconciliation of 2017 work plan addendum) -15000m2 2018 Work Plan See Table 3-3 in Marginal Estimate 11400 m2 2017 Actual work not previously allocated (laydown 1, 2A and 2B) 44250 m2 | D61: m2 | E61: =62193+100650 -> 162843 | F61: 18GCS | G61: 1.493420346 | H61: =G61*E61 -> 243193.0494 | I61: 1 | J61: 243193.0494 | K61: =+H61*(1-I61) -> 0
B62: Grade and contour building footprints | D62: m2 | E62: 223 | F62: 18GCS | G62: 1.493420346 | H62: 333.0327371 | I62: 1 | J62: 333.0327371 | K62: 0
B63: Grade and contour infrastructure pads | C63: Add 2017 Work Plan Addendum - Camp pad 45000m2 | D63: m2 | E63: =157201+45000 -> 202201 | F63: 18GCS | G63: 1.493420346 | H63: 301971.0873 | I63: 1 | J63: 301971.0873 | K63: 0
B64: Aerodome Facilities | D64: m2 | E64: 5776 | F64: 18GCS | G64: 1.493420346 | H64: 8625.995917 | I64: 1 | J64: 8625.995917 | K64: 0
B65: Road | D65: m2 | E65: 121619 | F65: 18GCS | G65: 1.493420346 | H65: 181628.289 | I65: 1 | J65: 181628.289 | K65: 0
B66: Stockpiles | C66: Add 2017 Work Plan Increase in Crusher Pad Storage Area - Ph 1: 8,200m2 & Ph 2: 17,500m2 | D66: m2 | E66: 30800 | F66: 18GCS | G66: 1.493420346 | H66: =G66*E66 -> 45997.34665 | I66: 1 | J66: =H66*I66 -> 45997.34665 | K66: =+H66*(1-I66) -> 0
B67: Truck weigh facility distributed area | D67: m2 | E67: 13000 | F67: 18GCS | G67: 1.493420346 | H67: =G67*E67 -> 19414.4645 | I67: 1 | J67: =H67*I67 -> 19414.4645 | K67: =+H67*(1-I67) -> 0
B68: U/G Heating Plant | D68: m2 | F68: =NA() ->  | G68: =IF(ISNA(F68),0,INDEX(IF(UPPER(RIGHT(F68,1))=Low,UnitCostLow, IF(UPPER(RIGHT(F68,1))=High,UnitCostHigh,UnitCostSpecified)),MATCH(UPPER(LEFT(F68,LEN(F68)-1)),CostCode,0))) -> 0 | H68: 0 | J68: 0 | K68: 0
B69: Emulsion Plant | D69: m2 | F69: =NA() ->  | G69: =IF(ISNA(F69),0,INDEX(IF(UPPER(RIGHT(F69,1))=Low,UnitCostLow, IF(UPPER(RIGHT(F69,1))=High,UnitCostHigh,UnitCostSpecified)),MATCH(UPPER(LEFT(F69,LEN(F69)-1)),CostCode,0))) -> 0 | H69: 0 | J69: 0 | K69: 0
B70: Warehouse, Shops and Other | D70: m2 | F70: AE | G70: 8.47 | H70: 0 | J70: 0 | K70: 0
B71: Fuel tanks on site for bulk fuel storage | D71: m2 | F71: AE | G71: 8.47 | H71: 0 | J71: 0 | K71: 0
B72: Fire Protection pumping station | D72: m2 | F72: AE | G72: 8.47 | H72: 0 | J72: 0 | K72: 0
B73: Worker Dry | D73: m2 | F73: AE | G73: 8.47 | H73: 0 | J73: 0 | K73: 0
B74: WTP & Fresh Water Pumping Station | D74: m2 | F74: AE | G74: 8.47 | H74: 0 | J74: 0 | K74: 0
B75: WRSF Pond and Attenuation Pond Pumphouses | D75: m2 | F75: AE | G75: 8.47 | H75: 0 | J75: 0 | K75: 0
B76: Other | D76: ha | F76: scfyl | G76: =IF(ISNA(F76),0,INDEX(IF(UPPER(RIGHT(F76,1))=Low,UnitCostLow, IF(UPPER(RIGHT(F76,1))=High,UnitCostHigh,UnitCostSpecified)),MATCH(UPPER(LEFT(F76,LEN(F76)-1)),CostCode,0))) -> 4300 | H76: 0 | J76: 0 | K76: 0
B77: GRADE AND CONTOUR, WITH LINER - Unit costs include liner removal and disposal, backfill, compaction and sacrfication with a dozer
B78: Waste Disposal | D78: m2 | E78: 900 | F78: 18GCLS | G78: 4.99 | H78: =G78*E78 -> 4491 | I78: 1 | J78: 4491 | K78: 0
B79: Fuel tank farm dyke | D79: m2 | E79: 1911 | F79: 18GCLS | G79: 4.99 | H79: =G79*E79 -> 9535.89 | I79: 1 | J79: =H79*I79 -> 9535.89 | K79: =+H79*(1-I79) -> 0
B80: Hazardous waste berm | D80: m2 | E80: 2106 | F80: 18GCLS | G80: 4.99 | H80: 10508.94 | I80: 1 | J80: 10508.94 | K80: 0
B81: Bulk fuel storage facility (Bladder Farm) | D81: m2 | E81: 5788 | F81: 18GCLS | G81: 4.99 | H81: 28882.12 | I81: 1 | J81: 28882.12 | K81: 0
B82: Crusher Pad Sedimentation Pond | C82: 2018 Work Plan See Table 3-3 in Marginal Estimate | D82: m2 | E82: 4500 | F82: 18GCLS | G82: 4.99 | H82: 22455 | I82: 1 | J82: 22455 | K82: 0
B83: Mine Site Soft Wall Maintenance Garages | C83: 2017 Work Plan Addendum | D83: m2 | E83: 2046 | F83: 18GCLS | G83: 4.99 | H83: 10209.54 | I83: 1 | J83: 10209.54 | K83: 0
B84: Other | D84: m2 | E84: 5812 | F84: 18GCLS | G84: 4.99 | H84: 29001.88 | I84: 1 | J84: 29001.88 | K84: 0
B85: LANDFILL FOR DEMOLITION WASTE
B86: Place fill material over demolition waste (Mine Site Landfill) | C86: Includes drill and blasting of material aggregated crushing, excavation of fill, load and haul of fill material, backfill and compact source of material, and fill application. Assumes avg fill depth 1.5m over 6m of demolition waste (Ref 1, pg 17). For 2018 work plan see table 3-9 in the Marginal estimate for quantity and 2017 Work Plan Addendum Table 3-8 Add 8948 m2 | D86: m2 | E86: =11120+8948 -> 20068 | F86: 18PFS | G86: 44.37 | H86: =G86*E86 -> 890417.16 | I86: 1 | J86: =H86*I86 -> 890417.16 | K86: =+H86*(1-I86) -> 0
B87: SPECIALIZED ITEMS
B88: Electrical Cable | C88: Includes the removal, loading, hauling and disposal of cable (Ref 1, pg 41). 2017 Work Plan add 3500 m of cable. | D88: m | E88: 19700 | F88: 18ECS | G88: 22.64 | H88: =G88*E88 -> 446008 | I88: 1 | J88: =H88*I88 -> 446008 | K88: =+H88*(1-I88) -> 0
B89: Incinerator | C89: Equipment quanties updated to reflect 2017 Work Plan addendum Table 3-6 2 units one at Milne Port and one at Mine Site. | D89: each | E89: 2 | F89: 18FIS | G89: 8743.93 | H89: 17487.86 | I89: 1 | J89: 17487.86 | K89: 0
B90: Potable Water | C90: Equipment quanties updated to reflect 2017 Work Plan addendum Table 3-6 2 units one at Milne Port and one at Mine Site. | D90: each | E90: 2 | F90: 18PWS | G90: 8743.93 | H90: 17487.86 | J90: 0 | K90: 17487.86
G91: Total | H91: =SUM(H5:H90)+0.0001 -> 11894285.43 | J91: =SUM(J5:J90) -> 11635930.99 | K91: =SUM(K5:K90) -> 258354.44
G92: % of Total | J92: =J91/H91 -> 0.9782791121 | K92: =K91/H91 -> 0.02172088787
B94: Note:

Sheet Bldgs & Equip (2)
A1: 1 | B1: Building / Equip Name: | C1: Milne Port | G1: Bldg / Equip #: | H1: 2
B3: ACTIVITY/MATERIAL | C3: Notes | D3: Units | E3: Quantity | F3: Cost Code | G3: Unit Cost | H3: Cost | I3: % Land | J3: Land Cost | K3: Water Cost
B4: DISPOSE MOBILE EQUIPMENT - Unit Costs includes disassembly and decontamination required for on-site disposal, load and transport to landfill
B5: Light Mobile Equipment | C5: Equipment quanties updated to reflect BIMC Nov. 24 EBS revisions. Includes forklifts, picks up, vehicles around five (5) tonnes and under, scissor lift, man lifts, and small garbage bins (Ref 1, pg 24-25). 2017 Work Plan add 6 units. | D5: each | E5: 104 | F5: 18MOLS | G5: 876.92 | H5: =G5*E5 -> 91199.68 | I5: 0.98 | J5: =H5*I5 -> 89375.6864 | K5: =+H5*(1-I5) -> 1823.9936
B6: Medium Mobile Equipment | C6: Includes vehicles around 10 tonnes, trailers, buses, tow trucks, large garbage bins and water trucks (Ref 1, pg 24-25). | D6: each | E6: 48 | F6: 18MOMS | G6: 1378.63 | H6: =G6*E6 -> 66174.24 | I6: 0.95 | J6: =H6*I6 -> 62865.528 | K6: =+H6*(1-I6) -> 3308.712
B7: Heavy Mobile Equipment | C7: Equipment quanties updated to reflect BIMC Nov. 24 EBS revisions. Includes vehicles over 10 tonnes, boom trucks, large front end loaders, dump trucks, graders and cranes (Ref 1, pg 24-25). 2017 Work Plan add 4 units. | D7: each | E7: 63 | F7: 18MOHS | G7: 2310.87 | H7: =G7*E7 -> 145584.81 | I7: 1 | J7: 145584.81 | K7: =+H7*(1-I7) -> 0
B8: Other (reclaim conveyor) | C8: Equipment quanties updated to reflect BIMC Nov. 24 EBS revisions. Conveyors have been classified as large mobile equipment, with the exception of the reclaim conveyor (850m in length). (Ref 1, pg 40). For 2017 Work Plan add 0.1667 units for for cross conveyor which is 1/6th of Reclaim Conveyor length. 2017 Work Plan Addendum this work was removed | D8: each | E8: 1.1667 | F8: 18MORS | G8: 1136232.91 | H8: =G8*E8 -> 1325642.936 | I8: 1 | J8: =H8*I8 -> 1325642.936 | K8: =+H8*(1-I8) -> 0 | M8: NOTE THIS Additional work never happened
B9: DISPOSE MECHANICAL EQUIPMENT - Unit Costs includes disassembly and decontamination required for on-site disposal, load and transport to landfill
B10: Light mechanical equipment - Decontaminate and dispose on-site | C10: Equipment quanties updated to reflect BIMC Nov. 24 EBS revisions. Light equipment includes pumps, fuel dispenser, laboratory equipment, and sample bins (Ref 1, pg 23). 2017 Work Plan add 20 units. | D10: each | E10: 58 | F10: 18LMES | G10: 1707.45 | H10: =G10*E10 -> 99032.1 | I10: 0.98 | J10: =H10*I10 -> 97051.458 | K10: =+H10*(1-I10) -> 1980.642
B11: Medium mechanical equipment - Decontaminate and dispose on-site | C11: Equipment quanties updated to reflect BIMC Nov. 24 EBS revisions. Medium equipment includes aerodrome equipment, generators, shop / maintenance equipment, screens, and chutes (Ref 1, pg 23). 2017 Work Plan add 16 units. | D11: each | E11: 19 | F11: 18MMES | G11: 3714.64 | H11: 70578.16 | I11: 1 | J11: 70578.16 | K11: 0
B12: Heavy mechanical equipment - Decontaminate and dispose on-site | C12: Equipment quanties updated to reflect BIMC Nov. 24 EBS revisions. Heavy equipment includes crusher, feeder, power plant generators, large screens, conveyors, and stackers (Ref 2, pg 23). 2017 Work Plan add 1 unit (Cone Crusher). | D12: each | E12: 4 | F12: 18MEHS | G12: 35507.45 | H12: 142029.8 | I12: 1 | J12: 142029.8 | K12: 0
B13: Light Tanks | C13: Light non- fuel storage tanks. The cleaning, plugging, disassembly and removal of all associated pipeline infrastructure is included (Ref 1, pg 26). | D13: each | E13: 3 | F13: 18TLS | G13: 1872.41 | H13: 5617.23 | I13: 0 | J13: 0 | K13: 5617.23
B14: Medium Tanks | C14: Medium non- fuel storage tanks. The cleaning, plugging, disassembly and removal of all associated pipeline infrastructure is included (Ref 1, pg 26). | D14: each | E14: 0 | F14: 15MTS | G14: 6386.31 | H14: 0 | I14: 0 | J14: 0 | K14: 0
B15: Light Diesel Tanks | C15: Small fuel tanks (10,000-20,000L) (Ref 1, pg 27) | D15: each | E15: 1 | F15: 18LiDTS | G15: 3193.16 | H15: 3193.16 | I15: 1 | J15: 3193.16 | K15: 0
B16: Medium Diesel Tanks | C16: Medium fuel tanks (500,000-750,000L). The cleaning, plugging, disassembly and removal of all associated pipeline infrastructure is included (Ref 1, pg 27). Add a tank from the 2017 Work Plan Addendum - Milne Port | D16: each | E16: 1 | F16: 18MDTS | G16: 13928.01 | H16: 13928.01 | I16: 1 | J16: 13928.01 | K16: 0
B17: Large Diesel Tanks | C17: Large fuel tanks (3ML-5ML). The cleaning, plugging, disassembly and removal of all associated pipeline infrastructure is included (Ref 1, pg 27). Add a tank from the 2017 Work Plan Addendum - Milne Port | D17: each | E17: 1 | F17: 18LDTS | G17: 91285.24 | H17: =G17*E17 -> 91285.24 | I17: 1 | J17: =H17*I17 -> 91285.24 | K17: =+H17*(1-I17) -> 0
B18: Largest Diesel Tanks | C18: Largest fuel tanks (>5ML-15ML). The cleaning, plugging, disassembly and removal of all associated pipeline infrastructure is included (Ref 1, pg 27). Add a tank from the 2017 Work Plan Addendum - Milne Port | D18: each | E18: 1 | F18: 18LDTS | G18: 147297.85 | H18: 147297.85 | I18: 1 | J18: 147297.85 | K18: 0
B19: Misc. Items | C19: On-site disposal. Miscellaneous (minor) items were defined as any item less than 200 kg not captured in other unit costs (Ref 1, pg 42). | D19: each | E19: 0 | F19: 15MEIS | G19: 452.83 | H19: 0 | I19: 1 | J19: 0 | K19: 0
B20: REMOVE BUILDINGS - Unit Costs include disassembling, removing or securing all items and load and transport
B21: Modular | C21: Trailers and pre-fabricated buildings. (Ref 1, pg 29). Add 2017 Work Plan 49-person Camp (ATCO, not soft-walled, 950 m2) Add 2017 Work Plan Addendum includes 380 person temp hardwall camp , construction offices, lunch rooms and washcars at both Mine Site and Milne Port10936m2 Add 2018 Work Plan see table 3-1 1218m2 | D21: m2 | E21: =6471+12154 -> 18625 | F21: 18RBMS | G21: 50.75 | H21: =G21*E21 -> 945218.75 | I21: 1 | J21: 945218.75 | K21: =+H21*(1-I21) -> 0
B22: Fold Away Buildings | D22: m2 | E22: 1525 | F22: 18RBFS | G22: 35.53 | H22: 54183.25 | I22: 1 | J22: 54183.25 | K22: 0
B23: Soft-Walled | D23: m2 | E23: 5392.34 | F23: 18RBSS | G23: 40.6 | H23: 218929.004 | I23: 1 | J23: 218929.004 | K23: 0
B24: ISO Shipping Containers (Shelters, Comm. Facilities) | D24: m2 | E24: 15 | F24: 18RBIS | G24: 25.38 | H24: 380.7 | I24: 1 | J24: 380.7 | K24: 0
B25: Water and Wastewater Treatment Facilities | C25: 2015 Security Assessment pg 39 Equipment quanties updated to reflect 2017 Work Plan addendum Table 3-6 2 units one at Milne Port and one at Mine Site. | D25: each | E25: 2 | F25: 18WWTS | G25: 9649.58 | H25: 19299.16 | I25: 0 | J25: 0 | K25: 19299.16
B26: Power Plant | D26: m2 | F26: brs1h | G26: =IF(ISNA(F26),0,INDEX(IF(UPPER(RIGHT(F26,1))=Low,UnitCostLow, IF(UPPER(RIGHT(F26,1))=High,UnitCostHigh,UnitCostSpecified)),MATCH(UPPER(LEFT(F26,LEN(F26)-1)),CostCode,0))) -> 65 | H26: 0 | J26: 0 | K26: 0
B27: Communication Tower | D27: m2 | F27: brs1h | G27: =IF(ISNA(F27),0,INDEX(IF(UPPER(RIGHT(F27,1))=Low,UnitCostLow, IF(UPPER(RIGHT(F27,1))=High,UnitCostHigh,UnitCostSpecified)),MATCH(UPPER(LEFT(F27,LEN(F27)-1)),CostCode,0))) -> 65 | H27: =G27*E27 -> 0 | J27: =H27*I27 -> 0 | K27: 0
B28: U/G Heating Plant | D28: m2 | F28: =NA() ->  | G28: =IF(ISNA(F28),0,INDEX(IF(UPPER(RIGHT(F28,1))=Low,UnitCostLow, IF(UPPER(RIGHT(F28,1))=High,UnitCostHigh,UnitCostSpecified)),MATCH(UPPER(LEFT(F28,LEN(F28)-1)),CostCode,0))) -> 0 | H28: =G28*E28 -> 0 | J28: =H28*I28 -> 0 | K28: 0
B29: Emulsion Plant | D29: m2 | F29: =NA() ->  | G29: =IF(ISNA(F29),0,INDEX(IF(UPPER(RIGHT(F29,1))=Low,UnitCostLow, IF(UPPER(RIGHT(F29,1))=High,UnitCostHigh,UnitCostSpecified)),MATCH(UPPER(LEFT(F29,LEN(F29)-1)),CostCode,0))) -> 0 | H29: 0 | J29: 0 | K29: 0
B30: AN Storage Facility | D30: m2 | F30: brs1s | G30: 128 | H30: 0 | J30: =H30*I30 -> 0 | K30: 0
B31: Warehouse, Shops and Other | D31: m2 | F31: brs1l | G31: =IF(ISNA(F31),0,INDEX(IF(UPPER(RIGHT(F31,1))=Low,UnitCostLow, IF(UPPER(RIGHT(F31,1))=High,UnitCostHigh,UnitCostSpecified)),MATCH(UPPER(LEFT(F31,LEN(F31)-1)),CostCode,0))) -> 45 | H31: 0 | J31: =H31*I31 -> 0 | K31: 0
B32: Storage Facility at Laydown/Airstrip | D32: m2 | F32: =NA() ->  | G32: =IF(ISNA(F32),0,INDEX(IF(UPPER(RIGHT(F32,1))=Low,UnitCostLow, IF(UPPER(RIGHT(F32,1))=High,UnitCostHigh,UnitCostSpecified)),MATCH(UPPER(LEFT(F32,LEN(F32)-1)),CostCode,0))) -> 0 | H32: 0 | J32: =H32*I32 -> 0 | K32: 0
B33: Fuel tanks | D33: m2 | F33: brs1h | G33: =IF(ISNA(F33),0,INDEX(IF(UPPER(RIGHT(F33,1))=Low,UnitCostLow, IF(UPPER(RIGHT(F33,1))=High,UnitCostHigh,UnitCostSpecified)),MATCH(UPPER(LEFT(F33,LEN(F33)-1)),CostCode,0))) -> 65 | H33: 0 | J33: =H33*I33 -> 0 | K33: 0
B34: Fire Protection pumping station | D34: m | F34: brs1h | G34: =IF(ISNA(F34),0,INDEX(IF(UPPER(RIGHT(F34,1))=Low,UnitCostLow, IF(UPPER(RIGHT(F34,1))=High,UnitCostHigh,UnitCostSpecified)),MATCH(UPPER(LEFT(F34,LEN(F34)-1)),CostCode,0))) -> 65 | H34: 0 | J34: =H34*I34 -> 0 | K34: 0
B35: Freshwater intake | D35: m2 | F35: brs1l | G35: 45 | H35: 0 | J35: 0 | K35: 0
B36: Reclaim pumps | D36: m2 | F36: =NA() ->  | G36: 0 | H36: 0 | J36: 0 | K36: 0
B37: Outfall & Diffuser | D37: m2 | F37: =NA() ->  | G37: 0 | H37: 0 | J37: 0 | K37: 0
B38: Airstrip lighting, navigation, electrician | D38: mandays | F38: =NA() ->  | G38: =IF(ISNA(F38),0,INDEX(IF(UPPER(RIGHT(F38,1))=Low,UnitCostLow, IF(UPPER(RIGHT(F38,1))=High,UnitCostHigh,UnitCostSpecified)),MATCH(UPPER(LEFT(F38,LEN(F38)-1)),CostCode,0))) -> 0 | H38: 0 | J38: 0 | K38: 0
B39: Airstrip lighting, navigation, mechanical | D39: mandays | F39: =NA() ->  | G39: =IF(ISNA(F39),0,INDEX(IF(UPPER(RIGHT(F39,1))=Low,UnitCostLow, IF(UPPER(RIGHT(F39,1))=High,UnitCostHigh,UnitCostSpecified)),MATCH(UPPER(LEFT(F39,LEN(F39)-1)),CostCode,0))) -> 0 | H39: 0 | J39: 0 | K39: 0
B40: Break foundation slabs | D40: m2 | F40: brcs | G40: =IF(ISNA(F40),0,INDEX(IF(UPPER(RIGHT(F40,1))=Low,UnitCostLow, IF(UPPER(RIGHT(F40,1))=High,UnitCostHigh,UnitCostSpecified)),MATCH(UPPER(LEFT(F40,LEN(F40)-1)),CostCode,0))) -> 6 | H40: =G40*E40 -> 0 | J40: =H40*I40 -> 0 | K40: 0
B41: Consolidate & dump boneyard debris | D41: allow | F41: brs1l | G41: 45 | H41: 0 | J41: 0 | K41: 0
B42: Worker Dry | D42: m2 | F42: brs1l | G42: 45 | H42: =G42*E42 -> 0 | J42: =H42*I42 -> 0 | K42: 0
B43: WTP & Fresh Water Pumping Station | D43: m2 | F43: brs1l | G43: 45 | H43: =G43*E43 -> 0 | J43: =H43*I43 -> 0 | K43: 0
B44: WRSF Pond and Attenuation Pond Pumphouses | D44: m2 | F44: brs1l | G44: 45 | H44: =G44*E44 -> 0 | J44: =H44*I44 -> 0 | K44: 0
B45: Water Intake | D45: m2 | F45: brcs | G45: 6 | H45: =G45*E45 -> 0 | J45: =H45*I45 -> 0 | K45: 0
B46: Other | D46: m2 | F46: bdcs | G46: 12.63 | H46: 0 | J46: 0 | K46: 0
B47: REMOVE CONTAMINATED BUILDINGS - Unit Costs include disassembling, removing or securing all items, decontamination and load and transport
B48: Modular | C48: Trailers and pre-fabricated buildings. (Ref 1, pg 29). | D48: m2 | E48: 1171 | F48: 18RCBMS | G48: 123.02 | H48: =G48*E48 -> 144056.42 | I48: 0.85 | J48: =H48*I48 -> 122447.957 | K48: =+H48*(1-I48) -> 21608.463
B49: Fold Away Buildings | D49: m2 | E49: 3194 | F49: 18RCBFS | G49: 122.25 | H49: 390466.5 | I49: 1 | J49: 390466.5 | K49: 0
B50: Soft-Walled | C50: Add 2017 Work Plan Addendum Maintenance Garage at Milne Port 2046m2 | D50: m2 | E50: =2131+2046 -> 4177 | F50: 18RCBSS | G50: 127.32 | H50: =G50*E50 -> 531815.64 | I50: 1 | J50: =H50*I50 -> 531815.64 | K50: =+H50*(1-I50) -> 0
B51: ISO Shipping Containers (Shelters, Comm. Facilities) | D51: m2 | E51: 134 | F51: 18RCBIS | G51: 123.02 | H51: 16484.68 | I51: 1 | J51: 16484.68 | K51: 0
B52: Temporary Construction Warehouse and Office Allowance | C52: No 2018 unit rate availabe | D52: m2 | E52: 1 | F52: 15RCBTS | G52: 25000 | H52: 25000 | I52: 1 | J52: 25000 | K52: 0 | M52: No 2018 unit rate availabe
B53: BREAK FOUNDATIONS
B54: Precast Foundations | C54: Includes load and transport of precast concrete foundations (Ref 1, pg 34). | D54: m2 | E54: 3513 | F54: 18FCS | G54: 32.88 | H54: =G54*E54 -> 115507.44 | I54: 1 | J54: =H54*I54 -> 115507.44 | K54: =+H54*(1-I54) -> 0
B55: Slab on Grade | C55: Includes perforating the concrete slabs on grade Includes perforating the concrete slabs on grade 2017 Work Plan Addendum for pre-cast conrete foundation and Maintenance Garages at Milne Site Add 10046 m2 | D55: m2 | E55: =1766+10046 -> 11812 | F55: 18FSS | G55: 33.11 | H55: 391095.32 | I55: 1 | J55: 391095.32 | K55: 0
B56: Timber Cribbing | C56: Includes disassemby load and transport of the timber cribbing | D56: m2 | E56: 732 | F56: 18TCS | G56: 17.76 | H56: 13000.32 | I56: 1 | J56: 13000.32 | K56: 0
B57: GRADE AND CONTOUR, GENERAL - Unit costs are inclusive of backfill, compaction and sacrfication with a dozer
B58: Grade and contour laydown areas | C58: Removed in 2017 Work Plan addendum for Milne Port -150000 m2 In 2017 Work Plan Addendum - Milne Port add 150000 m2 2018 Work Plan See Table 3-3 in Marginal Estimate add 308000 m2 2017 actual work not previously allocated (W1,W3,W6, W7, W10B, W11, W14 AND W15) see table 2-2 of 2018 work plan add 81730 m2 | D58: m2 | E58: =312921+389730 -> 702651 | F58: 18GCS | G58: 1.493420346 | H58: =G58*E58 -> 1049353.299 | I58: 1 | J58: 1049353.299 | K58: =+H58*(1-I58) -> 0
B59: Grade and contour building footprints | D59: m2 | E59: 14306 | F59: 18GCS | G59: 1.493420346 | H59: 21364.87147 | I59: 1 | J59: 21364.87147 | K59: 0
B60: Grade and contour infrastructure pads | D60: m2 | E60: 66536 | F60: 18GCS | G60: 1.493420346 | H60: 99366.21613 | I60: 1 | J60: 99366.21613 | K60: 0
B61: Road | D61: m2 | E61: 12149 | F61: 18GCS | G61: 1.493420346 | H61: 18143.56378 | I61: 1 | J61: 18143.56378 | K61: 0
B62: Stockpiles | C62: Add 2017 Work Plan Increase in Ore Stockpile Storage Area - Ph 1: 36,900m2 & Ph 2: 45,100m2 | D62: m2 | E62: 216046 | F62: 18GCS | G62: 1.493420346 | H62: =G62*E62 -> 322647.492 | I62: 1 | J62: =H62*I62 -> 322647.492 | K62: =+H62*(1-I62) -> 0
B63: U/G Heating Plant | D63: m2 | F63: =NA() ->  | G63: =IF(ISNA(F63),0,INDEX(IF(UPPER(RIGHT(F63,1))=Low,UnitCostLow, IF(UPPER(RIGHT(F63,1))=High,UnitCostHigh,UnitCostSpecified)),MATCH(UPPER(LEFT(F63,LEN(F63)-1)),CostCode,0))) -> 0 | H63: 0 | J63: 0 | K63: 0
B64: Emulsion Plant | D64: m2 | F64: =NA() ->  | G64: =IF(ISNA(F64),0,INDEX(IF(UPPER(RIGHT(F64,1))=Low,UnitCostLow, IF(UPPER(RIGHT(F64,1))=High,UnitCostHigh,UnitCostSpecified)),MATCH(UPPER(LEFT(F64,LEN(F64)-1)),CostCode,0))) -> 0 | H64: 0 | J64: 0 | K64: 0
B65: Warehouse, Shops and Other | D65: m2 | F65: AE | G65: 8.47 | H65: 0 | J65: 0 | K65: 0
B66: Fuel tanks on site for bulk fuel storage | D66: m2 | F66: AE | G66: 8.47 | H66: 0 | J66: 0 | K66: 0
B67: Fire Protection pumping station | D67: m2 | F67: AE | G67: 8.47 | H67: 0 | J67: 0 | K67: 0
B68: Worker Dry | D68: m2 | F68: AE | G68: 8.47 | H68: 0 | J68: 0 | K68: 0
B69: WTP & Fresh Water Pumping Station | D69: m2 | F69: AE | G69: 8.47 | H69: 0 | J69: 0 | K69: 0
B70: WRSF Pond and Attenuation Pond Pumphouses | D70: m2 | F70: AE | G70: 8.47 | H70: 0 | J70: 0 | K70: 0
B71: Other | D71: ha | F71: scfyl | G71: =IF(ISNA(F71),0,INDEX(IF(UPPER(RIGHT(F71,1))=Low,UnitCostLow, IF(UPPER(RIGHT(F71,1))=High,UnitCostHigh,UnitCostSpecified)),MATCH(UPPER(LEFT(F71,LEN(F71)-1)),CostCode,0))) -> 4300 | H71: 0 | J71: 0 | K71: 0
B72: GRADE AND CONTOUR, WITH LINER - Unit costs include liner removal and disposal, backfill, compaction and sacrfication with a dozer
B73: Hazardous waste berm | D73: m2 | E73: 4417 | F73: 18GCLS | G73: 4.99 | H73: =G73*E73 -> 22040.83 | I73: 1 | J73: 22040.83 | K73: 0
B74: Milne Port Soft Wall Maintenance Garages | C74: 2017 Work Plan Addendum | D74: m2 | E74: 2046 | F74: 18GCLS | G74: 4.99 | H74: 10209.54 | I74: 1 | J74: =H74*I74 -> 10209.54 | K74: 0
B75: Weatherhaven genset fuel bladder berm | D75: m2 | E75: 500 | F75: 18GCLS | G75: 4.99 | H75: 2495 | I75: 1 | J75: =H75*I75 -> 2495 | K75: 0
B76: Storage Area | D76: m2 | E76: 1971 | F76: 18GCLS | G76: 4.99 | H76: 9835.29 | I76: 1 | J76: 9835.29 | K76: 0
B77: Fuel tank farm dyke | D77: m2 | E77: 25893 | F77: 18GCLS | G77: 4.99 | H77: 129206.07 | I77: 1 | J77: 129206.07 | K77: 0
B78: Landfarm | D78: m2 | E78: 14083 | F78: 18GCLS | G78: 4.99 | H78: 70274.17 | I78: 1 | J78: 70274.17 | K78: 0
B79: LANDFILL FOR DEMOLITION WASTE
B80: Place fill material over demolition waste | C80: 2017 Work Plan Addendum | D80: m2 | E80: 2218 | F80: 18PFS | G80: 38.83 | H80: =G80*E80 -> 86124.94 | I80: 1 | J80: =H80*I80 -> 86124.94 | K80: =+H80*(1-I80) -> 0
B81: SPECIALIZED ITEMS
B82: Electrical Cable | C82: Includes the removal, loading, hauling and disposal of cable (Ref 1, pg 41). 2017 Work Plan add 3500 m of cable. | D82: m | E82: 14600 | F82: 18ECS | G82: 22.64 | H82: =G82*E82 -> 330544 | I82: 1 | J82: =H82*I82 -> 330544 | K82: =+H82*(1-I82) -> 0
B83: Incinerator | C83: Equipment quanties updated to reflect 2017 Work Plan addendum Table 3-6 2 units one at Milne Port and one at Mine Site. | D83: each | E83: 2 | F83: 18FIS | G83: 8743.93 | H83: 17487.86 | I83: 1 | J83: 17487.86 | K83: 0
B84: Potable Water | C84: Equipment quanties updated to reflect 2017 Work Plan addendum Table 3-6 2 units one at Milne Port and one at Mine Site. | D84: each | E84: 2 | F84: 18PWS | G84: 8743.93 | H84: 17487.86 | J84: 0 | K84: 17487.86
G85: Total | H85: =SUM(H5:H84)+0.0001 -> 7273581.403 | J85: =SUM(J5:J84) -> 7202455.342 | K85: =SUM(K5:K84) -> 71126.0606
G86: % of Total | J86: =J85/H85 -> 0.9902213151 | K86: =K85/H85 -> 0.009778684895
B88: Note:

Sheet Bldgs & Equip (3)
A1: 1 | B1: Building / Equip Name: | C1: Tote Road | G1: Bldg / Equip #: | H1: 3
B3: ACTIVITY/MATERIAL | C3: Notes | D3: Units | E3: Quantity | F3: Cost Code | G3: Unit Cost | H3: Cost | I3: % Land | J3: Land Cost | K3: Water Cost
B4: DISPOSE MOBILE EQUIPMENT - Unit Costs includes disassembly and decontamination required for on-site disposal, load and transport to landfill
B5: Light Mobile Equipment | D5: each | E5: 0 | F5: 15MOLS | G5: 941.09 | H5: =G5*E5 -> 0 | I5: 0.95 | J5: =H5*I5 -> 0 | K5: =+H5*(1-I5) -> 0
B6: Medium Mobile Equipment | D6: each | E6: 0 | F6: 15MOMS | G6: 1494.13 | H6: =G6*E6 -> 0 | I6: 0.98 | J6: =H6*I6 -> 0 | K6: =+H6*(1-I6) -> 0
B7: Heavy Mobile Equipment | D7: each | E7: 0 | F7: 15MOHS | G7: 2616.87 | H7: =G7*E7 -> 0 | I7: 0.98 | J7: 0 | K7: =+H7*(1-I7) -> 0
B8: DISPOSE MECHANICAL EQUIPMENT - Unit Costs includes disassembly and decontamination required for on-site disposal, load and transport to landfill
B9: Light mechanical equipment - Decontaminate and dispose on-site | C9: Equipment quanties updated to reflect BIMC Nov. 24 EBS revisions.Light equipment includes pumps, fuel dispenser, laboratory equipment, and sample bins (Ref 1, pg 23). 2017 Work Plan add 20 units. | D9: each | F9: 15LMES | G9: 1980.8 | H9: =G9*E9 -> 0 | I9: 0.98 | J9: =H9*I9 -> 0 | K9: =+H9*(1-I9) -> 0
B10: Medium mechanical equipment - Decontaminate and dispose on-site | C10: Equipment quanties updated to reflect BIMC Nov. 24 EBS revisions. Medium equipment includes aerodrome equipment, generators, shop / maintenance equipment, screens, and chutes (Ref 1, pg 23). 2017 Work Plan add 2 units. | D10: each | F10: 15MMES | G10: 4261.34 | H10: 0 | I10: 1 | J10: 0 | K10: 0
B11: Heavy mechanical equipment - Decontaminate and dispose on-site | C11: Equipment quanties updated to reflect BIMC Nov. 24 EBS revisions. Heavy equipment includes crusher, feeder, power plant generators, large screens, conveyors, and stackers (Ref 2, pg 23). 2017 Work Plan add 1 unit (Truck Wash system). | D11: each | F11: 15MEHS | G11: 41205.45 | H11: 0 | I11: 1 | J11: 0 | K11: 0
B12: Light Tanks | C12: Light non- fuel storage tanks. The cleaning, plugging, disassembly and removal of all associated pipeline infrastructure is included (Ref 1, pg 26). | D12: each | F12: 15TLS | G12: 2148.33 | H12: 0 | I12: 0 | J12: 0 | K12: 0
B13: Medium Tanks | C13: Medium non- fuel storage tanks. The cleaning, plugging, disassembly and removal of all associated pipeline infrastructure is included (Ref 1, pg 26). | D13: each | F13: 15MTS | G13: 7387.31 | H13: 0 | I13: 0 | J13: 0 | K13: 0
B14: Light Diesel Tanks | C14: Small fuel tanks (10,000-20,000L) (Ref 1, pg 27) | D14: each | F14: 15LiDTS | G14: 3693.66 | H14: 0 | I14: 1 | J14: 0 | K14: 0
B15: Medium Diesel Tanks | C15: Medium fuel tanks (500,000-750,000L). The cleaning, plugging, disassembly and removal of all associated pipeline infrastructure is included (Ref 1, pg 27). | D15: each | F15: 15MDTS | G15: 16166.4 | H15: 0 | I15: 1 | J15: 0 | K15: 0
B16: Misc. Items | C16: On-site disposal. Miscellaneous (minor) items were defined as any item less than 200 kg not captured in other unit costs (Ref 1, pg 42). | D16: Lot | F16: 15MEIS | G16: 529.83 | H16: 0 | I16: 1 | J16: 0 | K16: 0
B17: Fuelk tanks - On-site disposal of medium mobile fuel tanks (3,000 to 500,000 L) | C17: On-site disposal of medium-mobile fuel tanks (3,000 to 500,000L). | D17: each | F17: 15MMFTS | G17: 10481.05 | H17: 0 | I17: 1 | J17: 0 | K17: 0
B18: REMOVE BUILDINGS - Unit Costs include disassembling, removing or securing all items and load and transport
B19: Modular | D19: m2 | E19: 0 | F19: 15RBMS | G19: 59.38 | H19: =G19*E19 -> 0 | I19: 0.89 | J19: 0 | K19: =+H19*(1-I19) -> 0
B20: Fold Away Buildings | D20: m2 | E20: 0 | F20: 15RBFS | G20: 41.57 | H20: 0 | I20: 1 | J20: 0 | K20: 0
B21: ISO Shipping Containers (Shelters, Comm. Facilities) | C21: Assume 7% on Crown Land 2017 Actual work not previously allocated (see Table 2-3 of 2018 Marginal cost) Add 1050 m2 | D21: m2 | E21: =223+1050 -> 1273 | F21: 18RBIS | G21: 25.38 | H21: 32308.74 | I21: 1 | J21: 32308.74 | K21: 0
B22: Water and Wastewater Treatment Facilities | D22: each | E22: 0 | F22: 15WWTS | G22: 11035.58 | H22: 0 | I22: 0 | J22: 0 | K22: 0
B23: Power Plant | D23: m2 | F23: brs1h | G23: =IF(ISNA(F23),0,INDEX(IF(UPPER(RIGHT(F23,1))=Low,UnitCostLow, IF(UPPER(RIGHT(F23,1))=High,UnitCostHigh,UnitCostSpecified)),MATCH(UPPER(LEFT(F23,LEN(F23)-1)),CostCode,0))) -> 65 | H23: 0 | J23: 0 | K23: 0
B24: Communication Tower | D24: m2 | F24: brs1h | G24: =IF(ISNA(F24),0,INDEX(IF(UPPER(RIGHT(F24,1))=Low,UnitCostLow, IF(UPPER(RIGHT(F24,1))=High,UnitCostHigh,UnitCostSpecified)),MATCH(UPPER(LEFT(F24,LEN(F24)-1)),CostCode,0))) -> 65 | H24: =G24*E24 -> 0 | J24: =H24*I24 -> 0 | K24: 0
B25: U/G Heating Plant | D25: m2 | F25: =NA() ->  | G25: =IF(ISNA(F25),0,INDEX(IF(UPPER(RIGHT(F25,1))=Low,UnitCostLow, IF(UPPER(RIGHT(F25,1))=High,UnitCostHigh,UnitCostSpecified)),MATCH(UPPER(LEFT(F25,LEN(F25)-1)),CostCode,0))) -> 0 | H25: =G25*E25 -> 0 | J25: =H25*I25 -> 0 | K25: 0
B26: Emulsion Plant | D26: m2 | F26: =NA() ->  | G26: =IF(ISNA(F26),0,INDEX(IF(UPPER(RIGHT(F26,1))=Low,UnitCostLow, IF(UPPER(RIGHT(F26,1))=High,UnitCostHigh,UnitCostSpecified)),MATCH(UPPER(LEFT(F26,LEN(F26)-1)),CostCode,0))) -> 0 | H26: 0 | J26: 0 | K26: 0
B27: AN Storage Facility | D27: m2 | F27: brs1s | G27: 128 | H27: 0 | J27: =H27*I27 -> 0 | K27: 0
B28: Warehouse, Shops and Other | D28: m2 | F28: brs1l | G28: =IF(ISNA(F28),0,INDEX(IF(UPPER(RIGHT(F28,1))=Low,UnitCostLow, IF(UPPER(RIGHT(F28,1))=High,UnitCostHigh,UnitCostSpecified)),MATCH(UPPER(LEFT(F28,LEN(F28)-1)),CostCode,0))) -> 45 | H28: 0 | J28: =H28*I28 -> 0 | K28: 0
B29: Storage Facility at Laydown/Airstrip | D29: m2 | F29: =NA() ->  | G29: =IF(ISNA(F29),0,INDEX(IF(UPPER(RIGHT(F29,1))=Low,UnitCostLow, IF(UPPER(RIGHT(F29,1))=High,UnitCostHigh,UnitCostSpecified)),MATCH(UPPER(LEFT(F29,LEN(F29)-1)),CostCode,0))) -> 0 | H29: 0 | J29: =H29*I29 -> 0 | K29: 0
B30: Fuel tanks | D30: m2 | F30: brs1h | G30: =IF(ISNA(F30),0,INDEX(IF(UPPER(RIGHT(F30,1))=Low,UnitCostLow, IF(UPPER(RIGHT(F30,1))=High,UnitCostHigh,UnitCostSpecified)),MATCH(UPPER(LEFT(F30,LEN(F30)-1)),CostCode,0))) -> 65 | H30: 0 | J30: =H30*I30 -> 0 | K30: 0
B31: Fire Protection pumping station | D31: m | F31: brs1h | G31: =IF(ISNA(F31),0,INDEX(IF(UPPER(RIGHT(F31,1))=Low,UnitCostLow, IF(UPPER(RIGHT(F31,1))=High,UnitCostHigh,UnitCostSpecified)),MATCH(UPPER(LEFT(F31,LEN(F31)-1)),CostCode,0))) -> 65 | H31: 0 | J31: =H31*I31 -> 0 | K31: 0
B32: Freshwater intake | D32: m2 | F32: brs1l | G32: 45 | H32: 0 | J32: 0 | K32: 0
B33: Reclaim pumps | D33: m2 | F33: =NA() ->  | G33: 0 | H33: 0 | J33: 0 | K33: 0
B34: Outfall & Diffuser | D34: m2 | F34: =NA() ->  | G34: 0 | H34: 0 | J34: 0 | K34: 0
B35: Airstrip lighting, navigation, electrician | D35: mandays | F35: =NA() ->  | G35: =IF(ISNA(F35),0,INDEX(IF(UPPER(RIGHT(F35,1))=Low,UnitCostLow, IF(UPPER(RIGHT(F35,1))=High,UnitCostHigh,UnitCostSpecified)),MATCH(UPPER(LEFT(F35,LEN(F35)-1)),CostCode,0))) -> 0 | H35: 0 | J35: 0 | K35: 0
B36: Airstrip lighting, navigation, mechanical | D36: mandays | F36: =NA() ->  | G36: =IF(ISNA(F36),0,INDEX(IF(UPPER(RIGHT(F36,1))=Low,UnitCostLow, IF(UPPER(RIGHT(F36,1))=High,UnitCostHigh,UnitCostSpecified)),MATCH(UPPER(LEFT(F36,LEN(F36)-1)),CostCode,0))) -> 0 | H36: 0 | J36: 0 | K36: 0
B37: Break foundation slabs | D37: m2 | F37: brcs | G37: =IF(ISNA(F37),0,INDEX(IF(UPPER(RIGHT(F37,1))=Low,UnitCostLow, IF(UPPER(RIGHT(F37,1))=High,UnitCostHigh,UnitCostSpecified)),MATCH(UPPER(LEFT(F37,LEN(F37)-1)),CostCode,0))) -> 6 | H37: =G37*E37 -> 0 | J37: =H37*I37 -> 0 | K37: 0
B38: Consolidate & dump boneyard debris | D38: allow | F38: brs1l | G38: 45 | H38: 0 | J38: 0 | K38: 0
B39: Worker Dry | D39: m2 | F39: brs1l | G39: 45 | H39: =G39*E39 -> 0 | J39: =H39*I39 -> 0 | K39: 0
B40: WTP & Fresh Water Pumping Station | D40: m2 | F40: brs1l | G40: 45 | H40: =G40*E40 -> 0 | J40: =H40*I40 -> 0 | K40: 0
B41: WRSF Pond and Attenuation Pond Pumphouses | D41: m2 | F41: brs1l | G41: 45 | H41: =G41*E41 -> 0 | J41: =H41*I41 -> 0 | K41: 0
B42: Water Intake | D42: m2 | F42: brcs | G42: 6 | H42: =G42*E42 -> 0 | J42: =H42*I42 -> 0 | K42: 0
B43: Other | D43: m2 | F43: bdcs | G43: 12.63 | H43: 0 | J43: 0 | K43: 0
B44: REMOVE CONTAMINATED BUILDINGS - Unit Costs include disassembling, removing or securing all items, decontamination and load and transport
B45: Modular | D45: m2 | E45: 0 | F45: 15RCBMS | G45: 123.02 | H45: =G45*E45 -> 0 | I45: 1 | J45: =H45*I45 -> 0 | K45: =+H45*(1-I45) -> 0
B46: Fold Away Buildings | C46: Mobile Maintenance Depot (100% on Crown Land) | D46: m2 | E46: 682 | F46: 18RCBFS | G46: 122.25 | H46: 83374.5 | I46: 1 | J46: 83374.5 | K46: 0
B47: ISO Shipping Containers (Shelters, Comm. Facilities) | D47: m2 | E47: 0 | F47: 15RCBIS | G47: 143.42 | H47: 0 | I47: 1 | J47: 0 | K47: 0
B48: Temporary Construction Warehouse and Office Allowance | D48: m2 | E48: 0 | F48: 15RCBTS | G48: 25000 | H48: 0 | I48: 1 | J48: 0 | K48: 0
B49: BREAK FOUNDATIONS
B50: Slab on Grade | C50: Mobile Maintenance Depot (100% on Crown Land) | D50: m2 | E50: 682 | F50: 18FSS | G50: 33.11 | H50: =G50*E50 -> 22581.02 | I50: 1 | J50: =H50*I50 -> 22581.02 | K50: =+H50*(1-I50) -> 0
B51: Timber Cribbing | C51: Includes disassemby load and transport of the timber cribbing. Assume 7% on Crown Land | D51: m2 | E51: 59 | F51: 18TCS | G51: 17.76 | H51: 1047.84 | I51: 1 | J51: 1047.84 | K51: 0
B52: GRADE AND CONTOUR, GENERAL - Unit costs are inclusive of backfill, compaction and sacrfication with a dozer
B53: Grade and contour laydown areas | C53: In 2017 Actual work not previous allocated - IT tower upgrades KM7, KM26,KM40, KM49, KM69, KM80 & KM88 (see table 2-2 of 2018 Marginal Estimate) | D53: m2 | E53: 33900 | F53: 18GCS | G53: 1.493420346 | H53: =G53*E53 -> 50626.94972 | I53: 1 | J53: 50626.94972 | K53: =+H53*(1-I53) -> 0
B54: Grade and contour building footprints | C54: Assume 7% on Crown Land | D54: m2 | E54: 13040 | F54: 18GCS | G54: 1.493420346 | H54: 19474.20131 | I54: 1 | J54: 19474.20131 | K54: 0
B55: Grade and contour infrastructure pads | C55: Assume 7% on Crown Land | D55: m2 | E55: 6760 | F55: 18GCS | G55: 1.493420346 | H55: 10095.52154 | I55: 1 | J55: 10095.52154 | K55: 0
B56: Aerodome Facilities | D56: m2 | E56: 0 | F56: 15GCS | G56: 1.81 | H56: 0 | I56: 1 | J56: 0 | K56: 0
B57: Road | C57: Assume 7% on Crown Land | D57: m2 | E57: 533000 | F57: 18GCS | G57: 1.493420346 | H57: 795993.0443 | I57: 1 | J57: 795993.0443 | K57: 0
B58: Stockpiles | D58: m2 | F58: 15GCS | G58: 1.81 | H58: =G58*E58 -> 0 | I58: 1 | J58: =H58*I58 -> 0 | K58: =+H58*(1-I58) -> 0
B59: Remove Liner | C59: Mobile Maintenance Depot (100% on Crown Land) | D59: m2 | E59: 683 | G59: 3.5 | H59: =G59*E59 -> 2390.5 | I59: 1 | J59: =H59*I59 -> 2390.5 | K59: =+H59*(1-I59) -> 0
B60: Grade and Contour Significant Disturbed Areas | D60: m2 | F60: 15GCDS | G60: 2.72 | H60: =G60*E60 -> 0 | I60: 1 | J60: =H60*I60 -> 0 | K60: =+H60*(1-I60) -> 0
B61: U/G Heating Plant | D61: m2 | F61: =NA() ->  | G61: =IF(ISNA(F61),0,INDEX(IF(UPPER(RIGHT(F61,1))=Low,UnitCostLow, IF(UPPER(RIGHT(F61,1))=High,UnitCostHigh,UnitCostSpecified)),MATCH(UPPER(LEFT(F61,LEN(F61)-1)),CostCode,0))) -> 0 | H61: 0 | J61: 0 | K61: 0
B62: Emulsion Plant | D62: m2 | F62: =NA() ->  | G62: =IF(ISNA(F62),0,INDEX(IF(UPPER(RIGHT(F62,1))=Low,UnitCostLow, IF(UPPER(RIGHT(F62,1))=High,UnitCostHigh,UnitCostSpecified)),MATCH(UPPER(LEFT(F62,LEN(F62)-1)),CostCode,0))) -> 0 | H62: 0 | J62: 0 | K62: 0
B63: Warehouse, Shops and Other | D63: m2 | F63: AE | G63: 8.47 | H63: 0 | J63: 0 | K63: 0
B64: Fuel tanks on site for bulk fuel storage | D64: m2 | F64: AE | G64: 8.47 | H64: 0 | J64: 0 | K64: 0
B65: Fire Protection pumping station | D65: m2 | F65: AE | G65: 8.47 | H65: 0 | J65: 0 | K65: 0
B66: Worker Dry | D66: m2 | F66: AE | G66: 8.47 | H66: 0 | J66: 0 | K66: 0
B67: WTP & Fresh Water Pumping Station | D67: m2 | F67: AE | G67: 8.47 | H67: 0 | J67: 0 | K67: 0
B68: WRSF Pond and Attenuation Pond Pumphouses | D68: m2 | F68: AE | G68: 8.47 | H68: 0 | J68: 0 | K68: 0
B69: Other | D69: ha | F69: scfyl | G69: =IF(ISNA(F69),0,INDEX(IF(UPPER(RIGHT(F69,1))=Low,UnitCostLow, IF(UPPER(RIGHT(F69,1))=High,UnitCostHigh,UnitCostSpecified)),MATCH(UPPER(LEFT(F69,LEN(F69)-1)),CostCode,0))) -> 4300 | H69: 0 | J69: 0 | K69: 0
B70: GRADE AND CONTOUR, WITH LINER - Unit costs include liner removal and disposal, backfill, compaction and sacrfication with a dozer
B71: Waste Disposal | D71: m2 | F71: 15GCLS | G71: 5.31 | H71: =G71*E71 -> 0 | I71: 1 | J71: 0 | K71: 0
B72: Fuel tank farm dyke | D72: m2 | F72: 15GCLS | G72: 5.31 | H72: 0 | I72: 1 | J72: =H72*I72 -> 0 | K72: 0
B73: Hazardous waste berm | D73: m2 | F73: 15GCLS | G73: 5.31 | H73: 0 | I73: 1 | J73: 0 | K73: 0
B74: Bulk fuel storage facility (Bladder Farm) | D74: m2 | F74: 15GCLS | G74: 5.31 | H74: 0 | I74: 1 | J74: 0 | K74: 0
B75: Other | D75: m2 | F75: 15GCLS | G75: 5.31 | H75: 0 | I75: 1 | J75: 0 | K75: 0
B76: LANDFILL FOR DEMOLITION WASTE
D77: m2 | F77: 15PFS | G77: 44.37 | H77: =G77*E77 -> 0 | I77: 1 | J77: =H77*I77 -> 0 | K77: =+H77*(1-I77) -> 0
B78: RECLAIM ROADS
B79: Remove bridges (IOL) | C79: The unit cost is inclusive of the demolition and removal of a bridge. Assumed not contaminated (Ref 1, pg 36). | D79: each | E79: 3 | F79: 18BRS | G79: 172505.43 | H79: =G79*E79 -> 517516.29 | I79: 0 | J79: =H79*I79 -> 0 | K79: =+H79*(1-I79) -> 517516.29
B80: Remove bridges (CROWN) | C80: The unit cost is inclusive of the demolition and removal of a bridge. Assumed not contaminated (Ref 1, pg 36). | D80: each | E80: 1 | F80: 18BRS | G80: 172505.43 | H80: =G80*E80 -> 172505.43 | I80: 0 | J80: =H80*I80 -> 0 | K80: =+H80*(1-I80) -> 172505.43
B81: Remove Culverts (IOL) | C81: The unit cost is inclusive of the travel time to and from the culvert location, the earthwork necessary expose a culvert and the removal of the culvert material (Ref 1, pg 21). | D81: each | E81: 372 | F81: 15CRS | G81: 1094.48 | H81: 407146.56 | I81: 0 | J81: 0 | K81: 407146.56
B82: Remove Culverts (CROWN) | C82: The unit cost is inclusive of the travel time to and from the culvert location, the earthwork necessary expose a culvert and the removal of the culvert material (Ref 1, pg 21). | D82: each | E82: 11 | F82: 15CRS | G82: 1094.48 | H82: 12039.28 | I82: 0 | J82: 0 | K82: 12039.28
B83: Scarifying and install water breaks | D83: ha | G83: 0 | H83: =G83*E83 -> 0 | J83: =H83*I83 -> 0 | K83: =+H83*(1-I83) -> 0
B84: Scarifying Airstrip | D84: ha | G84: 0 | H84: 0 | J84: 0 | K84: 0
B85: Scarifying Laydown Areas | D85: ha | G85: 0 | H85: 0 | J85: 0 | K85: 0
B86: vegeation | D86: ha | G86: 0 | H86: 0 | J86: 0 | K86: 0
B87: Other | D87: ha | G87: 0 | H87: 0 | J87: 0 | K87: 0
B88: SPECIALIZED ITEMS
B89: Consumables | D89: each | G89: 0 | H89: =G89*E89 -> 0 | J89: =H89*I89 -> 0 | K89: =+H89*(1-I89) -> 0
B90: Electrical Cable | D90: m | F90: 15ECS | G90: 26.49 | H90: =G90*E90 -> 0 | J90: =H90*I90 -> 0 | K90: =+H90*(1-I90) -> 0
B91: Incinerator | D91: each | F91: 15FIS | G91: 9975.93 | H91: 0 | J91: 0 | K91: 0
B92: Potable Water | D92: each | F92: 15PWS | G92: 9975.93 | H92: 0 | J92: 0 | K92: 0
G93: Total | H93: =SUM(H5:H92)+0.0001 -> 2127099.877 | J93: =SUM(J5:J92) -> 1017892.317 | K93: =SUM(K5:K92) -> 1109207.56
G94: % of Total | J94: =J93/H93 -> 0.4785352714 | K94: =K93/H93 -> 0.5214647286
B96: Note:

Sheet Bldgs & Equip (4)
A1: 1 | B1: Building / Equip Name: | C1: Project Wide/Other | G1: Bldg / Equip #: | H1: 4
B3: ACTIVITY/MATERIAL | C3: Notes | D3: Units | E3: Quantity | F3: Cost Code | G3: Unit Cost | H3: Cost | I3: % Land | J3: Land Cost | K3: Water Cost
B4: DISPOSE MOBILE EQUIPMENT - Unit Costs includes disassembly and decontamination required for on-site disposal, load and transport to landfill
B5: Light Mobile Equipment | D5: each | E5: 0 | F5: 15MOLS | G5: 941.09 | H5: =G5*E5 -> 0 | I5: 0.95 | J5: =H5*I5 -> 0 | K5: =+H5*(1-I5) -> 0
B6: Medium Mobile Equipment | D6: each | E6: 0 | F6: 15MOMS | G6: 1494.13 | H6: =G6*E6 -> 0 | I6: 0.98 | J6: =H6*I6 -> 0 | K6: =+H6*(1-I6) -> 0
B7: Heavy Mobile Equipment | D7: each | E7: 0 | F7: 15MOHS | G7: 2616.87 | H7: =G7*E7 -> 0 | I7: 0.98 | J7: 0 | K7: =+H7*(1-I7) -> 0
B8: DISPOSE MECHANICAL EQUIPMENT - Unit Costs includes disassembly and decontamination required for on-site disposal, load and transport to landfill
B9: Light mechanical equipment - Decontaminate and dispose on-site | C9: Equipment quanties updated to reflect BIMC Nov. 24 EBS revisions.Light equipment includes pumps, fuel dispenser, laboratory equipment, and sample bins (Ref 1, pg 23). 2017 Work Plan add 20 units. | D9: each | F9: 15LMES | G9: 1980.8 | H9: =G9*E9 -> 0 | I9: 0.98 | J9: =H9*I9 -> 0 | K9: =+H9*(1-I9) -> 0
B10: Medium mechanical equipment - Decontaminate and dispose on-site | C10: Equipment quanties updated to reflect BIMC Nov. 24 EBS revisions. Medium equipment includes aerodrome equipment, generators, shop / maintenance equipment, screens, and chutes (Ref 1, pg 23). 2017 Work Plan add 2 units. | D10: each | F10: 15MMES | G10: 4261.34 | H10: 0 | I10: 1 | J10: 0 | K10: 0
B11: Heavy mechanical equipment - Decontaminate and dispose on-site | C11: Equipment quanties updated to reflect BIMC Nov. 24 EBS revisions. Heavy equipment includes crusher, feeder, power plant generators, large screens, conveyors, and stackers (Ref 2, pg 23). 2017 Work Plan add 1 unit (Truck Wash system). | D11: each | F11: 15MEHS | G11: 41205.45 | H11: 0 | I11: 1 | J11: 0 | K11: 0
B12: Light Tanks | C12: Light non- fuel storage tanks. The cleaning, plugging, disassembly and removal of all associated pipeline infrastructure is included (Ref 1, pg 26). | D12: each | F12: 15TLS | G12: 2148.33 | H12: 0 | I12: 0 | J12: 0 | K12: 0
B13: Medium Tanks | C13: Medium non- fuel storage tanks. The cleaning, plugging, disassembly and removal of all associated pipeline infrastructure is included (Ref 1, pg 26). | D13: each | F13: 15MTS | G13: 7387.31 | H13: 0 | I13: 0 | J13: 0 | K13: 0
B14: Light Diesel Tanks | C14: Small fuel tanks (10,000-20,000L) (Ref 1, pg 27) | D14: each | F14: 15LiDTS | G14: 3693.66 | H14: 0 | I14: 1 | J14: 0 | K14: 0
B15: Medium Diesel Tanks | C15: Medium fuel tanks (500,000-750,000L). The cleaning, plugging, disassembly and removal of all associated pipeline infrastructure is included (Ref 1, pg 27). | D15: each | F15: 15MDTS | G15: 16166.4 | H15: 0 | I15: 1 | J15: 0 | K15: 0
B16: Misc. Items | C16: On-site disposal. Miscellaneous (minor) items were defined as any item less than 200 kg not captured in other unit costs (Ref 1, pg 42). | D16: Lot | F16: 15MEIS | G16: 529.83 | H16: 0 | I16: 1 | J16: 0 | K16: 0
B17: Fuelk tanks - On-site disposal of medium mobile fuel tanks (3,000 to 500,000 L) | C17: On-site disposal of medium-mobile fuel tanks (3,000 to 500,000L). | D17: each | F17: 15MMFTS | G17: 10481.05 | H17: 0 | I17: 1 | J17: 0 | K17: 0
B18: REMOVE BUILDINGS - Unit Costs include disassembling, removing or securing all items and load and transport
B19: Modular | D19: m2 | E19: 0 | F19: 15RBMS | G19: 59.38 | H19: =G19*E19 -> 0 | I19: 0.89 | J19: 0 | K19: =+H19*(1-I19) -> 0
B20: Fold Away Buildings | D20: m2 | E20: 0 | F20: 15RBFS | G20: 41.57 | H20: 0 | I20: 1 | J20: 0 | K20: 0
B21: ISO Shipping Containers (Shelters, Comm. Facilities) | D21: m2 | E21: 0 | F21: 15RBIS | G21: 29.69 | H21: 0 | I21: 1 | J21: 0 | K21: 0
B22: Water and Wastewater Treatment Facilities | D22: each | E22: 0 | F22: 15WWTS | G22: 11035.58 | H22: 0 | I22: 0 | J22: 0 | K22: 0
B23: Power Plant | D23: m2 | F23: brs1h | G23: =IF(ISNA(F23),0,INDEX(IF(UPPER(RIGHT(F23,1))=Low,UnitCostLow, IF(UPPER(RIGHT(F23,1))=High,UnitCostHigh,UnitCostSpecified)),MATCH(UPPER(LEFT(F23,LEN(F23)-1)),CostCode,0))) -> 65 | H23: 0 | J23: 0 | K23: 0
B24: Communication Tower | D24: m2 | F24: brs1h | G24: =IF(ISNA(F24),0,INDEX(IF(UPPER(RIGHT(F24,1))=Low,UnitCostLow, IF(UPPER(RIGHT(F24,1))=High,UnitCostHigh,UnitCostSpecified)),MATCH(UPPER(LEFT(F24,LEN(F24)-1)),CostCode,0))) -> 65 | H24: =G24*E24 -> 0 | J24: =H24*I24 -> 0 | K24: 0
B25: U/G Heating Plant | D25: m2 | F25: =NA() ->  | G25: =IF(ISNA(F25),0,INDEX(IF(UPPER(RIGHT(F25,1))=Low,UnitCostLow, IF(UPPER(RIGHT(F25,1))=High,UnitCostHigh,UnitCostSpecified)),MATCH(UPPER(LEFT(F25,LEN(F25)-1)),CostCode,0))) -> 0 | H25: =G25*E25 -> 0 | J25: =H25*I25 -> 0 | K25: 0
B26: Emulsion Plant | D26: m2 | F26: =NA() ->  | G26: =IF(ISNA(F26),0,INDEX(IF(UPPER(RIGHT(F26,1))=Low,UnitCostLow, IF(UPPER(RIGHT(F26,1))=High,UnitCostHigh,UnitCostSpecified)),MATCH(UPPER(LEFT(F26,LEN(F26)-1)),CostCode,0))) -> 0 | H26: 0 | J26: 0 | K26: 0
B27: AN Storage Facility | D27: m2 | F27: brs1s | G27: 128 | H27: 0 | J27: =H27*I27 -> 0 | K27: 0
B28: Warehouse, Shops and Other | D28: m2 | F28: brs1l | G28: =IF(ISNA(F28),0,INDEX(IF(UPPER(RIGHT(F28,1))=Low,UnitCostLow, IF(UPPER(RIGHT(F28,1))=High,UnitCostHigh,UnitCostSpecified)),MATCH(UPPER(LEFT(F28,LEN(F28)-1)),CostCode,0))) -> 45 | H28: 0 | J28: =H28*I28 -> 0 | K28: 0
B29: Storage Facility at Laydown/Airstrip | D29: m2 | F29: =NA() ->  | G29: =IF(ISNA(F29),0,INDEX(IF(UPPER(RIGHT(F29,1))=Low,UnitCostLow, IF(UPPER(RIGHT(F29,1))=High,UnitCostHigh,UnitCostSpecified)),MATCH(UPPER(LEFT(F29,LEN(F29)-1)),CostCode,0))) -> 0 | H29: 0 | J29: =H29*I29 -> 0 | K29: 0
B30: Fuel tanks | D30: m2 | F30: brs1h | G30: =IF(ISNA(F30),0,INDEX(IF(UPPER(RIGHT(F30,1))=Low,UnitCostLow, IF(UPPER(RIGHT(F30,1))=High,UnitCostHigh,UnitCostSpecified)),MATCH(UPPER(LEFT(F30,LEN(F30)-1)),CostCode,0))) -> 65 | H30: 0 | J30: =H30*I30 -> 0 | K30: 0
B31: Fire Protection pumping station | D31: m | F31: brs1h | G31: =IF(ISNA(F31),0,INDEX(IF(UPPER(RIGHT(F31,1))=Low,UnitCostLow, IF(UPPER(RIGHT(F31,1))=High,UnitCostHigh,UnitCostSpecified)),MATCH(UPPER(LEFT(F31,LEN(F31)-1)),CostCode,0))) -> 65 | H31: 0 | J31: =H31*I31 -> 0 | K31: 0
B32: Freshwater intake | D32: m2 | F32: brs1l | G32: 45 | H32: 0 | J32: 0 | K32: 0
B33: Reclaim pumps | D33: m2 | F33: =NA() ->  | G33: 0 | H33: 0 | J33: 0 | K33: 0
B34: Outfall & Diffuser | D34: m2 | F34: =NA() ->  | G34: 0 | H34: 0 | J34: 0 | K34: 0
B35: Airstrip lighting, navigation, electrician | D35: mandays | F35: =NA() ->  | G35: =IF(ISNA(F35),0,INDEX(IF(UPPER(RIGHT(F35,1))=Low,UnitCostLow, IF(UPPER(RIGHT(F35,1))=High,UnitCostHigh,UnitCostSpecified)),MATCH(UPPER(LEFT(F35,LEN(F35)-1)),CostCode,0))) -> 0 | H35: 0 | J35: 0 | K35: 0
B36: Airstrip lighting, navigation, mechanical | D36: mandays | F36: =NA() ->  | G36: =IF(ISNA(F36),0,INDEX(IF(UPPER(RIGHT(F36,1))=Low,UnitCostLow, IF(UPPER(RIGHT(F36,1))=High,UnitCostHigh,UnitCostSpecified)),MATCH(UPPER(LEFT(F36,LEN(F36)-1)),CostCode,0))) -> 0 | H36: 0 | J36: 0 | K36: 0
B37: Break foundation slabs | D37: m2 | F37: brcs | G37: =IF(ISNA(F37),0,INDEX(IF(UPPER(RIGHT(F37,1))=Low,UnitCostLow, IF(UPPER(RIGHT(F37,1))=High,UnitCostHigh,UnitCostSpecified)),MATCH(UPPER(LEFT(F37,LEN(F37)-1)),CostCode,0))) -> 6 | H37: =G37*E37 -> 0 | J37: =H37*I37 -> 0 | K37: 0
B38: Consolidate & dump boneyard debris | D38: allow | F38: brs1l | G38: 45 | H38: 0 | J38: 0 | K38: 0
B39: Worker Dry | D39: m2 | F39: brs1l | G39: 45 | H39: =G39*E39 -> 0 | J39: =H39*I39 -> 0 | K39: 0
B40: WTP & Fresh Water Pumping Station | D40: m2 | F40: brs1l | G40: 45 | H40: =G40*E40 -> 0 | J40: =H40*I40 -> 0 | K40: 0
B41: WRSF Pond and Attenuation Pond Pumphouses | D41: m2 | F41: brs1l | G41: 45 | H41: =G41*E41 -> 0 | J41: =H41*I41 -> 0 | K41: 0
B42: Water Intake | D42: m2 | F42: brcs | G42: 6 | H42: =G42*E42 -> 0 | J42: =H42*I42 -> 0 | K42: 0
B43: Other | D43: m2 | F43: bdcs | G43: 12.63 | H43: 0 | J43: 0 | K43: 0
B44: REMOVE CONTAMINATED BUILDINGS - Unit Costs include disassembling, removing or securing all items, decontamination and load and transport
B45: Modular | D45: m2 | E45: 0 | F45: 15RCBMS | G45: 143.42 | H45: =G45*E45 -> 0 | I45: 1 | J45: =H45*I45 -> 0 | K45: =+H45*(1-I45) -> 0
B46: Fold Away Buildings | D46: m2 | E46: 0 | F46: 15RCBFS | G46: 142.41 | H46: 0 | I46: 1 | J46: 0 | K46: 0
B47: ISO Shipping Containers (Shelters, Comm. Facilities) | D47: m2 | E47: 0 | F47: 15RCBIS | G47: 143.42 | H47: 0 | I47: 1 | J47: 0 | K47: 0
B48: Temporary Construction Warehouse and Office Allowance | D48: m2 | E48: 0 | F48: 15RCBTS | G48: 25000 | H48: 0 | I48: 1 | J48: 0 | K48: 0
B49: BREAK FOUNDATIONS
B50: Slab on Grade | D50: m2 | E50: 0 | F50: 15FSS | G50: 33.11 | H50: =G50*E50 -> 0 | I50: 1 | J50: =H50*I50 -> 0 | K50: =+H50*(1-I50) -> 0
B51: Timber Cribbing | D51: m2 | E51: 0 | F51: 15TCS | G51: 20.78 | H51: 0 | I51: 1 | J51: 0 | K51: 0
B52: GRADE AND CONTOUR, GENERAL - Unit costs are inclusive of backfill, compaction and sacrfication with a dozer
B53: Grade and contour laydown areas | D53: m2 | E53: 0 | F53: 15GCS | G53: 1.81 | H53: =G53*E53 -> 0 | I53: 1 | J53: 0 | K53: =+H53*(1-I53) -> 0
B54: Grade and contour building footprints | D54: m2 | E54: 0 | F54: 15GCS | G54: 1.81 | H54: 0 | I54: 1 | J54: 0 | K54: 0
B55: Grade and contour infrastructure pads | D55: m2 | E55: 0 | F55: 15GCS | G55: 1.81 | H55: 0 | I55: 1 | J55: 0 | K55: 0
B56: Aerodome Facilities | D56: m2 | E56: 0 | F56: 15GCS | G56: 1.81 | H56: 0 | I56: 1 | J56: 0 | K56: 0
B57: Road | D57: m2 | E57: 0 | F57: 15GCS | G57: 1.81 | H57: 0 | I57: 1 | J57: 0 | K57: 0
B58: Stockpiles | D58: m2 | E58: 0 | F58: 15GCS | G58: 1.81 | H58: =G58*E58 -> 0 | I58: 1 | J58: =H58*I58 -> 0 | K58: =+H58*(1-I58) -> 0
B59: Remove Liner | D59: m2 | E59: 0 | G59: 3.5 | H59: =G59*E59 -> 0 | I59: 1 | J59: =H59*I59 -> 0 | K59: =+H59*(1-I59) -> 0
B60: Grade and Contour Significant Disturbed Areas | D60: m2 | E60: 0 | F60: 15GCDS | G60: 2.72 | H60: =G60*E60 -> 0 | I60: 1 | J60: =H60*I60 -> 0 | K60: =+H60*(1-I60) -> 0
B61: U/G Heating Plant | D61: m2 | F61: =NA() ->  | G61: =IF(ISNA(F61),0,INDEX(IF(UPPER(RIGHT(F61,1))=Low,UnitCostLow, IF(UPPER(RIGHT(F61,1))=High,UnitCostHigh,UnitCostSpecified)),MATCH(UPPER(LEFT(F61,LEN(F61)-1)),CostCode,0))) -> 0 | H61: 0 | J61: 0 | K61: 0
B62: Emulsion Plant | D62: m2 | F62: =NA() ->  | G62: =IF(ISNA(F62),0,INDEX(IF(UPPER(RIGHT(F62,1))=Low,UnitCostLow, IF(UPPER(RIGHT(F62,1))=High,UnitCostHigh,UnitCostSpecified)),MATCH(UPPER(LEFT(F62,LEN(F62)-1)),CostCode,0))) -> 0 | H62: 0 | J62: 0 | K62: 0
B63: Warehouse, Shops and Other | D63: m2 | F63: AE | G63: 8.47 | H63: 0 | J63: 0 | K63: 0
B64: Fuel tanks on site for bulk fuel storage | D64: m2 | F64: AE | G64: 8.47 | H64: 0 | J64: 0 | K64: 0
B65: Fire Protection pumping station | D65: m2 | F65: AE | G65: 8.47 | H65: 0 | J65: 0 | K65: 0
B66: Worker Dry | D66: m2 | F66: AE | G66: 8.47 | H66: 0 | J66: 0 | K66: 0
B67: WTP & Fresh Water Pumping Station | D67: m2 | F67: AE | G67: 8.47 | H67: 0 | J67: 0 | K67: 0
B68: WRSF Pond and Attenuation Pond Pumphouses | D68: m2 | F68: AE | G68: 8.47 | H68: 0 | J68: 0 | K68: 0
B69: Other | D69: ha | F69: scfyl | G69: =IF(ISNA(F69),0,INDEX(IF(UPPER(RIGHT(F69,1))=Low,UnitCostLow, IF(UPPER(RIGHT(F69,1))=High,UnitCostHigh,UnitCostSpecified)),MATCH(UPPER(LEFT(F69,LEN(F69)-1)),CostCode,0))) -> 4300 | H69: 0 | J69: 0 | K69: 0
B70: GRADE AND CONTOUR, WITH LINER - Unit costs include liner removal and disposal, backfill, compaction and sacrfication with a dozer
B71: Waste Disposal | D71: m2 | F71: 15GCLS | G71: 5.31 | H71: =G71*E71 -> 0 | I71: 1 | J71: 0 | K71: 0
B72: Fuel tank farm dyke | D72: m2 | F72: 15GCLS | G72: 5.31 | H72: 0 | I72: 1 | J72: =H72*I72 -> 0 | K72: 0
B73: Hazardous waste berm | D73: m2 | F73: 15GCLS | G73: 5.31 | H73: 0 | I73: 1 | J73: 0 | K73: 0
B74: Bulk fuel storage facility (Bladder Farm) | D74: m2 | F74: 15GCLS | G74: 5.31 | H74: 0 | I74: 1 | J74: 0 | K74: 0
B75: Other | D75: m2 | F75: 15GCLS | G75: 5.31 | H75: 0 | I75: 1 | J75: 0 | K75: 0
B76: LANDFILL FOR DEMOLITION WASTE
B77: Place fill material over demolition waste | C77: Includes drill and blasting of material aggregated crushing, excavation of fill material, load and haul of fill material, backfill and compact source of material, and fill application. Assumes avg fill depth of 1.5m over 6m of demolition waste (Ref 1, pg 17). 2017 Work Plan and BIMC Nov. 24 EBS revision add 1192 m2 for disposal of 2017 mobile and mechanical equipment (107 units in total) | D77: m2 | E77: 18663 | F77: 18PFS | G77: 38.83 | H77: =G77*E77 -> 724684.29 | I77: 1 | J77: =H77*I77 -> 724684.29 | K77: =+H77*(1-I77) -> 0
B78: RECLAIM ROADS
B79: Remove bridges (IOL) | D79: each | E79: 0 | F79: 15BRS | G79: 201838.77 | H79: =G79*E79 -> 0 | I79: 0 | J79: =H79*I79 -> 0 | K79: =+H79*(1-I79) -> 0
B80: Remove bridges (CROWN) | D80: each | E80: 0 | F80: 15BRS | G80: 201838.77 | H80: =G80*E80 -> 0 | I80: 0 | J80: =H80*I80 -> 0 | K80: =+H80*(1-I80) -> 0
B81: Remove Culverts (IOL) | D81: each | E81: 0 | F81: 15CRS | G81: 1094.48 | H81: 0 | I81: 0 | J81: 0 | K81: 0
B82: Remove Culverts (CROWN) | D82: each | E82: 0 | F82: 15CRS | G82: 1094.48 | H82: 0 | I82: 0 | J82: 0 | K82: 0
B83: Scarifying and install water breaks | D83: ha | G83: 0 | H83: 0 | J83: 0 | K83: 0
B84: Scarifying Airstrip | D84: ha | G84: 0 | H84: 0 | J84: 0 | K84: 0
B85: Scarifying Laydown Areas | D85: ha | G85: 0 | H85: 0 | J85: 0 | K85: 0
B86: vegeation | D86: ha | G86: 0 | H86: 0 | J86: 0 | K86: 0
B87: Other | D87: ha | G87: 0 | H87: 0 | J87: 0 | K87: 0
B88: SPECIALIZED ITEMS
B89: Consumables | D89: each | G89: 0 | H89: =G89*E89 -> 0 | J89: =H89*I89 -> 0 | K89: =+H89*(1-I89) -> 0
B90: Electrical Cable | D90: m | F90: 15ECS | G90: 26.49 | H90: 0 | J90: 0 | K90: 0
B91: Incinerator | D91: each | F91: 15FIS | G91: 9975.93 | H91: 0 | J91: 0 | K91: 0
B92: Potable Water | D92: each | F92: 15PWS | G92: 9975.93 | H92: 0 | J92: 0 | K92: 0
G93: Total | H93: =SUM(H5:H92)+0.0001 -> 724684.2901 | J93: =SUM(J5:J92) -> 724684.29 | K93: =SUM(K5:K92) -> 0
G94: % of Total | J94: =J93/H93 -> 0.9999999999 | K94: =K93/H93 -> 0
B96: Note:

Sheet Water Management
A1: 1 | B1: Capital Expenditures and Short Term Water Treatment identified in 'Instructions' worksheet
B3: ACTIVITY/MATERIAL | C3: Notes | D3: Units | E3: Quantity | F3: Cost Code | G3: Unit Cost | H3: Cost
B4: BREACH DYKE EMBANKMENT
B5: Remove fill | D5: m3 | F5: sc3l | G5: =IF(ISNA(F5),0,INDEX(IF(UPPER(RIGHT(F5,1))=Low,UnitCostLow, IF(UPPER(RIGHT(F5,1))=High,UnitCostHigh,UnitCostSpecified)),MATCH(UPPER(LEFT(F5,LEN(F5)-1)),CostCode,0))) -> 8.9 | H5: =G5*E5 -> 0
B6: Contour water intake area | D6: m3 | F6: =NA() ->  | G6: =IF(ISNA(F6),0,INDEX(IF(UPPER(RIGHT(F6,1))=Low,UnitCostLow, IF(UPPER(RIGHT(F6,1))=High,UnitCostHigh,UnitCostSpecified)),MATCH(UPPER(LEFT(F6,LEN(F6)-1)),CostCode,0))) -> 0 | H6: =G6*E6 -> 0
B7: STABILIZE SEDIMENT PONDS/WATER MANAGEMENT PONDS
B8: Place soil cover | D8: m3 | F8: =NA() ->  | G8: =IF(ISNA(F8),0,INDEX(IF(UPPER(RIGHT(F8,1))=Low,UnitCostLow, IF(UPPER(RIGHT(F8,1))=High,UnitCostHigh,UnitCostSpecified)),MATCH(UPPER(LEFT(F8,LEN(F8)-1)),CostCode,0))) -> 0 | H8: =G8*E8 -> 0
B9: Doze & spread excavated material | D9: m3 | F9: =NA() ->  | G9: =IF(ISNA(F9),0,INDEX(IF(UPPER(RIGHT(F9,1))=Low,UnitCostLow, IF(UPPER(RIGHT(F9,1))=High,UnitCostHigh,UnitCostSpecified)),MATCH(UPPER(LEFT(F9,LEN(F9)-1)),CostCode,0))) -> 0 | H9: =G9*E9 -> 0
B10: Vegetate spread material | D10: ha | F10: =NA() ->  | G10: =IF(ISNA(F10),0,INDEX(IF(UPPER(RIGHT(F10,1))=Low,UnitCostLow, IF(UPPER(RIGHT(F10,1))=High,UnitCostHigh,UnitCostSpecified)),MATCH(UPPER(LEFT(F10,LEN(F10)-1)),CostCode,0))) -> 0 | H10: =G10*E10 -> 0
B11: Rip rap in channel base | D11: each | F11: =NA() ->  | G11: =IF(ISNA(F11),0,INDEX(IF(UPPER(RIGHT(F11,1))=Low,UnitCostLow, IF(UPPER(RIGHT(F11,1))=High,UnitCostHigh,UnitCostSpecified)),MATCH(UPPER(LEFT(F11,LEN(F11)-1)),CostCode,0))) -> 0 | H11: =G11*E11 -> 0
B12: Grade and Contour with liner | C12: Includes liner removal and disposal (Ref 1, pg 21) and backfill, compaction and scarifcation with a dozer (Ref 1, pg 19). | D12: m2 | E12: 49636.2 | F12: 18GCLS | G12: 4.99 | H12: =G12*E12 -> 247684.638
B13: REDIRECT RUNOFF/CONSTRUCT DIVERSION DITCHES
B14: Excavate ditches -soil | D14: m3 | F14: sc3l | G14: =IF(ISNA(F14),0,INDEX(IF(UPPER(RIGHT(F14,1))=Low,UnitCostLow, IF(UPPER(RIGHT(F14,1))=High,UnitCostHigh,UnitCostSpecified)),MATCH(UPPER(LEFT(F14,LEN(F14)-1)),CostCode,0))) -> 8.9 | H14: =G14*E14 -> 0
B15: Excavate ditches -rock | D15: m3 | F15: =NA() ->  | G15: =IF(ISNA(F15),0,INDEX(IF(UPPER(RIGHT(F15,1))=Low,UnitCostLow, IF(UPPER(RIGHT(F15,1))=High,UnitCostHigh,UnitCostSpecified)),MATCH(UPPER(LEFT(F15,LEN(F15)-1)),CostCode,0))) -> 0 | H15: =G15*E15 -> 0
B16: Stabilize side slopes | D16: m3 | F16: =NA() ->  | G16: =IF(ISNA(F16),0,INDEX(IF(UPPER(RIGHT(F16,1))=Low,UnitCostLow, IF(UPPER(RIGHT(F16,1))=High,UnitCostHigh,UnitCostSpecified)),MATCH(UPPER(LEFT(F16,LEN(F16)-1)),CostCode,0))) -> 0 | H16: =G16*E16 -> 0
B17: Rip rap in channel base | D17: m3 | F17: rr2l | G17: =IF(ISNA(F17),0,INDEX(IF(UPPER(RIGHT(F17,1))=Low,UnitCostLow, IF(UPPER(RIGHT(F17,1))=High,UnitCostHigh,UnitCostSpecified)),MATCH(UPPER(LEFT(F17,LEN(F17)-1)),CostCode,0))) -> 14.2 | H17: =G17*E17 -> 0
B18: BREACH DITCHES
B19: Excavate breaches | D19: m3 | F19: =NA() ->  | G19: =IF(ISNA(F19),0,INDEX(IF(UPPER(RIGHT(F19,1))=Low,UnitCostLow, IF(UPPER(RIGHT(F19,1))=High,UnitCostHigh,UnitCostSpecified)),MATCH(UPPER(LEFT(F19,LEN(F19)-1)),CostCode,0))) -> 0 | H19: =G19*E19 -> 0
B20: Backfill/recontour | D20: m3 | F20: SB3l | G20: =IF(ISNA(F20),0,INDEX(IF(UPPER(RIGHT(F20,1))=Low,UnitCostLow, IF(UPPER(RIGHT(F20,1))=High,UnitCostHigh,UnitCostSpecified)),MATCH(UPPER(LEFT(F20,LEN(F20)-1)),CostCode,0))) -> 5.1 | H20: =G20*E20 -> 0
B21: Install flow dissipation | D21: m3 | F21: =NA() ->  | G21: =IF(ISNA(F21),0,INDEX(IF(UPPER(RIGHT(F21,1))=Low,UnitCostLow, IF(UPPER(RIGHT(F21,1))=High,UnitCostHigh,UnitCostSpecified)),MATCH(UPPER(LEFT(F21,LEN(F21)-1)),CostCode,0))) -> 0 | H21: =G21*E21 -> 0
B22: Vegetate remainder of ditch | D22: m2 | F22: =NA() ->  | G22: =IF(ISNA(F22),0,INDEX(IF(UPPER(RIGHT(F22,1))=Low,UnitCostLow, IF(UPPER(RIGHT(F22,1))=High,UnitCostHigh,UnitCostSpecified)),MATCH(UPPER(LEFT(F22,LEN(F22)-1)),CostCode,0))) -> 0 | H22: =G22*E22 -> 0
B23: DECOMISSION FRESH WATER SUPPLY
B24: Breach embankment | D24: m | F24: =NA() ->  | G24: =IF(ISNA(F24),0,INDEX(IF(UPPER(RIGHT(F24,1))=Low,UnitCostLow, IF(UPPER(RIGHT(F24,1))=High,UnitCostHigh,UnitCostSpecified)),MATCH(UPPER(LEFT(F24,LEN(F24)-1)),CostCode,0))) -> 0 | H24: =G24*E24 -> 0
B25: Remove pump | D25: LS | F25: AE | G25: 20000 | H25: =G25*E25 -> 0
B26: Remove pipeline | D26: LS | F26: AE | G26: 40000 | H26: =G26*E26 -> 0
B27: WATER CONTROL IN RECLAMATION QUARRY
B28: Install pumping system | D28: LS | F28: =NA() ->  | G28: =IF(ISNA(F28),0,INDEX(IF(UPPER(RIGHT(F28,1))=Low,UnitCostLow, IF(UPPER(RIGHT(F28,1))=High,UnitCostHigh,UnitCostSpecified)),MATCH(UPPER(LEFT(F28,LEN(F28)-1)),CostCode,0))) -> 0 | H28: =G28*E28 -> 0
B29: Remove pumping system | D29: LS | F29: =NA() ->  | G29: =IF(ISNA(F29),0,INDEX(IF(UPPER(RIGHT(F29,1))=Low,UnitCostLow, IF(UPPER(RIGHT(F29,1))=High,UnitCostHigh,UnitCostSpecified)),MATCH(UPPER(LEFT(F29,LEN(F29)-1)),CostCode,0))) -> 0 | H29: =G29*E29 -> 0
B30: REMOVE PIPELINES
B31: Remove pipes | C31: The unit cost includes the cleaning, plugging, disassembly, loading, hauling and disposal of piping (Ref 1, pg 41). | D31: m | E31: 19623 | F31: 18RPS | G31: 56.6 | H31: =G31*E31 -> 1110661.8
B32: Concrete plug deep pipes | D32: m3 | F32: =NA() ->  | G32: =IF(ISNA(F32),0,INDEX(IF(UPPER(RIGHT(F32,1))=Low,UnitCostLow, IF(UPPER(RIGHT(F32,1))=High,UnitCostHigh,UnitCostSpecified)),MATCH(UPPER(LEFT(F32,LEN(F32)-1)),CostCode,0))) -> 0 | H32: =G32*E32 -> 0
B33: Other | F33: =NA() ->  | G33: =IF(ISNA(F33),0,INDEX(IF(UPPER(RIGHT(F33,1))=Low,UnitCostLow, IF(UPPER(RIGHT(F33,1))=High,UnitCostHigh,UnitCostSpecified)),MATCH(UPPER(LEFT(F33,LEN(F33)-1)),CostCode,0))) -> 0 | H33: =G33*E33 -> 0
B34: GROUNDWATER COLLECTION SYSTEM
B35: Excavate/install sumps | D35: m3 | F35: =NA() ->  | G35: =IF(ISNA(F35),0,INDEX(IF(UPPER(RIGHT(F35,1))=Low,UnitCostLow, IF(UPPER(RIGHT(F35,1))=High,UnitCostHigh,UnitCostSpecified)),MATCH(UPPER(LEFT(F35,LEN(F35)-1)),CostCode,0))) -> 0 | H35: =G35*E35 -> 0
B36: Install pumping wells | D36: m3 | F36: =NA() ->  | G36: =IF(ISNA(F36),0,INDEX(IF(UPPER(RIGHT(F36,1))=Low,UnitCostLow, IF(UPPER(RIGHT(F36,1))=High,UnitCostHigh,UnitCostSpecified)),MATCH(UPPER(LEFT(F36,LEN(F36)-1)),CostCode,0))) -> 0 | H36: =G36*E36 -> 0
B37: Install pumps/pipelines/power supply | D37: LS | F37: =NA() ->  | G37: =IF(ISNA(F37),0,INDEX(IF(UPPER(RIGHT(F37,1))=Low,UnitCostLow, IF(UPPER(RIGHT(F37,1))=High,UnitCostHigh,UnitCostSpecified)),MATCH(UPPER(LEFT(F37,LEN(F37)-1)),CostCode,0))) -> 0 | H37: =G37*E37 -> 0
B38: CONSTRUCT CONTAMINATED WATER STORAGE POND
B39: Excavate pond | D39: m3 | F39: =NA() ->  | G39: =IF(ISNA(F39),0,INDEX(IF(UPPER(RIGHT(F39,1))=Low,UnitCostLow, IF(UPPER(RIGHT(F39,1))=High,UnitCostHigh,UnitCostSpecified)),MATCH(UPPER(LEFT(F39,LEN(F39)-1)),CostCode,0))) -> 0 | H39: =G39*E39 -> 0
B40: Doze & spread excavated material | D40: m3 | F40: =NA() ->  | G40: 0 | H40: 0
B41: Vegetate spread material | D41: ha | F41: =NA() ->  | G41: 0 | H41: 0
B42: Bedding layer | D42: m3 | F42: =NA() ->  | G42: 0 | H42: 0
B43: Supply geomembrane | D43: m2 | F43: =NA() ->  | G43: 0 | H43: 0
B44: Install geomembrane | D44: m2 | F44: =NA() ->  | G44: 0 | H44: 0
B45: Erosion protection layer | D45: m3 | F45: =NA() ->  | G45: 0 | H45: 0
B46: CONSTRUCT PASSIVE TREATMENT SYSTEM (e.g. Constructed Wetland)
B47: Construct access roads | D47: km | F47: =NA() ->  | G47: 0 | H47: =G47*E47 -> 0
B48: Install HDPE piping system from collection pond | D48: m | F48: =NA() ->  | G48: 0 | H48: 0
B49: Inter-cell flow structures | D49: allow | F49: =NA() ->  | G49: 0 | H49: 0
B50: Install liners | D50: m2 | F50: =NA() ->  | G50: 0 | H50: 0
B51: Install growth media | D51: m3 | F51: =NA() ->  | G51: 0 | H51: 0
B52: Wetland vegetation | D52: ha | F52: =NA() ->  | G52: 0 | H52: 0
B53: CONSTRUCT WATER TREATMENT PLANT
B54: Build treatment plant | D54: LS | F54: =NA() ->  | G54: =IF(ISNA(F54),0,INDEX(IF(UPPER(RIGHT(F54,1))=Low,UnitCostLow, IF(UPPER(RIGHT(F54,1))=High,UnitCostHigh,UnitCostSpecified)),MATCH(UPPER(LEFT(F54,LEN(F54)-1)),CostCode,0))) -> 0 | H54: =G54*E54 -> 0
B55: Build sludge containment facility | D55: LS | F55: =NA() ->  | G55: =IF(ISNA(F55),0,INDEX(IF(UPPER(RIGHT(F55,1))=Low,UnitCostLow, IF(UPPER(RIGHT(F55,1))=High,UnitCostHigh,UnitCostSpecified)),MATCH(UPPER(LEFT(F55,LEN(F55)-1)),CostCode,0))) -> 0 | H55: =G55*E55 -> 0
G56: Total | H56: =SUM(H5:H55)+0.0001 -> 1358346.438
B57: For cost of long-term/post-closure water treatment see "WATER TREATMENT" Worksheet"

Sheet ICM
A1: 1 | B1: Interim Care and Maintenance (18 Month duration)
B3: ACTIVITY/MATERIAL | C3: Notes | D3: Units | E3: Quantity | F3: Cost Code | G3: Unit Cost | H3: Cost
B4: INTERIM CARE & MAINTENANCE
B5: on-site caretaker | C5: Three caretakers for 18 months (assume 2 at 3w/1w and 1 at 2w/2w rotation). Assume 36 days of travel for each caretaker over 18-months.10-hr days. | D5: hr | E5: 11160 | F5: 15BLS | G5: 100 | H5: =G5*E5 -> 1116000
B6: extra personnel | C6: Assume crew of 15 people for 56, 10-hr days, to stabalize site and equipment at both the Mine Site, and Milne Port. Blended unit rate is used to allow for different skill levels that would make up the crew. | D6: hr | E6: 8400 | F6: 15BLS | G6: 100 | H6: 840000
B7: -electrician | D7: manmonths | E7: 0 | F7: elech | G7: =IF(ISNA(F7),0,INDEX(IF(UPPER(RIGHT(F7,1))=Low,UnitCostLow, IF(UPPER(RIGHT(F7,1))=High,UnitCostHigh,UnitCostSpecified)),MATCH(UPPER(LEFT(F7,LEN(F7)-1)),CostCode,0))) -> 95 | H7: =G7*E7 -> 0
B8: -mechanic | D8: manmonths | E8: 0 | F8: mechh | G8: =IF(ISNA(F8),0,INDEX(IF(UPPER(RIGHT(F8,1))=Low,UnitCostLow, IF(UPPER(RIGHT(F8,1))=High,UnitCostHigh,UnitCostSpecified)),MATCH(UPPER(LEFT(F8,LEN(F8)-1)),CostCode,0))) -> 72.85 | H8: =G8*E8 -> 0
B9: annual fuel | D9: litre | E9: 0 | F9: fcdh | G9: =IF(ISNA(F9),0,INDEX(IF(UPPER(RIGHT(F9,1))=Low,UnitCostLow, IF(UPPER(RIGHT(F9,1))=High,UnitCostHigh,UnitCostSpecified)),MATCH(UPPER(LEFT(F9,LEN(F9)-1)),CostCode,0))) -> 1.39 | H9: 0
B10: Mobilization of Workers Required for Stabilization Period (from northern communities) | C10: Assume two rotations per worker, 30% from northern communities and 70% from southern communities. Mobilization from the south is $85.45/person days on site, and from the north $75/person-days on site (Ref 1). | D10: person-days | E10: =0.3*840 -> 252 | F10: 15NWS | G10: 75 | H10: 18900
B11: Mobilization of Workers Required for Stabilization Period (from southern communities) | C11: Assume two rotations per worker, 30% from northern communities and 70% from southern communities. Mobilization from the south is $85.45/person days on site, and from the north $75/person-days on site (Ref 1). | D11: person-days | E11: =0.7*840 -> 588 | F11: 15SWS | G11: 85.45 | H11: =G11*E11 -> 50244.6
B12: Mobilization of caretakers | C12: Assume mobilize from the north | D12: person-days | E12: =18*30*2 -> 1080 | F12: 15NWS | G12: 75 | H12: 81000
B13: Camp accomodations- stabilization period | C13: 15 workers for 56 days | D13: person-days | E13: 840 | F13: 15WACS | G13: 225 | H13: 189000
B14: Camp accomodations for caretakers | C14: 18 month duration full time | D14: person-days | E14: =18*30*2 -> 1080 | F14: 15WACS | G14: 225 | H14: 243000
B15: Equipment - site stabilizaiton | C15: Assume 1 dozer, 56 days, 10 hr/day | D15: hr | E15: =56*10 -> 560 | F15: 15BES | G15: 150 | H15: 84000
B16: misc. supplies | D16: allow | F16: accmh | G16: 0 | H16: =G16*E16 -> 0
B17: pick-up truck | D17: each | F17: =NA() ->  | G17: 0 | H17: 0
B18: small dozer | D18: allow | F18: =NA() ->  | G18: 0 | H18: 0
B19: small excavator | D19: allow | F19: =NA() ->  | G19: 0 | H19: 0
B20: snow machine | D20: allow | F20: =NA() ->  | G20: 0 | H20: 0
B21: communications | D21: allow | E21: 0 | F21: =NA() ->  | G21: 0 | H21: 0
B22: SNP/AEMP water sampling & reporting | D22: each | E22: 3 | F22: 15MCWL | G22: 30000 | H22: 90000
B23: geotechnical assessment | D23: each | E23: 3 | F23: 15GTS | G23: 20000 | H23: 60000
B24: environmental assessment | C24: Assumes spending 1st year budget for this type of activity for interim care | D24: each | E24: 1 | F24: RPTH | G24: 20000 | H24: =G24*E24 -> 20000
B25: interim water treatment | F25: =NA() ->  | H25: =AnnualTreat1Cost -> 0.0001
B26: other | D26: each | F26: =NA() ->  | G26: 0 | H26: 0
G27: 18 Month Interim C&M Cost | H27: =SUM(H5:H26) -> 2792144.6
B28: Number of years of ICM | D28: years | E28: 1.5 | G28: Total | H28: =H27 -> 2792144.6

Sheet PostClosure
A1: 1 | B1: Post-Closure Monitoring & Maintenance:
B3: ACTIVITY/MATERIAL | C3: Notes | D3: Units | E3: Quantity | F3: Cost Code | G3: Unit Cost | H3: Cost
B4: MONITORING & INSPECTIONS
B5: Annual geotechnical inspection | C5: Assume 2 geotech inspections are specified at year 4 and 8 (Ref 2, pg 81). | D5: each | E5: 2 | F5: 15GTS | G5: 20000 | H5: =G5*E5 -> 40000
B6: Survey inspection | D6: each | F6: =NA() ->  | G6: =IF(ISNA(F6),0,INDEX(IF(UPPER(RIGHT(F6,1))=Low,UnitCostLow, IF(UPPER(RIGHT(F6,1))=High,UnitCostHigh,UnitCostSpecified)),MATCH(UPPER(LEFT(F6,LEN(F6)-1)),CostCode,0))) -> 0 | H6: 0
B7: Regulatory costs* | C7: Annual reporting over 8 years. Unit rate from RECLAIM. | D7: each | E7: 8 | F7: RPTL | G7: 10000 | H7: =G7*E7 -> 80000
B8: Site water monitoring (AEMP and SNP) | C8: Two sampling events per year for 8 years, at 20 sample locations. | D8: each | E8: 16 | F8: 15MCWL | G8: 30000 | H8: 480000
B9: - Active closure and flooding | D9: each | F9: =NA() ->  | G9: 0 | H9: 0
B10: - Post pit flooding | D10: each | F10: =NA() ->  | G10: 0 | H10: 0
B11: Air Quality Monitoring Program (AQMP) | C11: Assume 3 sampling events specified at year 2, year 4 and year 7 (Ref 2, pg 81). Unit rate from RECLAIM. | D11: each | E11: 3 | F11: RPTH | G11: 20000 | H11: 60000
B12: Wildlife Effects Monitoring Program (WEMP) | C12: Assume 2 sampling events specified at year 5 and year 7 (Ref 1, pg 81). Unit rate from RECLAIM. | D12: each | E12: 2 | F12: RPTH | G12: =IF(ISNA(F12),0,INDEX(IF(UPPER(RIGHT(F12,1))=Low,UnitCostLow, IF(UPPER(RIGHT(F12,1))=High,UnitCostHigh,UnitCostSpecified)),MATCH(UPPER(LEFT(F12,LEN(F12)-1)),CostCode,0))) -> 20000 | H12: 40000
B13: Vegetation Monitoring | D13: each | F13: =NA() ->  | G13: =IF(ISNA(F13),0,INDEX(IF(UPPER(RIGHT(F13,1))=Low,UnitCostLow, IF(UPPER(RIGHT(F13,1))=High,UnitCostHigh,UnitCostSpecified)),MATCH(UPPER(LEFT(F13,LEN(F13)-1)),CostCode,0))) -> 0 | H13: 0
B14: Project Environmental Assessment | C14: Assume carried once (1x) during closure/post closure period year 4; at Mine site, Tote Road and Milne Port (Ref 2, pg 81). Unit rate from RECLAIM. | E14: 3 | F14: RPTH | G14: =IF(ISNA(F14),0,INDEX(IF(UPPER(RIGHT(F14,1))=Low,UnitCostLow, IF(UPPER(RIGHT(F14,1))=High,UnitCostHigh,UnitCostSpecified)),MATCH(UPPER(LEFT(F14,LEN(F14)-1)),CostCode,0))) -> 20000 | H14: =G14*E14 -> 60000
B15: COVER MAINTENANCE
B16: Maintenance Allowance | C16: According to the PDW closure plan, maintenance costs are estimated at $100,000 per year (Ref 1, pg 103).This allowance expected to cover all maintenance activities at the sites. | D16: allow | E16: 8 | F16: 15MCAL | G16: 100000 | H16: =G16*E16 -> 800000
B17: Repair erosion - infill gullies | D17: allow | F17: =NA() ->  | G17: 0 | H17: 0
B18: Repair erosion - upgrade diversion ditches | D18: allow | F18: =NA() ->  | G18: 0 | H18: 0
B19: Remove problem vegetation | D19: allow | F19: =NA() ->  | G19: 0 | H19: 0
B20: Repair animal damage | D20: allow | F20: =NA() ->  | G20: 0 | H20: 0
B21: Repair/upgrade access controls | D21: allow | F21: =NA() ->  | G21: 0 | H21: 0
B22: Other | F22: =NA() ->  | G22: 0 | H22: 0
B23: SPILLWAY MAINTENANCE
B24: Repair erosion | D24: m3 | F24: =NA() ->  | G24: 0 | H24: 0
B25: Clear spillway | D25: each | F25: =NA() ->  | G25: 0 | H25: =G25*E25 -> 0
B26: CWTS MAINTENANCE
B27: Maintain flow, restore vegetation | D27: allow | F27: =NA() ->  | G27: =IF(ISNA(F27),0,INDEX(IF(UPPER(RIGHT(F27,1))=Low,UnitCostLow, IF(UPPER(RIGHT(F27,1))=High,UnitCostHigh,UnitCostSpecified)),MATCH(UPPER(LEFT(F27,LEN(F27)-1)),CostCode,0))) -> 0 | H27: =G27*E27 -> 0
B28: POST-CLOSURE WATER TREATMENT
B29: water treatment - refer to water treatment tab | E29: 1 | F29: wt tab | G29: =AnnualTreat1Cost -> 0.0001 | H29: =G29*E29 -> 0.0001
B31: Subtotal, Annual post-closure costs | H31: =SUM(H5:H30)+0.0001 -> 1560000
B33: Discount rate for calculation of net present value of post-closure cost, % | F33: 0
B34: Number of years of post-closure activity | F34: 8 | G34: years
B35: Present Value of payment stream | H35: =PV(DiscountRate,PCYears/8, PCAnnualTotal)*-1 -> 1560000
B37: *Regulatory costs - annual reporting, management plans, progress reports etc.

Sheet Mobilization
A1: 1 | B1: Mobilization/Demobilization:
B3: ACTIVITY/MATERIAL | C3: Notes | D3: Units | E3: Quantity | F3: Cost Code | G3: Unit Cost | H3: Cost
B4: MOBILIZE HEAVY EQUIPMENT
B5: Excavators | D5: km | F5: =NA() ->  | G5: =IF(ISNA(F5),0,INDEX(IF(UPPER(RIGHT(F5,1))=Low,UnitCostLow, IF(UPPER(RIGHT(F5,1))=High,UnitCostHigh,UnitCostSpecified)),MATCH(UPPER(LEFT(F5,LEN(F5)-1)),CostCode,0))) -> 0 | H5: =G5*E5 -> 0
B6: Dump trucks | D6: km | F6: =NA() ->  | G6: 0 | H6: 0
B7: Dozers | D7: km | F7: =NA() ->  | G7: 0 | H7: 0
B8: Demolition shears | D8: km | F8: =NA() ->  | G8: 0 | H8: 0
B9: Crane | D9: km | F9: =NA() ->  | G9: 0 | H9: 0
B10: Loader | D10: km | F10: =NA() ->  | G10: 0 | H10: 0
B11: Compactor | D11: km | F11: =NA() ->  | G11: 0 | H11: 0
B12: Light duty vehicles | D12: km | F12: =NA() ->  | G12: 0 | H12: 0
B13: MOBILIZE MISC. EQUIPMENT
B14: Mobilization and Demobilization of Equipment and Materials by Sealift | D14: LS | E14: 1 | G14: 2180000 | H14: =G14*E14 -> 2180000
B15: Mobilization and Demobilization of Equipment and Materials for 2017 Work Plan addendum | C15: Assumed 10% of marginal 2017 Work Plan Addendum Direct costs(minus Soil and Water management and ICM components) i.e., $5,554,000 from BIMC 2018 Marginal Summary Worksheet. | D15: LS | E15: 1 | F15: =NA() ->  | G15: 555400 | H15: =G15*E15 -> 555400
B16: Mobilization and Demobilization of Equipment and Materials for 2018 Work Plan | C16: Assumed 10% of marginal 2018 Work Plan Direct costs(minus Soil and Water management and ICM components) i.e., $2,600,700 from BIMC 2018 Marginal Summary Worksheet. | D16: LS | E16: 1 | F16: =NA() ->  | G16: =2600700*0.1 -> 260070 | H16: =G16*E16 -> 260070
B17: Off-site Disposal of Waste | C17: Ref 1 pg 59 | D17: m3 | E17: 5500 | F17: 15ODS | G17: 358 | H17: =G17*E17 -> 1969000
B18: Consumables (2017 Work Plan marginal increase) | C18: Cost to remove additional 49 bed spaces delivered to site in 2017 Work Plan. 2017 Work Plan addendum (table 3-7) increases this to a 800 person and 50 person camp structures at the Mine Site and a 380 person camp at Milne Port Add 1230 | D18: Ea | E18: =49+1230 -> 1279 | F18: 15CONS | G18: 700.8 | H18: =G18*E18 -> 896323.2
B19: Consumables | C19: Cost to remove consumables delivered to site in 2015 (lubricants, grease, detergents, boosters, EZ Dets, dry goods, food, household supplies, etc.) (2015 Security Assessment, pg 18). | D19: Ea | E19: 550 | F19: 15CONS | G19: 700.8 | H19: 385440
B20: Truck tires | D20: allow | F20: =NA() ->  | G20: =IF(ISNA(F20),0,INDEX(IF(UPPER(RIGHT(F20,1))=Low,UnitCostLow, IF(UPPER(RIGHT(F20,1))=High,UnitCostHigh,UnitCostSpecified)),MATCH(UPPER(LEFT(F20,LEN(F20)-1)),CostCode,0))) -> 0 | H20: =G20*E20 -> 0
B21: Other | F21: =NA() ->  | G21: =IF(ISNA(F21),0,INDEX(IF(UPPER(RIGHT(F21,1))=Low,UnitCostLow, IF(UPPER(RIGHT(F21,1))=High,UnitCostHigh,UnitCostSpecified)),MATCH(UPPER(LEFT(F21,LEN(F21)-1)),CostCode,0))) -> 0 | H21: =G21*E21 -> 0
B22: MOBILIZE CAMP
F23: accml | G23: 0 | H23: =G23*E23 -> 0
F28: =NA() ->  | G28: =IF(ISNA(F28),0,INDEX(IF(UPPER(RIGHT(F28,1))=Low,UnitCostLow, IF(UPPER(RIGHT(F28,1))=High,UnitCostHigh,UnitCostSpecified)),MATCH(UPPER(LEFT(F28,LEN(F28)-1)),CostCode,0))) -> 0 | H28: =G28*E28 -> 0
F29: =NA() ->  | G29: =IF(ISNA(F29),0,INDEX(IF(UPPER(RIGHT(F29,1))=Low,UnitCostLow, IF(UPPER(RIGHT(F29,1))=High,UnitCostHigh,UnitCostSpecified)),MATCH(UPPER(LEFT(F29,LEN(F29)-1)),CostCode,0))) -> 0 | H29: =G29*E29 -> 0
B30: MOBILIZE WORKERS
B31: Mobilization of Workers Required for Reclamation (from northern communities, 2018 Work Plan) | C31: Person-hours required to complete direct cost reclamation activities (10-h person-days) (pg 13 of Marginal Estimate). | D31: person-days | E31: 957 | F31: 15NWS | G31: 75 | H31: =G31*E31 -> 71775
B32: Mobilization of Workers Required for Reclamation (from southern communities, 2018 Work Plan) | C32: Person-hours required to complete direct cost reclamation activities (10-h person-days) (pg 13 of Marginal Estimate). | D32: person-days | E32: 2233 | F32: 15SWS | G32: 85.45 | H32: =G32*E32 -> 190809.85
B33: Mobilization of Workers Required for Reclamation (from northern communities, 2017 Work Plan Addendum) | C33: Person-hours required to complete direct cost reclamation activities (10-h person-days) (pg 63, Ref 1). | D33: person-days | E33: 644 | F33: 15NWS | G33: 75 | H33: =G33*E33 -> 48300
B34: Mobilization of Workers Required for Reclamation (from southern communities, 2017 Work Plan Addendum ) | C34: Person-hours required to complete direct cost reclamation activities (10-h person-days) (pg 63, Ref 1). | D34: person-days | E34: 1502 | F34: 15SWS | G34: 85.45 | H34: =G34*E34 -> 128345.9
B35: Mobilization of Workers Required for Reclamation (from northern communities, 2017 Work Plan) | C35: Person-hours required to complete direct cost reclamation activities (10-h person-days) (pg 63, Ref 1). | D35: person-days | E35: 155 | F35: 15NWS | G35: 75 | H35: =G35*E35 -> 11625
B36: Mobilization of Workers Required for Reclamation (from southern communities, 2017 Work Plan) | C36: Person-hours required to complete direct cost reclamation activities (10-h person-days) (pg 63, Ref 1). | D36: person-days | E36: 362 | F36: 15SWS | G36: 85.45 | H36: =G36*E36 -> 30932.9
B37: Mobilization of Workers Required for Reclamation (from northern communities, 2016 Work Plan) | C37: Person-hours required to complete direct cost reclamation activities (10-h person-days) (pg 63, Ref 1). | D37: person-days | E37: 937 | F37: 15NWS | G37: 75 | H37: 70275
B38: Mobilization of Workers Required for Reclamation (from southern communities, 2016 Work Plan) | C38: Person-hours required to complete direct cost reclamation activities (10-h person-days) (pg 63, Ref 1). | D38: person-days | E38: 2185 | F38: 15SWS | G38: 85.45 | H38: =G38*E38 -> 186708.25
B39: Mobilization of Workers Required for Reclamation (2014 Work Plan) | C39: Person-hours required to complete direct cost reclamation activities (10-h person-days) (pg 63, Ref 1). Based on a blended unit rate of $82.315, which assumes 70% of hires from southern communities at a rate of $85.45/ person-day, and 30% from northern communities at $75/ person-day. | D39: man hours | E39: 7921 | G39: 82.32 | H39: =G39*E39 -> 652056.72
B40: Mobilization of Workers Required for Reclamation (2015 Work Plan) | C40: Person-hours required to complete direct cost reclamation activities (10-h person-days) (pg 63, Ref 1). Based on a blended unit rate of $82.315, which assumes 70% of hires from southern communities at a rate of $85.45/ person-day, and 30% from northern communities at $75/ person-day. | D40: each | E40: 559 | G40: 82.32 | H40: =G40*E40 -> 46016.88
B41: Mobilization of Workers Required for Reclamation (2015 A Work Plan) | C41: Person-hours required to complete direct cost reclamation activities (10-h person-days) (pg 63, Ref 1). Based on a blended unit rate of $82.315, which assumes 70% of hires from southern communities at a rate of $85.45/ person-day, and 30% from northern communities at $75/ person-day. | D41: each | E41: 207 | G41: 82.32 | H41: =G41*E41 -> 17040.24
B42: WORKER ACCOMODATIONS
B43: Worker Accommodation & Camp Operation | D43: person-days | E43: =10844+342 -> 11186 | F43: 15WACS | G43: 225 | H43: =G43*E43 -> 2516850
B44: Worker Accommodation & Camp Operation | C44: For the Post-Closure Monitorong and Reporting System (from 2016 Work Plan) | D44: person-days | E44: 216 | F44: 15WACS | G44: 225 | H44: =G44*E44 -> 48600
B45: Worker Accommodation & Camp Operation (2017 Work Plan) | C45: For marginal reclamation activities (517 person-days) associated with 2017 Work Plan. Includes maintenance, catering,, housekeeping & fuel costs. | D45: person-days | E45: 517 | F45: 15WACS | G45: 225 | H45: 116325
B46: Worker Accommodation & Camp Operation (2018 Work Plan) | C46: For marginal reclamation activities (3190 person-days) associated with 2018 Work Plan (Page 13 of Marginal Estimate). Includes maintenance, catering,, housekeeping & fuel costs. | D46: person-days | E46: 3190 | F46: 15WACS | G46: 225.5 | H46: 719345
B47: Worker Accommodation & Camp Operation (2017 Work Plan addendum) | C47: For marginal reclamation activities (2145 person-days) associated with 2017 Work Plan addendum. Includes maintenance, catering,, housekeeping & fuel costs. | D47: person-days | E47: 2145 | F47: 15WACS | G47: 225.5 | H47: 483697.5
B48: Long term reclamation activities (eg pump flooding) | D48: manmonths | F48: =NA() ->  | G48: =IF(ISNA(F48),0,INDEX(IF(UPPER(RIGHT(F48,1))=Low,UnitCostLow, IF(UPPER(RIGHT(F48,1))=High,UnitCostHigh,UnitCostSpecified)),MATCH(UPPER(LEFT(F48,LEN(F48)-1)),CostCode,0))) -> 0 | H48: =G48*E48 -> 0
B49: MOBILIZE FUEL
B50: Demobilization of Existing Fuel and/or Fuel Required for Reclamation | C50: Represents the fuel mobilization cost associated with the 2014 Work Plan as provided in Oct 30, 2015 EBS | D50: $ | E50: 2888000 | F50: =NA() ->  | G50: 1 | H50: =G50*E50 -> 2888000
B51: Demobilization of Existing Fuel and/or Fuel Required for Reclamation | C51: Represents marginal increase in fuel for 2015 provided in Oct 30, 2015 EBS | D51: $ | E51: 30000 | F51: =NA() ->  | G51: 1 | H51: =G51*E51 -> 30000
B52: Demobilization of Existing Fuel and/or Fuel Required for Reclamation | C52: Represents marginal increase in fuel for the 2015 Addendum provided in September 23rd, 2015 EBS | D52: $ | E52: 9000 | F52: =NA() ->  | G52: 1 | H52: 9000
B53: Demobilization of Existing Fuel and/or Fuel Required for Reclamation | C53: Represents marginal increase in fuel for 2015 R provided in September 23rd, 2015 EBS | D53: $ | E53: 203000 | F53: =NA() ->  | G53: 1 | H53: 203000
B54: Fuel Required for Reclamation (2016 Work Plan) | C54: Ref 1, pg 61 | D54: litre | E54: 35435 | F54: 15MF1S | G54: 0.4 | H54: =G54*E54 -> 14174
B55: Fuel Required for Reclamation (2017 Work Plan) | C55: 2017 Work Plan, Appendix B, pg 9. Mobilize 50% of fuel required. Reclamation activities in Nov. 24, 2016 EBS = 90,987L. Heat & power = 116L per 517 person days x $0.40/L for mobilization. Fuel cost be captured under Worker Accom. & Camp Operation. | D55: litre | E55: 74480 | F55: 15MF1S | G55: 0.4 | H55: =G55*E55 -> 29792
B56: Fuel Required for Reclamation (2017 Work Plan Addendum) | C56: 2017 Work Plan Addendum page 8. Mobilize 50% of fuel required. Reclamation activities for Marginal increase = 1,144,276L. Heat & power = 116L per 2145 person days x $0.40/L for mobilization. Fuel cost be captured under Worker Accom. & Camp Operation. Correction made to $1,213,000 per EBS not $1,216,000 as noted in the addendum. BIMC information does not clarify how the volume of fuel was derived so cost provided used to back out a volume of fuel. | D56: litre | E56: =1213000/0.4 -> 3032500 | F56: 15MF1S | G56: 0.4 | H56: =G56*E56 -> 1213000
B57: Fuel Required for Reclamation (2018 Work Plan) | C57: 2018 Work Plan page 13. Mobilize 50% of fuel required. Reclamation activities for Marginal increase = 638,170L. Heat & power = 116L per 3190 person days x $0.40/L for mobilization. Fuel cost be captured under Worker Accom. & Camp Operation. | D57: litre | E57: =(3190*116+638170)*0.5 -> 504105 | F57: 15MF1S | G57: 0.4 | H57: =G57*E57 -> 201642
B58: WINTER ROAD
B59: Construction and operation | D59: km | F59: =NA() ->  | G59: =IF(ISNA(F59),0,INDEX(IF(UPPER(RIGHT(F59,1))=Low,UnitCostLow, IF(UPPER(RIGHT(F59,1))=High,UnitCostHigh,UnitCostSpecified)),MATCH(UPPER(LEFT(F59,LEN(F59)-1)),CostCode,0))) -> 0 | H59: =G59*E59 -> 0
B60: Limited winter use | D60: km | F60: =NA() ->  | G60: =IF(ISNA(F60),0,INDEX(IF(UPPER(RIGHT(F60,1))=Low,UnitCostLow, IF(UPPER(RIGHT(F60,1))=High,UnitCostHigh,UnitCostSpecified)),MATCH(UPPER(LEFT(F60,LEN(F60)-1)),CostCode,0))) -> 0 | H60: =G60*E60 -> 0
B61: Winter road tarriff | D61: km | F61: =NA() ->  | G61: =IF(ISNA(F61),0,INDEX(IF(UPPER(RIGHT(F61,1))=Low,UnitCostLow, IF(UPPER(RIGHT(F61,1))=High,UnitCostHigh,UnitCostSpecified)),MATCH(UPPER(LEFT(F61,LEN(F61)-1)),CostCode,0))) -> 0 | H61: =G61*E61 -> 0
B62: DEMOBILIZE HEAVY EQUIPMENT
B63: Crushing Module | C63: 2018 Work Plan (see Table 3-6 in Marginal Estimate) | D63: lot | E63: 1 | F63: EBS | G63: 1500000 | H63: =G63*E63 -> 1500000
B64: Screening Module | D64: lot | E64: 1 | F64: EBS | G64: 1400000 | H64: 1400000
B65: Car Dumper Module | D65: lot | E65: 1 | F65: EBS | G65: 2200000 | H65: 2200000
B66: BMH Conveyors | D66: lot | E66: 1 | F66: EBS | G66: 1500000 | H66: 1500000
B67: Rail Construction Materials | D67: lot | E67: 1 | F67: EBS | G67: 500000 | H67: 500000
B68: Excavators | D68: km | F68: mherh | G68: =IF(ISNA(F68),0,INDEX(IF(UPPER(RIGHT(F68,1))=Low,UnitCostLow, IF(UPPER(RIGHT(F68,1))=High,UnitCostHigh,UnitCostSpecified)),MATCH(UPPER(LEFT(F68,LEN(F68)-1)),CostCode,0))) -> 10.25 | H68: =G68*E68 -> 0
B69: Dump trucks | D69: km | F69: mherl | G69: =IF(ISNA(F69),0,INDEX(IF(UPPER(RIGHT(F69,1))=Low,UnitCostLow, IF(UPPER(RIGHT(F69,1))=High,UnitCostHigh,UnitCostSpecified)),MATCH(UPPER(LEFT(F69,LEN(F69)-1)),CostCode,0))) -> 3.4 | H69: 0
B70: Dozers | D70: km | F70: mherh | G70: 10.25 | H70: 0
B71: Demolition shears | D71: km | F71: mherh | G71: 10.25 | H71: 0
B72: Crane | D72: km | F72: mherh | G72: 10.25 | H72: 0
B73: Loader | D73: km | F73: mherh | G73: =IF(ISNA(F73),0,INDEX(IF(UPPER(RIGHT(F73,1))=Low,UnitCostLow, IF(UPPER(RIGHT(F73,1))=High,UnitCostHigh,UnitCostSpecified)),MATCH(UPPER(LEFT(F73,LEN(F73)-1)),CostCode,0))) -> 10.25 | H73: =G73*E73 -> 0
B74: Compactor | D74: each | F74: =NA() ->  | G74: =IF(ISNA(F74),0,INDEX(IF(UPPER(RIGHT(F74,1))=Low,UnitCostLow, IF(UPPER(RIGHT(F74,1))=High,UnitCostHigh,UnitCostSpecified)),MATCH(UPPER(LEFT(F74,LEN(F74)-1)),CostCode,0))) -> 0 | H74: =G74*E74 -> 0
B75: Light duty vehicles | D75: km | F75: mherl | G75: 3.4 | H75: 0
B76: Other | D76: km | F76: =NA() ->  | G76: 0 | H76: 0
B77: DEMOBILIZE CAMP
D78: allow | F78: =NA() ->  | G78: =IF(ISNA(F78),0,INDEX(IF(UPPER(RIGHT(F78,1))=Low,UnitCostLow, IF(UPPER(RIGHT(F78,1))=High,UnitCostHigh,UnitCostSpecified)),MATCH(UPPER(LEFT(F78,LEN(F78)-1)),CostCode,0))) -> 0 | H78: =G78*E78 -> 0
B79: DEMOBILIZE WORKERS
B80: crew travel time | C80: cost in mobilization of workers. | D80: mandays | F80: =NA() ->  | G80: =IF(ISNA(F80),0,INDEX(IF(UPPER(RIGHT(F80,1))=Low,UnitCostLow, IF(UPPER(RIGHT(F80,1))=High,UnitCostHigh,UnitCostSpecified)),MATCH(UPPER(LEFT(F80,LEN(F80)-1)),CostCode,0))) -> 0 | H80: =G80*E80 -> 0
B81: crew transportation | D81: each | F81: =NA() ->  | G81: =IF(ISNA(F81),0,INDEX(IF(UPPER(RIGHT(F81,1))=Low,UnitCostLow, IF(UPPER(RIGHT(F81,1))=High,UnitCostHigh,UnitCostSpecified)),MATCH(UPPER(LEFT(F81,LEN(F81)-1)),CostCode,0))) -> 0 | H81: =G81*E81 -> 0
B82: WINTER ROAD
B83: Construction and operation | D83: km | F83: wrcl | G83: =IF(ISNA(F83),0,INDEX(IF(UPPER(RIGHT(F83,1))=Low,UnitCostLow, IF(UPPER(RIGHT(F83,1))=High,UnitCostHigh,UnitCostSpecified)),MATCH(UPPER(LEFT(F83,LEN(F83)-1)),CostCode,0))) -> 2000 | H83: =G83*E83 -> 0
B84: Limited winter use | D84: km | F84: =NA() ->  | G84: =IF(ISNA(F84),0,INDEX(IF(UPPER(RIGHT(F84,1))=Low,UnitCostLow, IF(UPPER(RIGHT(F84,1))=High,UnitCostHigh,UnitCostSpecified)),MATCH(UPPER(LEFT(F84,LEN(F84)-1)),CostCode,0))) -> 0 | H84: =G84*E84 -> 0
B85: Winter road tarriff | D85: tonnekm | F85: wrul | G85: =IF(ISNA(F85),0,INDEX(IF(UPPER(RIGHT(F85,1))=Low,UnitCostLow, IF(UPPER(RIGHT(F85,1))=High,UnitCostHigh,UnitCostSpecified)),MATCH(UPPER(LEFT(F85,LEN(F85)-1)),CostCode,0))) -> 0.29 | H85: =G85*E85 -> 0
G86: Total | H86: =SUM(H5:H85)+0.0001 -> 23273544.44

Sheet UG Mine
A1: 1 | B1: Underground Mine Name | G1: UG Mine # | H1: 1
B3: ACTIVITY/MATERIAL | C3: Notes | D3: Unit | E3: Qty | F3: Cost Code | G3: Unit Cost | H3: Cost | I3: % Land | J3: Land Cost | K3: Water Cost
B4: CONTROL ACCESS
B5: Fence | D5: m | F5: =NA() ->  | G5: =IF(ISNA(F5),0,INDEX(IF(UPPER(RIGHT(F5,1))=Low,UnitCostLow, IF(UPPER(RIGHT(F5,1))=High,UnitCostHigh,UnitCostSpecified)),MATCH(UPPER(LEFT(F5,LEN(F5)-1)),CostCode,0))) -> 0 | H5: =G5*E5 -> 0 | J5: =H5*I5 -> 0 | K5: =H5*(1-I5) -> 0
B6: Signs | D6: each | F6: =NA() ->  | G6: 0 | H6: 0 | J6: =H6*I6 -> 0 | K6: =H6*(1-I6) -> 0
B7: Block roads | D7: m3 | F7: =NA() ->  | G7: 0 | H7: =G7*E7 -> 0 | J7: 0 | K7: 0
B8: Berm | D8: m3 | F8: =NA() ->  | G8: 0 | H8: 0 | J8: 0 | K8: 0
B9: Concrete wall in portals | D9: m3 | F9: =NA() ->  | G9: 0 | H9: 0 | J9: =H9*I9 -> 0 | K9: =H9*(1-I9) -> 0
B10: Backfill portal #1 | D10: m3 | F10: RR4 | G10: 7.6 | H10: 0 | I10: 1 | J10: 0 | K10: 0
B11: Backfill portal #2 | D11: m3 | F11: =NA() ->  | G11: 0 | H11: 0 | J11: 0 | K11: 0
B12: Cap raise - 5 total | D12: each | F12: =NA() ->  | G12: 85656 | H12: 0 | I12: 1 | J12: 0 | K12: 0
B13: Cap raise #2 | D13: m3 | F13: =NA() ->  | G13: 0 | H13: 0 | J13: 0 | K13: 0
B14: Cap shaft #1 | D14: m3 | F14: =NA() ->  | G14: 0 | H14: 0 | J14: 0 | K14: 0
B15: Cap shaft #2 | D15: m3 | F15: =NA() ->  | G15: 0 | H15: 0 | J15: 0 | K15: 0
B16: Backfill adits | D16: m3 | F16: =NA() ->  | G16: 0 | H16: 0 | J16: =H16*I16 -> 0 | K16: =H16*(1-I16) -> 0
B17: Backfill open stope | D17: m3 | F17: sc3h | G17: 14.2 | H17: 0 | I17: 1 | J17: 0 | K17: 0
B18: Concrete cap over open stope | D18: m3 | F18: =NA() ->  | G18: 0 | H18: 0 | J18: 0 | K18: 0
B19: Other - crown pillar study | D19: LS | F19: =NA() ->  | G19: 25000 | H19: 0 | I19: 1 | J19: 0 | K19: 0
B20: REMOVE HAZARDOUS MATERIALS
B21: Remove hazardous materials, U/G labor | D21: mandays | F21: =NA() ->  | G21: 500 | H21: =G21*E21 -> 0 | I21: 0.5 | J21: =H21*I21 -> 0 | K21: =H21*(1-I21) -> 0
B22: Remove/decontam. stationary & elect. equip | D22: mandays | F22: =NA() ->  | G22: =IF(ISNA(F22),0,INDEX(IF(UPPER(RIGHT(F22,1))=Low,UnitCostLow, IF(UPPER(RIGHT(F22,1))=High,UnitCostHigh,UnitCostSpecified)),MATCH(UPPER(LEFT(F22,LEN(F22)-1)),CostCode,0))) -> 0 | H22: =G22*E22 -> 0 | J22: =H22*I22 -> 0 | K22: =H22*(1-I22) -> 0
B23: Remove/decontam. mobile equipment | D23: each | F23: =NA() ->  | G23: =IF(ISNA(F23),0,INDEX(IF(UPPER(RIGHT(F23,1))=Low,UnitCostLow, IF(UPPER(RIGHT(F23,1))=High,UnitCostHigh,UnitCostSpecified)),MATCH(UPPER(LEFT(F23,LEN(F23)-1)),CostCode,0))) -> 0 | H23: =G23*E23 -> 0 | J23: =H23*I23 -> 0 | K23: =H23*(1-I23) -> 0
B24: Remove misc. haz. mat & explosives | D24: kg | F24: =NA() ->  | G24: =IF(ISNA(F24),0,INDEX(IF(UPPER(RIGHT(F24,1))=Low,UnitCostLow, IF(UPPER(RIGHT(F24,1))=High,UnitCostHigh,UnitCostSpecified)),MATCH(UPPER(LEFT(F24,LEN(F24)-1)),CostCode,0))) -> 0 | H24: =G24*E24 -> 0 | J24: =H24*I24 -> 0 | K24: =H24*(1-I24) -> 0
B25: Other | F25: =NA() ->  | G25: =IF(ISNA(F25),0,INDEX(IF(UPPER(RIGHT(F25,1))=Low,UnitCostLow, IF(UPPER(RIGHT(F25,1))=High,UnitCostHigh,UnitCostSpecified)),MATCH(UPPER(LEFT(F25,LEN(F25)-1)),CostCode,0))) -> 0 | H25: =G25*E25 -> 0 | J25: =H25*I25 -> 0 | K25: =H25*(1-I25) -> 0
B26: INSTALL BULKHEADS
B27: Bulkheads to control water flow | D27: each | F27: =NA() ->  | G27: =IF(ISNA(F27),0,INDEX(IF(UPPER(RIGHT(F27,1))=Low,UnitCostLow, IF(UPPER(RIGHT(F27,1))=High,UnitCostHigh,UnitCostSpecified)),MATCH(UPPER(LEFT(F27,LEN(F27)-1)),CostCode,0))) -> 0 | H27: =G27*E27 -> 0 | J27: =H27*I27 -> 0 | K27: =H27*(1-I27) -> 0
B28: Grout bulkhead | D28: m3 | F28: =NA() ->  | G28: =IF(ISNA(F28),0,INDEX(IF(UPPER(RIGHT(F28,1))=Low,UnitCostLow, IF(UPPER(RIGHT(F28,1))=High,UnitCostHigh,UnitCostSpecified)),MATCH(UPPER(LEFT(F28,LEN(F28)-1)),CostCode,0))) -> 0 | H28: =G28*E28 -> 0 | J28: =H28*I28 -> 0 | K28: =H28*(1-I28) -> 0
B29: FLOOD MINE
B30: Supply/install pump | D30: each | F30: =NA() ->  | G30: =IF(ISNA(F30),0,INDEX(IF(UPPER(RIGHT(F30,1))=Low,UnitCostLow, IF(UPPER(RIGHT(F30,1))=High,UnitCostHigh,UnitCostSpecified)),MATCH(UPPER(LEFT(F30,LEN(F30)-1)),CostCode,0))) -> 0 | H30: =G30*E30 -> 0 | J30: 0 | K30: 0
B31: Supply/install piping system | D31: each | F31: =NA() ->  | G31: =IF(ISNA(F31),0,INDEX(IF(UPPER(RIGHT(F31,1))=Low,UnitCostLow, IF(UPPER(RIGHT(F31,1))=High,UnitCostHigh,UnitCostSpecified)),MATCH(UPPER(LEFT(F31,LEN(F31)-1)),CostCode,0))) -> 0 | H31: =G31*E31 -> 0 | J31: =H31*I31 -> 0 | K31: =H31*(1-I31) -> 0
B32: Operate pumps to flood workings | D32: m3 | F32: =NA() ->  | G32: =IF(ISNA(F32),0,INDEX(IF(UPPER(RIGHT(F32,1))=Low,UnitCostLow, IF(UPPER(RIGHT(F32,1))=High,UnitCostHigh,UnitCostSpecified)),MATCH(UPPER(LEFT(F32,LEN(F32)-1)),CostCode,0))) -> 0 | H32: =G32*E32 -> 0 | J32: 0 | K32: 0
B33: Other | F33: =NA() ->  | G33: =IF(ISNA(F33),0,INDEX(IF(UPPER(RIGHT(F33,1))=Low,UnitCostLow, IF(UPPER(RIGHT(F33,1))=High,UnitCostHigh,UnitCostSpecified)),MATCH(UPPER(LEFT(F33,LEN(F33)-1)),CostCode,0))) -> 0 | H33: =G33*E33 -> 0 | J33: 0 | K33: 0
B34: INSTALL GROUNDWATER COLLECTION SYSTEM
B35: Excavate/install sumps | D35: m2 | F35: =NA() ->  | G35: =IF(ISNA(F35),0,INDEX(IF(UPPER(RIGHT(F35,1))=Low,UnitCostLow, IF(UPPER(RIGHT(F35,1))=High,UnitCostHigh,UnitCostSpecified)),MATCH(UPPER(LEFT(F35,LEN(F35)-1)),CostCode,0))) -> 0 | H35: =G35*E35 -> 0 | J35: =H35*I35 -> 0 | K35: =+H35*(1-I35) -> 0
B36: Install pumping wells | D36: m3 | F36: =NA() ->  | G36: =IF(ISNA(F36),0,INDEX(IF(UPPER(RIGHT(F36,1))=Low,UnitCostLow, IF(UPPER(RIGHT(F36,1))=High,UnitCostHigh,UnitCostSpecified)),MATCH(UPPER(LEFT(F36,LEN(F36)-1)),CostCode,0))) -> 0 | H36: =G36*E36 -> 0 | J36: =H36*I36 -> 0 | K36: =+H36*(1-I36) -> 0
B37: Install pumps/pipelines/power supply | D37: LS | F37: =NA() ->  | G37: =IF(ISNA(F37),0,INDEX(IF(UPPER(RIGHT(F37,1))=Low,UnitCostLow, IF(UPPER(RIGHT(F37,1))=High,UnitCostHigh,UnitCostSpecified)),MATCH(UPPER(LEFT(F37,LEN(F37)-1)),CostCode,0))) -> 0 | H37: =G37*E37 -> 0 | J37: =H37*I37 -> 0 | K37: =+H37*(1-I37) -> 0
B38: SPECIALIZED ITEMS
B39: Install water quality monitoring pipes | D39: each | F39: =NA() ->  | G39: =IF(ISNA(F39),0,INDEX(IF(UPPER(RIGHT(F39,1))=Low,UnitCostLow, IF(UPPER(RIGHT(F39,1))=High,UnitCostHigh,UnitCostSpecified)),MATCH(UPPER(LEFT(F39,LEN(F39)-1)),CostCode,0))) -> 0 | H39: =G39*E39 -> 0 | J39: =H39*I39 -> 0 | K39: 0
B40: Install permanent pumping system | D40: each | F40: =NA() ->  | G40: =IF(ISNA(F40),0,INDEX(IF(UPPER(RIGHT(F40,1))=Low,UnitCostLow, IF(UPPER(RIGHT(F40,1))=High,UnitCostHigh,UnitCostSpecified)),MATCH(UPPER(LEFT(F40,LEN(F40)-1)),CostCode,0))) -> 0 | H40: =G40*E40 -> 0 | J40: =H40*I40 -> 0 | K40: 0
B41: Other | F41: =NA() ->  | G41: =IF(ISNA(F41),0,INDEX(IF(UPPER(RIGHT(F41,1))=Low,UnitCostLow, IF(UPPER(RIGHT(F41,1))=High,UnitCostHigh,UnitCostSpecified)),MATCH(UPPER(LEFT(F41,LEN(F41)-1)),CostCode,0))) -> 0 | H41: =G41*E41 -> 0 | J41: =H41*I41 -> 0 | K41: 0
G42: Total | H42: =SUM(H5:H41)+0.0001 -> 0.0001 | J42: =SUM(J5:J41) -> 0 | K42: =SUM(K5:K41) -> 0
G43: % of Total | J43: =J42/H42 -> 0 | K43: =K42/H42 -> 0

Sheet Tailings
A1: 1 | B1: Tailings Impoundment Name: | G1: Pond # | H1: 1
B3: ACTIVITY/MATERIAL | C3: Notes | D3: Units | E3: Quantity | F3: Cost Code | G3: Unit Cost | H3: Cost | I3: % Land | J3: Land Cost | K3: Water Cost
B4: CONTROL ACCESS
B5: Fence | D5: m | F5: =NA() ->  | G5: =IF(ISNA(F5),0,INDEX(IF(UPPER(RIGHT(F5,1))=Low,UnitCostLow, IF(UPPER(RIGHT(F5,1))=High,UnitCostHigh,UnitCostSpecified)),MATCH(UPPER(LEFT(F5,LEN(F5)-1)),CostCode,0))) -> 0 | H5: =G5*E5 -> 0 | J5: =H5*I5 -> 0 | K5: =+H5*(1-I5) -> 0
B6: Signs | D6: each | F6: =NA() ->  | G6: =IF(ISNA(F6),0,INDEX(IF(UPPER(RIGHT(F6,1))=Low,UnitCostLow, IF(UPPER(RIGHT(F6,1))=High,UnitCostHigh,UnitCostSpecified)),MATCH(UPPER(LEFT(F6,LEN(F6)-1)),CostCode,0))) -> 0 | H6: =G6*E6 -> 0 | J6: =H6*I6 -> 0 | K6: =+H6*(1-I6) -> 0
B7: Berm | D7: m3 | F7: =NA() ->  | G7: =IF(ISNA(F7),0,INDEX(IF(UPPER(RIGHT(F7,1))=Low,UnitCostLow, IF(UPPER(RIGHT(F7,1))=High,UnitCostHigh,UnitCostSpecified)),MATCH(UPPER(LEFT(F7,LEN(F7)-1)),CostCode,0))) -> 0 | H7: =G7*E7 -> 0 | J7: 0 | K7: 0
B8: Block roads | D8: m3 | F8: =NA() ->  | G8: =IF(ISNA(F8),0,INDEX(IF(UPPER(RIGHT(F8,1))=Low,UnitCostLow, IF(UPPER(RIGHT(F8,1))=High,UnitCostHigh,UnitCostSpecified)),MATCH(UPPER(LEFT(F8,LEN(F8)-1)),CostCode,0))) -> 0 | H8: =G8*E8 -> 0 | J8: 0 | K8: 0
B9: Other | F9: =NA() ->  | G9: =IF(ISNA(F9),0,INDEX(IF(UPPER(RIGHT(F9,1))=Low,UnitCostLow, IF(UPPER(RIGHT(F9,1))=High,UnitCostHigh,UnitCostSpecified)),MATCH(UPPER(LEFT(F9,LEN(F9)-1)),CostCode,0))) -> 0 | H9: =G9*E9 -> 0 | J9: 0 | K9: 0
B10: STABILIZE EMBANKMENT(S)
B11: Toe buttress, drainage layer | D11: m3 | F11: =NA() ->  | G11: =IF(ISNA(F11),0,INDEX(IF(UPPER(RIGHT(F11,1))=Low,UnitCostLow, IF(UPPER(RIGHT(F11,1))=High,UnitCostHigh,UnitCostSpecified)),MATCH(UPPER(LEFT(F11,LEN(F11)-1)),CostCode,0))) -> 0 | H11: =G11*E11 -> 0 | J11: 0 | K11: 0
B12: Toe buttress, bulk fill | D12: m3 | F12: =NA() ->  | G12: =IF(ISNA(F12),0,INDEX(IF(UPPER(RIGHT(F12,1))=Low,UnitCostLow, IF(UPPER(RIGHT(F12,1))=High,UnitCostHigh,UnitCostSpecified)),MATCH(UPPER(LEFT(F12,LEN(F12)-1)),CostCode,0))) -> 0 | H12: 0 | J12: 0 | K12: 0
B13: Rip rap | D13: m3 | F13: RB2 | G13: =Unit_Costs!G27 -> 17.8 | H13: 0 | I13: 0.5 | J13: 0 | K13: 0
B14: Vegetate | D14: ha | F14: =NA() ->  | G14: =IF(ISNA(F14),0,INDEX(IF(UPPER(RIGHT(F14,1))=Low,UnitCostLow, IF(UPPER(RIGHT(F14,1))=High,UnitCostHigh,UnitCostSpecified)),MATCH(UPPER(LEFT(F14,LEN(F14)-1)),CostCode,0))) -> 0 | H14: 0 | J14: 0 | K14: 0
B15: Raise crest | D15: m3 | F15: =NA() ->  | G15: =IF(ISNA(F15),0,INDEX(IF(UPPER(RIGHT(F15,1))=Low,UnitCostLow, IF(UPPER(RIGHT(F15,1))=High,UnitCostHigh,UnitCostSpecified)),MATCH(UPPER(LEFT(F15,LEN(F15)-1)),CostCode,0))) -> 0 | H15: 0 | J15: 0 | K15: 0
B16: Flatten slopes | D16: m3 | F16: =NA() ->  | G16: =IF(ISNA(F16),0,INDEX(IF(UPPER(RIGHT(F16,1))=Low,UnitCostLow, IF(UPPER(RIGHT(F16,1))=High,UnitCostHigh,UnitCostSpecified)),MATCH(UPPER(LEFT(F16,LEN(F16)-1)),CostCode,0))) -> 0 | H16: 0 | J16: 0 | K16: 0
B17: Other | F17: =NA() ->  | G17: =IF(ISNA(F17),0,INDEX(IF(UPPER(RIGHT(F17,1))=Low,UnitCostLow, IF(UPPER(RIGHT(F17,1))=High,UnitCostHigh,UnitCostSpecified)),MATCH(UPPER(LEFT(F17,LEN(F17)-1)),CostCode,0))) -> 0 | H17: 0 | J17: 0 | K17: 0
B18: COVER TAILINGS
B19: Grade/shape tailings surface | D19: m3 | F19: =NA() ->  | G19: =IF(ISNA(F19),0,INDEX(IF(UPPER(RIGHT(F19,1))=Low,UnitCostLow, IF(UPPER(RIGHT(F19,1))=High,UnitCostHigh,UnitCostSpecified)),MATCH(UPPER(LEFT(F19,LEN(F19)-1)),CostCode,0))) -> 0 | H19: =G19*E19 -> 0 | J19: =H19*I19 -> 0 | K19: =+H19*(1-I19) -> 0
B20: Liner bedding | D20: m3 | F20: =NA() ->  | G20: 0 | H20: =G20*E20 -> 0 | J20: =H20*I20 -> 0 | K20: =+H20*(1-I20) -> 0
B21: Subgrade preparation - compact | D21: m2 | F21: =NA() ->  | G21: 0 | H21: =G21*E21 -> 0 | J21: =H21*I21 -> 0 | K21: =+H21*(1-I21) -> 0
B22: Supply geotextile/geosynthetic | D22: m2 | F22: =NA() ->  | G22: 0 | H22: 0 | J22: 0 | K22: 0
B23: Install geotextile/geosynthetic | D23: m2 | F23: =NA() ->  | G23: 0 | H23: =G23*E23 -> 0 | J23: =H23*I23 -> 0 | K23: =+H23*(1-I23) -> 0
B24: Soil cover | D24: m3 | F24: SC4L | G24: 9.3 | H24: 0 | I24: 0.5 | J24: 0 | K24: 0
B25: Rock cover | D25: m3 | F25: =NA() ->  | G25: 0 | H25: =G25*E25 -> 0 | J25: =H25*I25 -> 0 | K25: =+H25*(1-I25) -> 0
B26: Vegetate | D26: ha | F26: VHF | G26: 4000 | H26: 0 | I26: 0.5 | J26: 0 | K26: 0
B27: Other | D27: m3 | F27: SC4L | G27: =IF(ISNA(F27),0,INDEX(IF(UPPER(RIGHT(F27,1))=Low,UnitCostLow, IF(UPPER(RIGHT(F27,1))=High,UnitCostHigh,UnitCostSpecified)),MATCH(UPPER(LEFT(F27,LEN(F27)-1)),CostCode,0))) -> 9.3 | H27: =G27*E27 -> 0 | I27: 0.5 | J27: =H27*I27 -> 0 | K27: =+H27*(1-I27) -> 0
B28: BURY PAG ROCK
B29: Relocate PAG rock | D29: m3 | F29: =NA() ->  | G29: =IF(ISNA(F29),0,INDEX(IF(UPPER(RIGHT(F29,1))=Low,UnitCostLow, IF(UPPER(RIGHT(F29,1))=High,UnitCostHigh,UnitCostSpecified)),MATCH(UPPER(LEFT(F29,LEN(F29)-1)),CostCode,0))) -> 0 | H29: =G29*E29 -> 0 | J29: 0 | K29: 0
B30: Place cover over PAG rock | D30: m3 | F30: =NA() ->  | G30: =IF(ISNA(F30),0,INDEX(IF(UPPER(RIGHT(F30,1))=Low,UnitCostLow, IF(UPPER(RIGHT(F30,1))=High,UnitCostHigh,UnitCostSpecified)),MATCH(UPPER(LEFT(F30,LEN(F30)-1)),CostCode,0))) -> 0 | H30: =G30*E30 -> 0 | J30: 0 | K30: 0
B31: Raise crest of dam | D31: m3 | F31: =NA() ->  | G31: =IF(ISNA(F31),0,INDEX(IF(UPPER(RIGHT(F31,1))=Low,UnitCostLow, IF(UPPER(RIGHT(F31,1))=High,UnitCostHigh,UnitCostSpecified)),MATCH(UPPER(LEFT(F31,LEN(F31)-1)),CostCode,0))) -> 0 | H31: =G31*E31 -> 0 | J31: 0 | K31: 0
B32: Other | F32: =NA() ->  | G32: =IF(ISNA(F32),0,INDEX(IF(UPPER(RIGHT(F32,1))=Low,UnitCostLow, IF(UPPER(RIGHT(F32,1))=High,UnitCostHigh,UnitCostSpecified)),MATCH(UPPER(LEFT(F32,LEN(F32)-1)),CostCode,0))) -> 0 | H32: =G32*E32 -> 0 | J32: 0 | K32: 0
B33: STABILIZE DECANT SYSTEM
B34: Excavate and replace | D34: m3 | F34: =NA() ->  | G34: =IF(ISNA(F34),0,INDEX(IF(UPPER(RIGHT(F34,1))=Low,UnitCostLow, IF(UPPER(RIGHT(F34,1))=High,UnitCostHigh,UnitCostSpecified)),MATCH(UPPER(LEFT(F34,LEN(F34)-1)),CostCode,0))) -> 0 | H34: =G34*E34 -> 0 | J34: =H34*I34 -> 0 | K34: =+H34*(1-I34) -> 0
B35: Plug/backfill with concrete or clay | D35: m3 | F35: =NA() ->  | G35: =IF(ISNA(F35),0,INDEX(IF(UPPER(RIGHT(F35,1))=Low,UnitCostLow, IF(UPPER(RIGHT(F35,1))=High,UnitCostHigh,UnitCostSpecified)),MATCH(UPPER(LEFT(F35,LEN(F35)-1)),CostCode,0))) -> 0 | H35: =G35*E35 -> 0 | J35: =H35*I35 -> 0 | K35: =+H35*(1-I35) -> 0
B36: Other | F36: =NA() ->  | G36: =IF(ISNA(F36),0,INDEX(IF(UPPER(RIGHT(F36,1))=Low,UnitCostLow, IF(UPPER(RIGHT(F36,1))=High,UnitCostHigh,UnitCostSpecified)),MATCH(UPPER(LEFT(F36,LEN(F36)-1)),CostCode,0))) -> 0 | H36: =G36*E36 -> 0 | J36: =H36*I36 -> 0 | K36: =+H36*(1-I36) -> 0
B37: REMOVE TAILINGS DISCHARGE
B38: Cyclones | D38: m3 | F38: =NA() ->  | G38: =IF(ISNA(F38),0,INDEX(IF(UPPER(RIGHT(F38,1))=Low,UnitCostLow, IF(UPPER(RIGHT(F38,1))=High,UnitCostHigh,UnitCostSpecified)),MATCH(UPPER(LEFT(F38,LEN(F38)-1)),CostCode,0))) -> 0 | H38: =G38*E38 -> 0 | J38: =H38*I38 -> 0 | K38: =+H38*(1-I38) -> 0
B39: Pipe | D39: m | F39: ppls | G39: 57.33 | H39: =G39*E39 -> 0 | J39: =H39*I39 -> 0 | K39: =+H39*(1-I39) -> 0
B40: Remove reclaim barge | D40: allow | F40: =NA() ->  | G40: =IF(ISNA(F40),0,INDEX(IF(UPPER(RIGHT(F40,1))=Low,UnitCostLow, IF(UPPER(RIGHT(F40,1))=High,UnitCostHigh,UnitCostSpecified)),MATCH(UPPER(LEFT(F40,LEN(F40)-1)),CostCode,0))) -> 0 | H40: =G40*E40 -> 0 | J40: =H40*I40 -> 0 | K40: =+H40*(1-I40) -> 0
B41: CONSTRUCT DIVERSION DITCHES
B42: Excavate ditches -soil | D42: m3 | F42: =NA() ->  | G42: =IF(ISNA(F42),0,INDEX(IF(UPPER(RIGHT(F42,1))=Low,UnitCostLow, IF(UPPER(RIGHT(F42,1))=High,UnitCostHigh,UnitCostSpecified)),MATCH(UPPER(LEFT(F42,LEN(F42)-1)),CostCode,0))) -> 0 | H42: =G42*E42 -> 0 | J42: =H42*I42 -> 0 | K42: =+H42*(1-I42) -> 0
B43: Excavate ditches -rock | D43: m3 | F43: =NA() ->  | G43: =IF(ISNA(F43),0,INDEX(IF(UPPER(RIGHT(F43,1))=Low,UnitCostLow, IF(UPPER(RIGHT(F43,1))=High,UnitCostHigh,UnitCostSpecified)),MATCH(UPPER(LEFT(F43,LEN(F43)-1)),CostCode,0))) -> 0 | H43: =G43*E43 -> 0 | J43: =H43*I43 -> 0 | K43: =+H43*(1-I43) -> 0
B44: Rip rap in channel base | D44: m3 | F44: =NA() ->  | G44: =IF(ISNA(F44),0,INDEX(IF(UPPER(RIGHT(F44,1))=Low,UnitCostLow, IF(UPPER(RIGHT(F44,1))=High,UnitCostHigh,UnitCostSpecified)),MATCH(UPPER(LEFT(F44,LEN(F44)-1)),CostCode,0))) -> 0 | H44: =G44*E44 -> 0 | J44: =H44*I44 -> 0 | K44: =+H44*(1-I44) -> 0
B45: FLOOD TAILINGS
B46: Doze tailings to final contour | D46: m3 | F46: =NA() ->  | G46: =IF(ISNA(F46),0,INDEX(IF(UPPER(RIGHT(F46,1))=Low,UnitCostLow, IF(UPPER(RIGHT(F46,1))=High,UnitCostHigh,UnitCostSpecified)),MATCH(UPPER(LEFT(F46,LEN(F46)-1)),CostCode,0))) -> 0 | H46: =G46*E46 -> 0 | J46: 0 | K46: 0
B47: Raise crest of dam | D47: m3 | F47: =NA() ->  | G47: =IF(ISNA(F47),0,INDEX(IF(UPPER(RIGHT(F47,1))=Low,UnitCostLow, IF(UPPER(RIGHT(F47,1))=High,UnitCostHigh,UnitCostSpecified)),MATCH(UPPER(LEFT(F47,LEN(F47)-1)),CostCode,0))) -> 0 | H47: =G47*E47 -> 0 | J47: 0 | K47: 0
B48: Other | F48: =NA() ->  | G48: =IF(ISNA(F48),0,INDEX(IF(UPPER(RIGHT(F48,1))=Low,UnitCostLow, IF(UPPER(RIGHT(F48,1))=High,UnitCostHigh,UnitCostSpecified)),MATCH(UPPER(LEFT(F48,LEN(F48)-1)),CostCode,0))) -> 0 | H48: =G48*E48 -> 0 | J48: 0 | K48: 0
B49: UPGRADE SPILLWAY
B50: Excavate channel, rock | D50: m3 | F50: =NA() ->  | G50: =IF(ISNA(F50),0,INDEX(IF(UPPER(RIGHT(F50,1))=Low,UnitCostLow, IF(UPPER(RIGHT(F50,1))=High,UnitCostHigh,UnitCostSpecified)),MATCH(UPPER(LEFT(F50,LEN(F50)-1)),CostCode,0))) -> 0 | H50: =G50*E50 -> 0 | J50: 0 | K50: 0
B51: Excavate channel, soil | D51: m3 | F51: SC3H | G51: =IF(ISNA(F51),0,INDEX(IF(UPPER(RIGHT(F51,1))=Low,UnitCostLow, IF(UPPER(RIGHT(F51,1))=High,UnitCostHigh,UnitCostSpecified)),MATCH(UPPER(LEFT(F51,LEN(F51)-1)),CostCode,0))) -> 14.2 | H51: =G51*E51 -> 0 | J51: 0 | K51: 0
B52: Concrete | D52: m3 | F52: =NA() ->  | G52: =IF(ISNA(F52),0,INDEX(IF(UPPER(RIGHT(F52,1))=Low,UnitCostLow, IF(UPPER(RIGHT(F52,1))=High,UnitCostHigh,UnitCostSpecified)),MATCH(UPPER(LEFT(F52,LEN(F52)-1)),CostCode,0))) -> 0 | H52: =G52*E52 -> 0 | J52: 0 | K52: 0
B53: Rip rap | D53: m3 | F53: RB4H | G53: =IF(ISNA(F53),0,INDEX(IF(UPPER(RIGHT(F53,1))=Low,UnitCostLow, IF(UPPER(RIGHT(F53,1))=High,UnitCostHigh,UnitCostSpecified)),MATCH(UPPER(LEFT(F53,LEN(F53)-1)),CostCode,0))) -> 30.75 | H53: =G53*E53 -> 0 | J53: 0 | K53: 0
B54: Geotextile | D54: m2 | F54: GSTL | G54: =IF(ISNA(F54),0,INDEX(IF(UPPER(RIGHT(F54,1))=Low,UnitCostLow, IF(UPPER(RIGHT(F54,1))=High,UnitCostHigh,UnitCostSpecified)),MATCH(UPPER(LEFT(F54,LEN(F54)-1)),CostCode,0))) -> 3.44 | H54: =G54*E54 -> 0 | J54: 0 | K54: 0
B55: CONSTRUCT SEEPAGE COLLECTION POND
B56: Excavate seepage collection pond | D56: m3 | F56: =NA() ->  | G56: =IF(ISNA(F56),0,INDEX(IF(UPPER(RIGHT(F56,1))=Low,UnitCostLow, IF(UPPER(RIGHT(F56,1))=High,UnitCostHigh,UnitCostSpecified)),MATCH(UPPER(LEFT(F56,LEN(F56)-1)),CostCode,0))) -> 0 | H56: =G56*E56 -> 0 | J56: =H56*I56 -> 0 | K56: =+H56*(1-I56) -> 0
B57: Doze & spread excavated material | D57: m3 | F57: =NA() ->  | G57: 0 | H57: 0 | J57: 0 | K57: 0
B58: Vegetate spread material | D58: ha | F58: =NA() ->  | G58: 0 | H58: 0 | J58: 0 | K58: 0
B59: Bedding layer | D59: m3 | F59: =NA() ->  | G59: 0 | H59: 0 | J59: 0 | K59: 0
B60: Supply geomembrane | D60: m2 | F60: =NA() ->  | G60: 0 | H60: 0 | J60: 0 | K60: 0
B61: Install geomembrane | D61: m2 | F61: =NA() ->  | G61: 0 | H61: 0 | J61: 0 | K61: 0
B62: Erosion protection layer | D62: m3 | F62: =NA() ->  | G62: 0 | H62: 0 | J62: 0 | K62: 0
B63: INSTALL GROUNDWATER COLLECTION SYSTEM
B64: Excavate/install sumps | D64: m3 | F64: =NA() ->  | G64: =IF(ISNA(F64),0,INDEX(IF(UPPER(RIGHT(F64,1))=Low,UnitCostLow, IF(UPPER(RIGHT(F64,1))=High,UnitCostHigh,UnitCostSpecified)),MATCH(UPPER(LEFT(F64,LEN(F64)-1)),CostCode,0))) -> 0 | H64: =G64*E64 -> 0 | J64: =H64*I64 -> 0 | K64: =+H64*(1-I64) -> 0
B65: Install pumping wells | D65: m3 | F65: =NA() ->  | G65: =IF(ISNA(F65),0,INDEX(IF(UPPER(RIGHT(F65,1))=Low,UnitCostLow, IF(UPPER(RIGHT(F65,1))=High,UnitCostHigh,UnitCostSpecified)),MATCH(UPPER(LEFT(F65,LEN(F65)-1)),CostCode,0))) -> 0 | H65: =G65*E65 -> 0 | J65: =H65*I65 -> 0 | K65: =+H65*(1-I65) -> 0
B66: Install pumps/pipelines/power supply | D66: LS | F66: =NA() ->  | G66: =IF(ISNA(F66),0,INDEX(IF(UPPER(RIGHT(F66,1))=Low,UnitCostLow, IF(UPPER(RIGHT(F66,1))=High,UnitCostHigh,UnitCostSpecified)),MATCH(UPPER(LEFT(F66,LEN(F66)-1)),CostCode,0))) -> 0 | H66: =G66*E66 -> 0 | J66: =H66*I66 -> 0 | K66: =+H66*(1-I66) -> 0
B67: SPECIALIZED ITEMS
B68: Install permanent instrumentation, supply & technican | D68: each | F68: =NA() ->  | G68: 30000 | H68: =G68*E68 -> 0 | J68: =H68*I68 -> 0 | K68: =+H68*(1-I68) -> 0
B69: Install permanent instrumentation, drilling | D69: each | F69: =NA() ->  | G69: 30000 | H69: =G69*E69 -> 0 | K69: =+H69*(1-I69) -> 0
B70: TREAT SEEPAGE - see "Water Management" and "Water Treatment"
B71: TREAT SUPERNATANT
B72: Pump water (to pit, U/G) | D72: m3 | F72: =NA() ->  | G72: =IF(ISNA(F72),0,INDEX(IF(UPPER(RIGHT(F72,1))=Low,UnitCostLow, IF(UPPER(RIGHT(F72,1))=High,UnitCostHigh,UnitCostSpecified)),MATCH(UPPER(LEFT(F72,LEN(F72)-1)),CostCode,0))) -> 0 | H72: =G72*E72 -> 0 | J72: =H72*I72 -> 0 | K72: =+H72*(1-I72) -> 0
B73: Equipment maintenance and parts | D73: allow | F73: =NA() ->  | G73: 100000 | H73: =G73*E73 -> 0 | J73: =H73*I73 -> 0 | K73: =+H73*(1-I73) -> 0
B74: Supply reagents | D74: tonne | F74: =NA() ->  | G74: =IF(ISNA(F74),0,INDEX(IF(UPPER(RIGHT(F74,1))=Low,UnitCostLow, IF(UPPER(RIGHT(F74,1))=High,UnitCostHigh,UnitCostSpecified)),MATCH(UPPER(LEFT(F74,LEN(F74)-1)),CostCode,0))) -> 0 | H74: =G74*E74 -> 0 | J74: =H74*I74 -> 0 | K74: =+H74*(1-I74) -> 0
G75: Annual treatment costs | H75: =SUM(H72:H74)+0.0001 -> 0.0001
B76: Number of years of treatment | D76: years
G77: Total treatment costs | H77: =H75*E76 -> 0 | K77: =H77 -> 0
G78: Total | H78: =SUM(H5:H69)+H77+0.0001 -> 0.0001 | J78: =SUM(J5:J69)+J77 -> 0 | K78: =SUM(K5:K69)+K77 -> 0
G79: % of Total | J79: =J78/H78 -> 0 | K79: =K78/H78 -> 0
B80: * for construction of passive treatment system refer to "Water Management"

Sheet Water Treatment
A1: 1 | B1: Post Closure Water Treatment - Identified as long term/post-closure in 'Instructions' worksheet
B3: ACTIVITY/MATERIAL | C3: Notes | D3: Units | E3: Quantity | F3: Cost Code | G3: Unit Cost | H3: Cost
B4: ADDITION OF REAGENTS TO WTP
B5: H2O2 | D5: kg | F5: =NA() ->  | G5: =IF(ISNA(F5),0,INDEX(IF(UPPER(RIGHT(F5,1))=Low,UnitCostLow, IF(UPPER(RIGHT(F5,1))=High,UnitCostHigh,UnitCostSpecified)),MATCH(UPPER(LEFT(F5,LEN(F5)-1)),CostCode,0))) -> 0 | H5: =G5*E5 -> 0
B6: lime | D6: kg | F6: =NA() ->  | G6: 0 | H6: 0
B7: ferric sulphate | D7: kg | F7: =NA() ->  | G7: 0 | H7: 0
B8: ferrous sulphate | D8: kg | F8: =NA() ->  | G8: 0 | H8: 0
B9: flocculents | D9: kg | F9: =NA() ->  | G9: 0 | H9: 0
B10: Other | F10: =NA() ->  | G10: 0 | H10: 0
B11: LABOUR AND SUPPLIES
B12: Annual fuel | D12: litres | F12: =NA() ->  | G12: =IF(ISNA(F12),0,INDEX(IF(UPPER(RIGHT(F12,1))=Low,UnitCostLow, IF(UPPER(RIGHT(F12,1))=High,UnitCostHigh,UnitCostSpecified)),MATCH(UPPER(LEFT(F12,LEN(F12)-1)),CostCode,0))) -> 0 | H12: =G12*E12 -> 0
B13: Annual power | D13: kW-h | F13: =NA() ->  | G13: =IF(ISNA(F13),0,INDEX(IF(UPPER(RIGHT(F13,1))=Low,UnitCostLow, IF(UPPER(RIGHT(F13,1))=High,UnitCostHigh,UnitCostSpecified)),MATCH(UPPER(LEFT(F13,LEN(F13)-1)),CostCode,0))) -> 0 | H13: =G13*E13 -> 0
B14: Electrician/mechanic to maintain treatment plant | D14: allow | F14: =NA() ->  | G14: 0 | H14: 0
B15: Equipment maintenance and parts | D15: allow | F15: =NA() ->  | G15: 0 | H15: 0
B16: Misc. supplies, hoses, tools | D16: allow | F16: =NA() ->  | G16: 0 | H16: 0
B17: Communications | D17: allow | F17: =NA() ->  | G17: 0 | H17: 0
B18: Other | F18: =NA() ->  | G18: 0 | H18: 0
B19: WATER MANAGEMENT
B20: Water Treatment (reagents, equip Op. labour) | D20: m3 | F20: AE | G20: 0.62 | H20: =G20*E20 -> 0
B21: Water pumping from sumps and ponds to treatment plant | D21: allow | F21: AE | G21: 29367.83 | H21: =G21*E21 -> 0
B22: Annual Treatment Plant Servicing | D22: manhours | F22: lab-ss | G22: =IF(ISNA(F22),0,INDEX(IF(UPPER(RIGHT(F22,1))=Low,UnitCostLow, IF(UPPER(RIGHT(F22,1))=High,UnitCostHigh,UnitCostSpecified)),MATCH(UPPER(LEFT(F22,LEN(F22)-1)),CostCode,0))) -> 120 | H22: =G22*E22 -> 0
B23: Treatment Plant Servicing Travel Allowance | D23: visit | F23: AE | G23: 4000 | H23: =G23*E23 -> 0
B24: Other | F24: =NA() ->  | G24: =IF(ISNA(F24),0,INDEX(IF(UPPER(RIGHT(F24,1))=Low,UnitCostLow, IF(UPPER(RIGHT(F24,1))=High,UnitCostHigh,UnitCostSpecified)),MATCH(UPPER(LEFT(F24,LEN(F24)-1)),CostCode,0))) -> 0 | H24: =G24*E24 -> 0
B25: WTP WATER SAMPLING AND ANALYSES
B26: Sampling equipment | D26: allow | F26: =NA() ->  | G26: =IF(ISNA(F26),0,INDEX(IF(UPPER(RIGHT(F26,1))=Low,UnitCostLow, IF(UPPER(RIGHT(F26,1))=High,UnitCostHigh,UnitCostSpecified)),MATCH(UPPER(LEFT(F26,LEN(F26)-1)),CostCode,0))) -> 0 | H26: =G26*E26 -> 0
B27: Analyses | D27: allow | F27: =NA() ->  | G27: =IF(ISNA(F27),0,INDEX(IF(UPPER(RIGHT(F27,1))=Low,UnitCostLow, IF(UPPER(RIGHT(F27,1))=High,UnitCostHigh,UnitCostSpecified)),MATCH(UPPER(LEFT(F27,LEN(F27)-1)),CostCode,0))) -> 0 | H27: =G27*E27 -> 0
B28: Shipping to laboratory | D28: allow | F28: =NA() ->  | G28: =IF(ISNA(F28),0,INDEX(IF(UPPER(RIGHT(F28,1))=Low,UnitCostLow, IF(UPPER(RIGHT(F28,1))=High,UnitCostHigh,UnitCostSpecified)),MATCH(UPPER(LEFT(F28,LEN(F28)-1)),CostCode,0))) -> 0 | H28: =G28*E28 -> 0
B29: Reporting | D29: allow | F29: =NA() ->  | G29: =IF(ISNA(F29),0,INDEX(IF(UPPER(RIGHT(F29,1))=Low,UnitCostLow, IF(UPPER(RIGHT(F29,1))=High,UnitCostHigh,UnitCostSpecified)),MATCH(UPPER(LEFT(F29,LEN(F29)-1)),CostCode,0))) -> 0 | H29: =G29*E29 -> 0
B30: Other | F30: =NA() ->  | G30: =IF(ISNA(F30),0,INDEX(IF(UPPER(RIGHT(F30,1))=Low,UnitCostLow, IF(UPPER(RIGHT(F30,1))=High,UnitCostHigh,UnitCostSpecified)),MATCH(UPPER(LEFT(F30,LEN(F30)-1)),CostCode,0))) -> 0 | H30: =G30*E30 -> 0
B31: SITE ACCESS
B32: Road maintenance (incl. snow removal) | D32: allow | F32: AE | G32: 50000 | H32: =G32*E32 -> 0
B33: Winter road tariff | D33: allow | F33: =NA() ->  | G33: =IF(ISNA(F33),0,INDEX(IF(UPPER(RIGHT(F33,1))=Low,UnitCostLow, IF(UPPER(RIGHT(F33,1))=High,UnitCostHigh,UnitCostSpecified)),MATCH(UPPER(LEFT(F33,LEN(F33)-1)),CostCode,0))) -> 0 | H33: =G33*E33 -> 0
B34: Truck rental | D34: allow | F34: =NA() ->  | G34: =IF(ISNA(F34),0,INDEX(IF(UPPER(RIGHT(F34,1))=Low,UnitCostLow, IF(UPPER(RIGHT(F34,1))=High,UnitCostHigh,UnitCostSpecified)),MATCH(UPPER(LEFT(F34,LEN(F34)-1)),CostCode,0))) -> 0 | H34: =G34*E34 -> 0
B35: Air support | D35: allow | F35: =NA() ->  | G35: =IF(ISNA(F35),0,INDEX(IF(UPPER(RIGHT(F35,1))=Low,UnitCostLow, IF(UPPER(RIGHT(F35,1))=High,UnitCostHigh,UnitCostSpecified)),MATCH(UPPER(LEFT(F35,LEN(F35)-1)),CostCode,0))) -> 0 | H35: =G35*E35 -> 0
G37: Annual water treatment costs | H37: =SUM(H5:H36)+0.0001 -> 0.0001
B38: Number of years of water treatment | D38: years | E38: 25
G39: Total | H39: =AnnualTreat1Cost*E38 -> 0.0025

Sheet Unit_Costs
A1: Unit Cost Table (for refining unit costs see "Estimator" worksheet)
D2: Filter by unit
A4: ITEM | B4: Detail | D4: COST CODE | E4: UNITS | F4: LOW $ | G4: HIGH $ | H4: SPECIFIED $ | J4: COMMENTS
A6: Accomodation
D7: ACCM | E7: manday | F7: 100 | G7: 175
A8: Buildings - Decontaminate
B9: Asbestos | D9: BDA | E9: m2 | F9: 25.6 | G9: 51.2 | J9: Low: removal of asbestos siding & flooring; High: removal of insulated pipes, friable asbestos
A10: Buildings - Remove | J10: Unit costs are based on 3m high, single storey building. Scale areas accordingly.
B11: Wood | D11: BRW | E11: m2 | F11: 27.5 | G11: 41
B12: Concrete | D12: BRC | E12: m2 | F12: 40 | G12: 65 | H12: 6 | J12: Specified: puncture concrete foundation slabs
B13: Steel - teardown | D13: BRS1 | E13: m2 | F13: 45 | G13: 65
B14: Steel - for salvage | D14: BRS2 | E14: m2 | F14: 67 | G14: 100
A15: Concrete work
B16: Small pour | D16: CSF | E16: m3 | F16: 426.5 | G16: 639.75 | J16: Low: YK; High=1.5xLow
B17: Large pour | D17: CLF | E17: m3 | F17: 353.5 | G17: 530.25 | H17: 2130 | J17: Specified: concrete crown pillar
A18: Contaminated Soils
B19: ESA Phase 1 | D19: CS1 | E19: each | F19: 7500 | J19: Low: small, "clean" site
B20: ESA Phase 1 | D20: CS2 | E20: each | F20: 50000 | J20: Low: small, "clean" site
B21: Remediate on site | D21: CSR | E21: m3 | F21: 47 | G21: 146
A22: Dozing
B23: doze rock piles | D23: DR | E23: m3 | F23: 1.05 | G23: 2.4 | J23: Low cost: doze crest off dump
B24: doze overburden/soil piles | D24: DS | E24: m3 | F24: 0.95 | G24: 3.8 | J24: High cost: push up to 300 m
A25: Excavate Rock; Low Spec's and QA/QC
B26: drill/blast/load/short haul | D26: RB1 | E26: m3 | F26: 11.4 | G26: 17.05 | J26: Low:quarry operations for bulk fill
B27: drill/blast/load/long haul | D27: RB2 | E27: m3 | F27: 12.05 | G27: 17.8
B28: RB1 + spread and compact | D28: RB3 | E28: m3 | F28: 12.05 | G28: 17.8
B29: RB2 + spread and compact | D29: RB4 | E29: m3 | F29: 12.5 | G29: 30.75
B30: Specified activity | D30: RBS | E30: m3
A31: Excavate Rock; High Spec's and QA/QC | J31: (e.g. ditch/spillway excavation)
B32: drill/blast/load/short haul | D32: RC1 | E32: m3 | F32: 12.05 | G32: 17.8 | J32: Low:foundation excavation;High:spillway excavation
B33: drill/blast/load/long haul | D33: RC2 | E33: m3 | F33: 12.7 | G33: 18.4
B34: RC1 + spread and compact | D34: RC3 | E34: m3 | F34: 12.7 | G34: 18.4 | J34: e,g, cover construction
B35: RC2 + spread and compact | D35: RC4 | E35: m3 | F35: 13.5 | G35: 19.2 | J35: e,g, cover construction
B36: Specified activity | D36: RCS | E36: m3 | H36: 175 | J36: Specified-drift excavation
A37: Excavate Rip Rap
B38: drill/blast/load/short haul/place | D38: RR1 | E38: m3 | F38: 13.5 | G38: 17.75 | J38: High: quarry & place rip rap in channel
B39: drill/blast/load/long haul/place | D39: RR2 | E39: m3 | F39: 14.2 | G39: 20.65
B40: source is waste dump/short haul | D40: RR3 | E40: m3 | F40: 7 | J40: cost includes sorting
B41: source is waste dump/long haul | D41: RR4 | E41: m3 | F41: 7.6
B42: Specified activity | D42: RRS | E42: m3
A43: Excavate Soil; Low Spec's and QA/QC
B44: clear & grub | D44: SBC | E44: m2 | F44: 3.4 | G44: 5
B45: excavate/load/short haul | D45: SB1 | E45: m3 | F45: 4.3 | G45: 5.9
B46: excavate/load/long haul | D46: SB2 | E46: m3 | F46: 4.6 | G46: 7.3
B47: SB1 + spread and compact | D47: SB3 | E47: m3 | F47: 5.1 | G47: 8.9 | J47: Low: non-engineered; High:engineered
B48: SB2 + spread and compact | D48: SB4 | E48: m3 | F48: 5.5 | G48: 11 | J48: Low: non-engineered; High:engineered
B49: Specified activity | D49: SBS | E49: m3 | F49: 3.2 | G49: 6.3 | J49: Low: rehandle waste rock dump by dozing; High:rehandle waste rock by hauling
B50: Tailings | D50: SBT | E50: m3 | F50: 1.35 | G50: 3.7 | H50: 15.5 | J50: High:contour surface - wet or frozen; Specified:haul/place wet infill
A51: Excavate Soil, High Spec's and QA/QC
B52: excavate/load/short haul | D52: SC1 | E52: m3 | F52: 6.8 | G52: 9.3
B53: excavate/load/long haul | D53: SC2 | E53: m3 | F53: 7.1 | G53: 11.75
B54: SC1 + spread and compact | D54: SC3 | E54: m3 | F54: 8.9 | G54: 14.2 | J54: Low: non-engineered; High:engineered
B55: SC2 + spread and compact | D55: SC4 | E55: m3 | F55: 9.3 | G55: 23.2 | J55: Low: non-engineered; High:engineered (e.g. complex covers, low volume dam construction)
B56: Specified activity | D56: SCS | E56: m3 | H56: 18.8 | J56: Backfill adit with waste rock
A57: Fence
D58: FNC | E58: m | F58: 13.55 | G58: 203
A59: Fuel and Electricity
B60: Fuel cost - gas | D60: FCG | E60: litre | F60: 1.05 | G60: 1.4
B61: Fuel cost - diesel | D61: FCD | E61: litre | F61: 0.99 | G61: 1.39
B62: Fuel mobilization | D62: FCM | E62: litre | F62: 0.22 | G62: 0.42 | J62: High: winter road usage
B63: Electricity | D63: FCE | E63: kW-h | F63: 0.17 | G63: 0.19 | H63: 0.49 | J63: Low and High:Yellowknife; Specified:diesel generator
A64: Geo-Synthetics
B65: geotextile | D65: GST | E65: m2 | F65: 3.44 | J65: Supply and install
B66: geogrid | D66: GSG | E66: m2 | F66: 5.75
B67: liner, HDPE | D67: GSHDPE | E67: m2 | F67: 7.95 | J67: Supply and install; large quantity
B68: liner, ES3 | D68: GSES3 | E68: m2 | F68: 20.2 | J68: FOB Yellowknife
B69: geosynthetic installation | D69: GSI | E69: m2 | F69: 3.16 | G69: 14 | J69: Low:geotextile; High:ES3 or HDPE
B70: bentonite soil ammendment | D70: GSBA | E70: tonne | F70: 308.3 | G70: 348.5 | J70: FOB Edmonton, add shipping & mixing
A71: Grouting (/m3 of rock grouted)
D72: grout | E72: m3 | F72: 236.55 | G72: 286.75 | J72: High: cement, FOB Yellowknife
A73: Labour & Equipment Rates
B74: Site manager | D74: sman | E74: $/hr | F74: 125 | G74: 152
B75: Supervisor | D75: super | E75: $/hr | F75: 52 | G75: 91.84
B76: Registered engineer | D76: eng | E76: $/hr | F76: 95 | G76: 220
B77: Environmental coordinator | D77: envco | E77: $/hr | F77: 74.16 | G77: 130
B78: Evironmental technologist | D78: envtech | E78: $/hr | F78: 36
B79: Electrician | D79: elec | E79: $/hr | F79: 74 | G79: 95
B80: Journeyman - various | D80: journey | E80: $/hr | F80: 44 | G80: 71.79
B81: Labour - skilled | D81: lab-s | E81: $/hr | F81: 41 | G81: 49.6 | H81: 120
B82: Labour - unskilled | D82: lab-us | E82: $/hr | F82: 31 | G82: 43.98
B83: Equipment operator | D83: oper | E83: $/hr | F83: 41 | G83: 65
B84: Heavy duty mechanic | D84: mech | E84: $/hr | F84: 49 | G84: 72.85
B85: Water treatment plant operator | D85: oper-wt | E85: $/hr | F85: 41 | G85: 59.86
B86: Security / first aid | D86: safety | E86: $/hr | F86: 36 | G86: 66.97
B87: Administative staff | D87: admin | E87: $/hr | F87: 38 | G87: 57.89
B89: Equipment rates include operator and fuel
B90: Loader - 4 cu.yd (3.06m3) | D90: load-s | E90: $/hr | F90: 175
B91: Loader - 7 cu.yd (5.35m3) | D91: load-l | E91: $/hr | F91: 315
B92: Excavator - 26.76-30.84 tonnes | D92: exc-s | E92: $/hr | F92: 190
B93: Excavator - 68.95+tonnes | D93: exc-l | E93: $/hr | F93: 420
B94: Grader | D94: grad | E94: $/hr | F94: 190
B95: Dump truck off hwy 30-50 tonnes | D95: truck-s | E95: $/hr | F95: 225
B96: Dump truck off hwy 55-75 tonnes | D96: truck-l | E96: $/hr | F96: 300
B97: dozer, small | D97: dozers | E97: $/hr | F97: 205 | G97: 260
B98: dozer, large | D98: dozerl | E98: $/hr | F98: 490 | G98: 565
B99: smooth drum compactor | D99: comp | E99: $/hr | F99: 155
B100: scooptram, 6 yd3 bucket | D100: scoop | E100: $/hr | F100: 170
B101: flat bed truck with hiab | D101: hiab | E101: $/hr | F101: 155
B102: fuel truck | D102: ftruck | E102: $/hr | F102: 150
B103: water truck | D103: wtruck | E103: $/hr | F103: 58 | G103: 150
A104: Mobilize Heavy Equipment
B105: Road access | D105: MHER | E105: kmtonne | F105: 3.4 | G105: 10.25
B106: Air access | D106: MHEA | E106: kmtonne | F106: 12 | J106: cargo rate>500lb
A107: Mobilize Camp
B108: Road access | D108: MCR | E108: each | F108: 50000 | J108: refurbish existing camp
A109: Mobilize Workers
B110: flight | D110: MW | E110: each | F110: 4500 | G110: 9100 | J110: Low:e.g. 8 passenger; High: Dash 7
A111: Oil Removal
B112: oil removal | D112: OR | E112: litre | F112: 0.43 | G112: 1.2 | J112: Low:waste oil heater; High: ship offsite
A113: PCB Removal
B114: Remove from site | D114: PCBR | E114: litre | F114: 40.2 | G114: 46.9 | J114: Low: shipping, handling & disposal from Yellowknife
A115: Pipes, small (<6in dia.)
B116: remove/dispose on site | D116: PSR | E116: m | F116: 1 | G116: 24 | J116: Low: remove/dispose on site; High: remove/re-use
B117: supply | D117: PSS | E117: m | F117: 6.1 | G117: 11.1 | J117: Low:supply; High:supply and ship
B118: install | D118: PSI | E118: m | F118: 25
A119: Pipes, large (>6in dia.)
B120: remove/dispose on site | D120: PLR | E120: m | F120: 22 | G120: 72 | J120: Low: remove/dispose on site; High: remove/re-use
B121: supply | D121: PLS | E121: m | F121: 129 | G121: 143 | J121: Low:supply; High:supply and ship
B122: install | D122: PLI | E122: m | F122: 50
A123: Power Lines
B124: remove/dispose on site | D124: POWR | E124: m | F124: 25.5
A125: Process Chemicals
B126: Remove from site | D126: PCR | E126: kg | F126: 0.45 | G126: 2.5 | J126: Low: shipping, handling & disposal from Yellowknife
A127: Pumps
B128: Pump capital cost | D128: PC | E128: each | F128: 195000
B129: Pump shipping | D129: PS | E129: each | F129: 2500
B130: Pump operating cost | D130: POC | E130: m3 | F130: 0.12 | J130: pump operating costs should be calculated based on pump capacity, fuel costs, etc.
B131: Pump maintenance | D131: PM | E131: allow | F131: 25000
A132: Pump sand BackFill
D133: PBF | E133: m3 | F133: 85 | G133: 300
A134: Scarify - road/mine site
D135: SCFY | E135: ha | F135: 4300 | G135: 6030 | H135: 2150
A136: Shaft, Raise & Portal Closures
B137: Shaft & Raises | D137: SR | E137: m2 | F137: 645 | G137: 2132 | J137: Low:pre-cast concrete slabs, little site prep. Area=shaft+>1m all around
B138: Portals | D138: POR | E138: m3 | F138: 18.8 | G138: 250 | H138: 1200 | J138: Low:unit cost code SCS;High:excavate & backfill collapsed portal;Spec: installed pressure plug
A139: Site Inspection Report
D140: RPT | E140: each | F140: 10000 | G140: 20000
A141: SpillWay - Clear
D142: SW | E142: each | F142: 3000 | G142: 7000
A143: Survey/Instrumentation
D144: SI | E144: each | F144: 1800 | G144: 3600 | J144: 2 person crew
A145: Treatment Plant - Construct
B146: Small (< 1000 m3/d) | D146: TPS | E146: lump sum | F146: 9000000 | G146: 15000000
B147: Large (> 1000 m3/d) | D147: TPL | E147: lump sum | F147: 15000000 | G147: 46000000
B148: Constructed Wetland | D148: CWTS | E148: ha | F148: 200000 | G148: 300000
A149: Treatment Plant - Operate
D150: TPO | E150: m3 | F150: 0.35 | G150: 2
A151: Treatment Chemicals
B152: ferric sulphate | D152: ferric | E152: kg | F152: 1.19
B153: ferrous sulphate | D153: ferrous | E153: kg | F153: 1.32
B154: lime | D154: lime | E154: kg | F154: 0.56
B155: hydrogen peroxide, 35% | D155: hperox | E155: kg | F155: 1.5
B156: Sodium Metabisulfate | D156: Nametab | E156: kg | F156: 1.18
B157: Caustic soda, 50% | D157: caustic | E157: kg | F157: 0.74
B158: Sulfuric acid, 93% | D158: sulfuric | E158: kg | F158: 0.31
B159: flocculant | D159: flocc | E159: kg | F159: 6
B160: copper sulphate | D160: copper | E160: kg
B161: shipping | D161: shipping | E161: kg | F161: 0.2
A162: Vegetation
B163: Hydroseed, Flat | D163: VHF | E163: ha | F163: 4000
B164: Hydroseed, Sloped | D164: VHS | E164: ha | F164: 4500
B165: Veg. blanket/erosion mat | D165: VB | E165: ha | F165: 13000
B166: Tree planting | D166: VT | E166: ha | F166: 2600 | G166: 6000
B167: Wetland species | D167: VW | E167: ha | H167: 47.72 | J167: Specified= /m3, Wetland Growth Media Substrate mixed and installed (sand, biochar and fertilizer, woodchips)
A168: Water Sampling/Analysis/Reporting
D169: WS | E169: each | F169: 7000 | G169: 10000
A170: Winter Road
B171: Construction | D171: WRC | E171: km | F171: 2000 | G171: 11500
B172: Usage | D172: WRU | E172: kmtonne | F172: 0.29
A173: Unit Rates as per 2015 EBS
B174: Grade and Contour | D174: 15GC | E174: m2 | H174: 1.810295346
B175: Grade and Contour With Liner | D175: 15GCL | E175: m2 | H175: 5.308295346
B176: Grade and Contour Significant Disturbed Areas | D176: 15GCD | E176: m2 | H176: 2.715443019
B177: Fill Application | D177: 15PF | E177: m2 | H177: 44.36874787
A178: Cost for On-Site Disposal of Equipment:
B179: Light Mobile Equipment | D179: 15MOL | E179: Ea | H179: 941.0892063
B180: Medium Mobile Equipment | D180: 15MOM | E180: Ea | H180: 1494.13381
B181: Heavy Mobile Equipment | D181: 15MOH | E181: Ea | H181: 2618.873952
B182: Other mobile equipment (reclaim conveyor) | D182: 15MOR | E182: Ea | H182: 1329441.311
B183: Light mechanical equipment - Decontaminate and dispose on-site | D183: 15LME | E183: Ea | H183: 1980.798386
B184: Medium mechanical equipment - Decontaminate and dispose on-site | D184: 15MME | E184: Ea | H184: 4261.336914
B185: Heavy mechanical equipment - Decontaminate and dispose on-site | D185: 15MEH | E185: Ea | H185: 41205.448
B186: Light Tanks | D186: 15TL | E186: Ea | H186: 2148.329349
B187: Medium Tanks | D187: 15MT | E187: Ea | H187: 7387.31481
B188: Light Diesel Tanks | D188: 15LiDT | E188: Ea | H188: 3693.657405
B189: Medium Diesel Tanks | D189: 15MDT | E189: Ea | H189: 16166.40133
B190: Large Diesel Tanks | D190: 15LDT | E190: Ea | H190: 106338.7413
B191: Largest Diesel Tanks | D191: 15XLDT | E191: Ea | H191: 171468.151
B192: Misc Items (Minor) | D192: 15MEI | E192: Ea | H192: 529.8267619
B193: Fuel tanks - Medium Mobile Diesel Tanks (3,000L to 500kL) | D193: 15MMFT | E193: Ea | H193: 10481.0492
A194: Removal of Contaminated Buildings
B195: fold away | D195: 15RCBF | E195: m2 | H195: 142.4093739
B196: ISO Shipping Container | D196: 15RCBI | E196: m2 | H196: 143.4181239
B197: modular | D197: 15RCBM | E197: m2 | H197: 143.4181239
B198: soft walled | D198: 15RCBS | E198: m2 | H198: 148.3478489
B199: Temporary construction warehouses and offices Allowance | D199: 15RCBT | E199: m2 | H199: 25000
A200: Removal of Buildings
B201: fold away | D201: 15RBF | E201: m2 | H201: 41.56932469
B202: modular | D202: 15RBM | E202: m2 | H202: 59.38474956
B203: ISO Shipping Container | D203: 15RBI | E203: m2 | H203: 29.69237478
... 93 more rows

Sheet Estimator
B1: Unit Cost Estimator | D1: 1 | E1: Equipment Productivity Figures and Graphs have been reproduced from Caterpillar Performance Handbook - Edition 42
B2: EXCAVATION | G2: HAUL AND DUMPING | L2: SPREADING/DOZING
B3: Productivity | G3: Productivity | L3: Productivity
B4: Machine | C4: Cat 336EL | G4: Machine | H4: Cat 770 | L4: Machine | M4: Cat D8
B5: bucket capacity | D5: 3.16 | E5: m3 | G5: truck capacity | I5: 25.1 | J5: m3 | L5: Estimate production using example curves provided or | N5: 600 | O5: m3/hr
B6: fill factor | D6: 0.75 | E6: % | G6: fill factor | I6: 0.8 | J6: % | L6: equivalent from other supplier
B7: cycle time | D7: 45 | E7: seconds | L7: Correction factors (see table provided)
B8: operator skill | D8: 0.8 | E8: % | G8: load time | I8: 6 | J8: min. | L8: operator skill | N8: 0.75
B9: machine availability | D9: 0.83 | E9: % | G9: haul distance | I9: 1.5 | J9: km | L9: material type, see table | N9: 0.8
B10: altitude adjustment | D10: 1 | E10: % | G10: average velocity | I10: 20 | J10: km/hr | L10: slot dozing | N10: 1
B11: Hourly productivity | D11: =D5*D6*(60*60/D7)*D8*D9*D10 -> 125.8944 | E11: m3/hr | G11: haul time + return time | I11: =+I9/I10*60*2 -> 9 | J11: min. | L11: side by side dozing | N11: 1
G12: wait time | I12: 0.5 | J12: min. | L12: visibility | N12: 1
G13: dump time | I13: 1 | J13: min. | L13: job efficiency | N13: 0.83
G14: cycle time | I14: =I8+SUM(I11:I13) -> 16.5 | J14: min. | L14: altitude adjustment | N14: 1
G15: machine availability | I15: 0.83 | J15: % | L15: slope adjustment | N15: 1
G16: altitude adjustment | I16: 1 | J16: % | L16: Hourly productivity | N16: =+N5*N8*N9*N10*N11*N12*N13*N14*N15 -> 298.8 | O16: m3/hr
I17: =I14*I15*I16 -> 13.695 | J17: ave. min/cycle
G18: Hourly productivity | I18: =I5*I6*60/I17 -> 87.97371303 | J18: m3/hr
B19: Operating Costs | G19: Operating Costs | L19: Operating Costs
B20: - Contractor | G20: - Contractor | L20: - Contractor
B21: Contractor hourly rate | D21: 180 | E21: $/hr | G21: Contractor hourly rate | I21: 225 | J21: $/hr | L21: Hourly rate - contractor supplied | N21: 260 | O21: $/hr
B22: Excavation cost - contractor rate | D22: =D21/D11 -> 1.429769712 | E22: $/m3 | G22: Haul and Dump - contractor rate | I22: =I21/I18 -> 2.557582171 | J22: $/m3 | L22: Dozing - contractor rate | N22: =N21/N16 -> 0.8701472557 | O22: $/m3
B24: - Owner | G24: - Owner | L24: - Owner
B25: ownership, daily | E25: $/day | G25: ownership, daily | J25: $/day | L25: ownership, daily | O25: $/day
B26: maintenance | E26: $/hr | G26: maintenance | J26: $/hr | L26: maintenance | O26: $/hr
B27: fuel | E27: $/hr | G27: fuel | J27: $/hr | L27: fuel | O27: $/hr
B28: consumables (cutters, tires) | E28: $/hr | G28: consumables (cutters, tires) | J28: $/hr | L28: consumables (cutters, tires) | O28: $/hr
B29: operator | E29: $/hr | G29: operator | J29: $/hr | L29: operator | O29: $/hr
B30: Owner hourly rate | D30: =D25/10+SUM(D26:D29) -> 0 | E30: $/hr | G30: Owner hourly rate | I30: =I25/10+SUM(I26:I29) -> 0 | J30: $/hr | L30: Owner hourly rate | N30: =N25/10+SUM(N26:N29) -> 0
B31: Excavation cost - owner rate | D31: =D30/D11 -> 0 | E31: $/m3 | G31: Haul/Dumping Cost - owner rate | I31: =I30/I18 -> 0 | J31: $/m3 | L31: Spreading/Dozing Cost - owner rate | N31: =N30/N16 -> 0 | O31: $/hr
B32: Excavation cost - select contractor or owner rate (D22 or D31) | E32: $/m3 | G32: Haul/Dumping Cost - select contractor or owner rate (I22 or I31 | J32: $/m3 | L32: Spreading/Dozing Cost - select contractor or owner rate (N22 or N31) | O32: $/m3
B36: Excavator | G36: Trucking | L36: Dozing
C37: Cat 320 | D37: Cat 325B | E37: Cat 375 | H37: Cat 771 D | I37: Cat 777D | J37: Cat 789C
B38: heaped bucket capacity, m3 | C38: 1.5 | D38: 2.2 | E38: 5.4 | G38: Truck capacity - heaped, m3 | H38: 27.5 | I38: 60.5 | J38: 137
D39: Typical Cycle Times (seconds)
B40: easy digging, shallow digging, small swing angle | C40: 16 | D40: 18 | E40: 20
B41: med. to hard digging, rocky soil, swing angle to 90 deg. | C41: 23 | D41: 23 | E41: 25
B42: tough digging, sandstone, caliche, at max. machine depth, swing angle > 120 deg. | C42: 27 | D42: 29 | E42: 35
B44: Material | C44: Fill Factor (% of heaped bucket capacity
B45: Moist loam or sandy clay | D45: 100 - 110
B46: sand and gravel (not till) | D46: 95 - 110
B47: hard tough clay | D47: 80 - 90
B48: rock - will blasted | D48: 60 - 75
B49: rock - poorly blasted | D49: 40 -60
B51: Operator Skill | C51: poor | D51: average | E51: good
B52: Correction factor | C52: 0.6 | D52: 0.75 | E52: 1
B54: Machine availability | C54: poor | D54: average | E54: good
B55: Correction factor | C55: 0.9 | D55: 0.95 | E55: 1

Sheet Tools
A1: The functions in this worksheet serve as a back up in the event that the menu item "Add-Ins" is not shown in Excel menu bar
C4: Save file before clearing all data
L6: These functions duplicate components within worksheet
C9: Shows both active worksheet as well as table of Unit Costs in a separate window
C12: Prints all worksheets having non-zero sums
